Workbook

Sheet 1. Information Sheet
U1: a
M12: Version | N12: 1
E14: Utility Name | F14: Enersource Hydro Mississauga Inc.
E16: Service Territory
E18: Assigned EB Number | F18: EB-2015-0065
E20: Name of Contact and Title | F20: Natalie Yeates, Manager, Rates & Settlements
E22: Phone Number | F22: 905-283-4095
E24: Email Address | F24: nyeates@enersource.com
E26: We are applying for rates effective | F26: 2016-01-01
E28: Rate-Setting Method | F28: Price Cap IR
A30: Please indicate in which Rate Year the Group 1 accounts were last cleared1 | F30: 2014
A32: Please indicate the last Cost of Service Re-Basing Year | F32: 2013
B35: Notes
C37: Pale green cells represent input cells.
C39: Pale blue cells represent drop-down lists. The applicant should select the appropriate item from the drop-down list.
C41: White cells contain fixed values, automatically generated values or formulae.
A44: Note: 1. Rate year of application

Sheet Sheet1 (hidden)
A1: 1. Information Sheet
A2: Sheet1 | B2: X
A3: 2. Current Tariff Schedule | B3: X | C3: X
A4: 2016 List | B4: X
A5: 3. 2015 Continuity Schedule | B5: X | C5: X
A6: 4. Billing Det. for Def-Var | B6: X | C6: X
A7: 5. Allocating Def-Var Balances | B7: X | C7: X
A8: 6. Calculation of Def-Var RR | B8: X | C8: X
A9: 7. STS - Tax Change | B9: X | C9: X
A10: 8. Shared Tax - Rate Rider | B10: X | C10: X
A11: 9. RTSR Current Rates | B11: X | C11: X
A12: 10. RTSR - UTRs & Sub-Tx | B12: X | C12: X
A13: 11. RTSR - Historical Wholesale | B13: X | C13: X
A14: 12. RTSR - Current Wholesale | B14: X | C14: X
A15: 13. RTSR - Forecast Wholesale | B15: X | C15: X
A16: 14. RTSR Rates to Forecast | B16: X | C16: X
A17: 15. Rev2Cost_GDPIPI | B17: X | C17: X
A18: 16. Additional Rates | B18: X | C18: X
A19: 17. Final Tariff Schedule | B19: X | C19: X
A20: 18. Bill Impacts | B20: X | C20: X
A21: 18. Bill Impacts hidden | B21: X
A22: 2.1.7 Filing | B22: X
A23: 2.1.5 RetailerConsumptionData | B23: X
A24: 2.1.5 DistributrConsumptionData | B24: X
A25: 2.1.5 TotalConsumptionData | B25: X
A26: 2015 Database | B26: X
A27: lists | B27: X

Sheet 2. Current Tariff Schedule
AZ1: TRUE
B3: Macro has been activated
B12: Enersource Hydro Mississauga Inc. | F12: X | G12: Enersource Hydro Mississauga Inc._Start | H12: Enersource Hydro Mississauga Inc. | J12: 9
B13: TARIFF OF RATES AND CHARGES
B14: Effective and Implementation Date January 1, 2015 | P14: 2015-01-01
B15: This schedule supersedes and replaces all previously
B16: approved schedules of Rates, Charges and Loss Factors
B17: EB-2014-0068 | H17: EB-2014-0068 | AS17: X
B18: RESIDENTIAL SERVICE CLASSIFICATION | H18: 1_RESIDENTIAL SERVICE CLASSIFICATION | AA18: RESIDENTIAL SERVICE CLASSIFICATION
B19: This classification refers to all residential services including, without limitation, single family or single unit dwellings, multi-family dwellings, row-type dwellings and subdivision developments. Energy is supplied in single phase, 3-wire, or three phase, 4-wire, having a nominal voltage of 120/240 Volts. There shall be only one delivery point to a dwelling. Further servicing details are available in the distributor’s Conditions of Service. | H19: 1_RESIDENTIAL SERVICE CLASSIFICATION | AA19: This classification refers to all residential services including, without limitation, single family or single unit dwellings, multi-family dwellings, row-type dwellings and subdivision developments. Energy is supplied in single phase, 3-wire, or three phase, 4-wire, having a nominal voltage of 120/240 Volts. There shall be only one delivery point to a dwelling. Further servicing details are available in the distributor’s Conditions of Service.
B21: APPLICATION | H21: 1_APPLICATION | AA21: APPLICATION
B23: The application of these rates and charges shall be in accordance with the Licence of the Distributor and any Code or Order of the Board, and amendments thereto as approved by the Board, which may be applicable to the administration of this schedule. | H23: 1_RESIDENTIAL SERVICE CLASSIFICATION | AA23: The application of these rates and charges shall be in accordance with the Licence of the Distributor and any Code or Order of the Board, and amendments thereto as approved by the Board, which may be applicable to the administration of this schedule.
B25: No rates and charges for the distribution of electricity and charges to meet the costs of any work or service done or furnished for the purpose of the distribution of electricity shall be made except as permitted by this schedule, unless required by the Distributor’s Licence or a Code or Order of the Board, and amendments thereto as approved by the Board, or as specified herein. | H25: 1_RESIDENTIAL SERVICE CLASSIFICATION | AA25: No rates and charges for the distribution of electricity and charges to meet the costs of any work or service done or furnished for the purpose of the distribution of electricity shall be made except as permitted by this schedule, unless required by the Distributor’s Licence or a Code or Order of the Board, and amendments thereto as approved by the Board, or as specified herein.
B27: Unless specifically noted, this schedule does not contain any charges for the electricity commodity, be it under the Regulated Price Plan, a contract with a retailer or the wholesale market price, as applicable. In addition, the charges in the MONTHLY RATES AND CHARGES - Regulatory Component of this schedule do not apply to a customer that is an embedded wholesale market participant. | H27: 1_RESIDENTIAL SERVICE CLASSIFICATION | AA27: Unless specifically noted, this schedule does not contain any charges for the electricity commodity, be it under the Regulated Price Plan, a contract with a retailer or the wholesale market price, as applicable. In addition, the charges in the MONTHLY RATES AND CHARGES - Regulatory Component of this schedule do not apply to a customer that is an embedded wholesale market participant.
B29: It should be noted that this schedule does not list any charges, assessments, or credits that are required by law to be invoiced by a distributor and that are not subject to Board approval, such as the Debt Retirement Charge, the Global Adjustment, the Ontario Clean Energy Benefit and the HST. | H29: 1_RESIDENTIAL SERVICE CLASSIFICATION | AA29: It should be noted that this schedule does not list any charges, assessments, or credits that are required by law to be invoiced by a distributor and that are not subject to Board approval, such as the Debt Retirement Charge, the Global Adjustment, the Ontario Clean Energy Benefit and the HST.
B31: MONTHLY RATES AND CHARGES - Delivery Component | H31: 1_MRC_Del | AA31: MONTHLY RATES AND CHARGES - Delivery Component
B33: Service Charge | D33: $ | E33: 13.22 | H33: 1_RESIDENTIAL SERVICE CLASSIFICATION | M33: 1_RESIDENTIAL SERVICE CLASSIFICATION_MSC | Z33: Service Charge
B34: Rate Rider for Smart Metering Entity Charge - effective until October 31, 2018 | D34: $ | E34: 0.79 | H34: 1_RESIDENTIAL SERVICE CLASSIFICATION | M34: 1_RESIDENTIAL SERVICE CLASSIFICATION_SME | Q34: 2018-10-31 | Z34: Rate Rider for Smart Metering Entity Charge - effective until October 31, 2018
B35: Distribution Volumetric Rate | D35: $/kWh | E35: 0.0133 | H35: 1_RESIDENTIAL SERVICE CLASSIFICATION | M35: 1_RESIDENTIAL SERVICE CLASSIFICATION_DVC | Z35: Distribution Volumetric Rate
B36: Low Voltage Service Rate | D36: $/kWh | E36: 0.0002 | H36: 1_RESIDENTIAL SERVICE CLASSIFICATION | M36: 1_RESIDENTIAL SERVICE CLASSIFICATION_LV | Z36: Low Voltage Service Rate
B37: Retail Transmission Rate - Network Service Rate | D37: $/kWh | E37: 0.008119377766 | H37: 1_RESIDENTIAL SERVICE CLASSIFICATION | M37: 1_RESIDENTIAL SERVICE CLASSIFICATION_Retail Transmission Rate - Network Service Rate | Z37: Retail Transmission Rate - Network Service Rate
B38: Retail Transmission Rate - Line and Transformation Connection Service Rate | D38: $/kWh | E38: 0.00622224169 | H38: 1_RESIDENTIAL SERVICE CLASSIFICATION | M38: 1_RESIDENTIAL SERVICE CLASSIFICATION_Retail Transmission Rate - Line and Transformation Connection Service Rate | Z38: Retail Transmission Rate - Line and Transformation Connection Service Rate
B40: MONTHLY RATES AND CHARGES - Regulatory Component | H40: 1_MRC_Reg | Z40: MONTHLY RATES AND CHARGES - Regulatory Component
B42: Wholesale Market Service Rate | D42: $/kWh | E42: 0.0044 | H42: 1_RESIDENTIAL SERVICE CLASSIFICATION | M42: 1_RESIDENTIAL SERVICE CLASSIFICATION_WMSR | Z42: Wholesale Market Service Rate
B43: Rural or Remote Electricity Rate Protection Charge (RRRP) | D43: $/kWh | E43: 0.0013 | H43: 1_RESIDENTIAL SERVICE CLASSIFICATION | M43: 1_RESIDENTIAL SERVICE CLASSIFICATION_RRRP | Z43: Rural or Remote Electricity Rate Protection Charge (RRRP)
B44: Standard Supply Service - Administrative Charge (if applicable) | D44: $ | E44: 0.25 | H44: 1_RESIDENTIAL SERVICE CLASSIFICATION | M44: 1_RESIDENTIAL SERVICE CLASSIFICATION_SSS | Z44: Standard Supply Service - Administrative Charge (if applicable) | AS44: X
B45: GENERAL SERVICE LESS THAN 50 KW SERVICE CLASSIFICATION | H45: 2_GENERAL SERVICE LESS THAN 50 KW SERVICE CLASSIFICATION | AA45: GENERAL SERVICE LESS THAN 50 KW SERVICE CLASSIFICATION
B46: This classification refers to a non-residential account whose monthly average peak demand is less than, or is forecast to be less than, 50 kW. Further servicing details are available in the distributor’s Conditions of Service. | H46: 2_GENERAL SERVICE LESS THAN 50 KW SERVICE CLASSIFICATION | AA46: This classification refers to a non-residential account whose monthly average peak demand is less than, or is forecast to be less than, 50 kW. Further servicing details are available in the distributor’s Conditions of Service.
B48: APPLICATION | H48: 2_APPLICATION | AA48: APPLICATION
B50: The application of these rates and charges shall be in accordance with the Licence of the Distributor and any Code or Order of the Board, and amendments thereto as approved by the Board, which may be applicable to the administration of this schedule. | H50: 2_GENERAL SERVICE LESS THAN 50 KW SERVICE CLASSIFICATION | AA50: The application of these rates and charges shall be in accordance with the Licence of the Distributor and any Code or Order of the Board, and amendments thereto as approved by the Board, which may be applicable to the administration of this schedule.
B52: No rates and charges for the distribution of electricity and charges to meet the costs of any work or service done or furnished for the purpose of the distribution of electricity shall be made except as permitted by this schedule, unless required by the Distributor’s Licence or a Code or Order of the Board, and amendments thereto as approved by the Board, or as specified herein. | H52: 2_GENERAL SERVICE LESS THAN 50 KW SERVICE CLASSIFICATION | AA52: No rates and charges for the distribution of electricity and charges to meet the costs of any work or service done or furnished for the purpose of the distribution of electricity shall be made except as permitted by this schedule, unless required by the Distributor’s Licence or a Code or Order of the Board, and amendments thereto as approved by the Board, or as specified herein.
B54: Unless specifically noted, this schedule does not contain any charges for the electricity commodity, be it under the Regulated Price Plan, a contract with a retailer or the wholesale market price, as applicable. In addition, the charges in the MONTHLY RATES AND CHARGES - Regulatory Component of this schedule do not apply to a customer that is an embedded wholesale market participant. | H54: 2_GENERAL SERVICE LESS THAN 50 KW SERVICE CLASSIFICATION | AA54: Unless specifically noted, this schedule does not contain any charges for the electricity commodity, be it under the Regulated Price Plan, a contract with a retailer or the wholesale market price, as applicable. In addition, the charges in the MONTHLY RATES AND CHARGES - Regulatory Component of this schedule do not apply to a customer that is an embedded wholesale market participant.
B56: It should be noted that this schedule does not list any charges, assessments, or credits that are required by law to be invoiced by a distributor and that are not subject to Board approval, such as the Debt Retirement Charge, the Global Adjustment, the Ontario Clean Energy Benefit and the HST. | H56: 2_GENERAL SERVICE LESS THAN 50 KW SERVICE CLASSIFICATION | AA56: It should be noted that this schedule does not list any charges, assessments, or credits that are required by law to be invoiced by a distributor and that are not subject to Board approval, such as the Debt Retirement Charge, the Global Adjustment, the Ontario Clean Energy Benefit and the HST.
B58: MONTHLY RATES AND CHARGES - Delivery Component | H58: 2_MRC_Del | AA58: MONTHLY RATES AND CHARGES - Delivery Component
B60: Service Charge | D60: $ | E60: 40.68 | H60: 2_GENERAL SERVICE LESS THAN 50 KW SERVICE CLASSIFICATION | M60: 2_GENERAL SERVICE LESS THAN 50 KW SERVICE CLASSIFICATION_MSC | Z60: Service Charge
B61: Rate Rider for Smart Metering Entity Charge - effective until October 31, 2018 | D61: $ | E61: 0.79 | H61: 2_GENERAL SERVICE LESS THAN 50 KW SERVICE CLASSIFICATION | M61: 2_GENERAL SERVICE LESS THAN 50 KW SERVICE CLASSIFICATION_SME | Q61: 2018-10-31 | Z61: Rate Rider for Smart Metering Entity Charge - effective until October 31, 2018
B62: Distribution Volumetric Rate | D62: $/kWh | E62: 0.0119 | H62: 2_GENERAL SERVICE LESS THAN 50 KW SERVICE CLASSIFICATION | M62: 2_GENERAL SERVICE LESS THAN 50 KW SERVICE CLASSIFICATION_DVC | Z62: Distribution Volumetric Rate
B63: Low Voltage Service Rate | D63: $/kWh | E63: 0.0002 | H63: 2_GENERAL SERVICE LESS THAN 50 KW SERVICE CLASSIFICATION | M63: 2_GENERAL SERVICE LESS THAN 50 KW SERVICE CLASSIFICATION_LV | Z63: Low Voltage Service Rate
B64: Retail Transmission Rate - Network Service Rate | D64: $/kWh | E64: 0.007585208176 | H64: 2_GENERAL SERVICE LESS THAN 50 KW SERVICE CLASSIFICATION | M64: 2_GENERAL SERVICE LESS THAN 50 KW SERVICE CLASSIFICATION_Retail Transmission Rate - Network Service Rate | Z64: Retail Transmission Rate - Network Service Rate
B65: Retail Transmission Rate - Line and Transformation Connection Service Rate | D65: $/kWh | E65: 0.005578561515 | H65: 2_GENERAL SERVICE LESS THAN 50 KW SERVICE CLASSIFICATION | M65: 2_GENERAL SERVICE LESS THAN 50 KW SERVICE CLASSIFICATION_Retail Transmission Rate - Line and Transformation Connection Service Rate | Z65: Retail Transmission Rate - Line and Transformation Connection Service Rate
B67: MONTHLY RATES AND CHARGES - Regulatory Component | H67: 2_MRC_Reg | Z67: MONTHLY RATES AND CHARGES - Regulatory Component
B69: Wholesale Market Service Rate | D69: $/kWh | E69: 0.0044 | H69: 2_GENERAL SERVICE LESS THAN 50 KW SERVICE CLASSIFICATION | M69: 2_GENERAL SERVICE LESS THAN 50 KW SERVICE CLASSIFICATION_WMSR | Z69: Wholesale Market Service Rate
B70: Rural or Remote Electricity Rate Protection Charge (RRRP) | D70: $/kWh | E70: 0.0013 | H70: 2_GENERAL SERVICE LESS THAN 50 KW SERVICE CLASSIFICATION | M70: 2_GENERAL SERVICE LESS THAN 50 KW SERVICE CLASSIFICATION_RRRP | Z70: Rural or Remote Electricity Rate Protection Charge (RRRP)
B71: Standard Supply Service - Administrative Charge (if applicable) | D71: $ | E71: 0.25 | H71: 2_GENERAL SERVICE LESS THAN 50 KW SERVICE CLASSIFICATION | M71: 2_GENERAL SERVICE LESS THAN 50 KW SERVICE CLASSIFICATION_SSS | Z71: Standard Supply Service - Administrative Charge (if applicable) | AS71: X
B72: GENERAL SERVICE 50 TO 499 KW SERVICE CLASSIFICATION | H72: 3_GENERAL SERVICE 50 TO 499 KW SERVICE CLASSIFICATION | AA72: GENERAL SERVICE 50 TO 499 KW SERVICE CLASSIFICATION
B73: This classification refers to a non-residential account whose monthly average peak demand is equal to or greater than, or is forecast to be equal to or greater than, 50 kW but less than 500 kW. Further servicing details are available in the distributor’s Conditions of Service. | H73: 3_GENERAL SERVICE 50 TO 499 KW SERVICE CLASSIFICATION | AA73: This classification refers to a non-residential account whose monthly average peak demand is equal to or greater than, or is forecast to be equal to or greater than, 50 kW but less than 500 kW. Further servicing details are available in the distributor’s Conditions of Service.
B75: APPLICATION | H75: 3_APPLICATION | AA75: APPLICATION
B77: The application of these rates and charges shall be in accordance with the Licence of the Distributor and any Code or Order of the Board, and amendments thereto as approved by the Board, which may be applicable to the administration of this schedule. | H77: 3_GENERAL SERVICE 50 TO 499 KW SERVICE CLASSIFICATION | AA77: The application of these rates and charges shall be in accordance with the Licence of the Distributor and any Code or Order of the Board, and amendments thereto as approved by the Board, which may be applicable to the administration of this schedule.
B79: No rates and charges for the distribution of electricity and charges to meet the costs of any work or service done or furnished for the purpose of the distribution of electricity shall be made except as permitted by this schedule, unless required by the Distributor’s Licence or a Code or Order of the Board, and amendments thereto as approved by the Board, or as specified herein. | H79: 3_GENERAL SERVICE 50 TO 499 KW SERVICE CLASSIFICATION | AA79: No rates and charges for the distribution of electricity and charges to meet the costs of any work or service done or furnished for the purpose of the distribution of electricity shall be made except as permitted by this schedule, unless required by the Distributor’s Licence or a Code or Order of the Board, and amendments thereto as approved by the Board, or as specified herein.
B81: Unless specifically noted, this schedule does not contain any charges for the electricity commodity, be it under the Regulated Price Plan, a contract with a retailer or the wholesale market price, as applicable. In addition, the charges in the MONTHLY RATES AND CHARGES - Regulatory Component of this schedule do not apply to a customer that is an embedded wholesale market participant. | H81: 3_GENERAL SERVICE 50 TO 499 KW SERVICE CLASSIFICATION | AA81: Unless specifically noted, this schedule does not contain any charges for the electricity commodity, be it under the Regulated Price Plan, a contract with a retailer or the wholesale market price, as applicable. In addition, the charges in the MONTHLY RATES AND CHARGES - Regulatory Component of this schedule do not apply to a customer that is an embedded wholesale market participant.
B83: It should be noted that this schedule does not list any charges, assessments, or credits that are required by law to be invoiced by a distributor and that are not subject to Board approval, such as the Debt Retirement Charge, the Global Adjustment, the Ontario Clean Energy Benefit and the HST. | H83: 3_GENERAL SERVICE 50 TO 499 KW SERVICE CLASSIFICATION | AA83: It should be noted that this schedule does not list any charges, assessments, or credits that are required by law to be invoiced by a distributor and that are not subject to Board approval, such as the Debt Retirement Charge, the Global Adjustment, the Ontario Clean Energy Benefit and the HST.
B84: Billing demands are established at the greater of 100% of the kW, or 90% of the kVa amounts. | H84: 3_GENERAL SERVICE 50 TO 499 KW SERVICE CLASSIFICATION | AA84: Billing demands are established at the greater of 100% of the kW, or 90% of the kVa amounts.
B86: MONTHLY RATES AND CHARGES - Delivery Component | H86: 3_MRC_Del | AA86: MONTHLY RATES AND CHARGES - Delivery Component
B88: Service Charge | D88: $ | E88: 71.64 | H88: 3_GENERAL SERVICE 50 TO 499 KW SERVICE CLASSIFICATION | M88: 3_GENERAL SERVICE 50 TO 499 KW SERVICE CLASSIFICATION_MSC | Z88: Service Charge
B89: Distribution Volumetric Rate | D89: $/kW | E89: 4.3118 | H89: 3_GENERAL SERVICE 50 TO 499 KW SERVICE CLASSIFICATION | M89: 3_GENERAL SERVICE 50 TO 499 KW SERVICE CLASSIFICATION_DVC | Z89: Distribution Volumetric Rate
B90: Low Voltage Service Rate | D90: $/kW | E90: 0.0802 | H90: 3_GENERAL SERVICE 50 TO 499 KW SERVICE CLASSIFICATION | M90: 3_GENERAL SERVICE 50 TO 499 KW SERVICE CLASSIFICATION_LV | Z90: Low Voltage Service Rate
B91: Retail Transmission Rate - Network Service Rate | D91: $/kW | E91: 2.927249352 | H91: 3_GENERAL SERVICE 50 TO 499 KW SERVICE CLASSIFICATION | M91: 3_GENERAL SERVICE 50 TO 499 KW SERVICE CLASSIFICATION_Retail Transmission Rate - Network Service Rate | Z91: Retail Transmission Rate - Network Service Rate
B92: Retail Transmission Rate - Line and Transformation Connection Service Rate | D92: $/kW | E92: 2.196022197 | H92: 3_GENERAL SERVICE 50 TO 499 KW SERVICE CLASSIFICATION | M92: 3_GENERAL SERVICE 50 TO 499 KW SERVICE CLASSIFICATION_Retail Transmission Rate - Line and Transformation Connection Service Rate | Z92: Retail Transmission Rate - Line and Transformation Connection Service Rate
B93: Retail Transmission Rate - Network Service Rate - Interval Metered | D93: $/kW | E93: 2.927249352 | H93: 3_GENERAL SERVICE 50 TO 499 KW SERVICE CLASSIFICATION | M93: 3_GENERAL SERVICE 50 TO 499 KW SERVICE CLASSIFICATION_Retail Transmission Rate - Network Service Rate - Interval Metered | Z93: Retail Transmission Rate - Network Service Rate - Interval Metered
B94: Retail Transmission Rate - Line and Transformation Connection Service Rate - Interval Metered | D94: $/kW | E94: 2.196022197 | H94: 3_GENERAL SERVICE 50 TO 499 KW SERVICE CLASSIFICATION | M94: 3_GENERAL SERVICE 50 TO 499 KW SERVICE CLASSIFICATION_Retail Transmission Rate - Line and Transformation Connection Service Rate - Interval Metered | Z94: Retail Transmission Rate - Line and Transformation Connection Service Rate - Interval Metered
B96: MONTHLY RATES AND CHARGES - Regulatory Component | H96: 3_MRC_Reg | Z96: MONTHLY RATES AND CHARGES - Regulatory Component
B98: Wholesale Market Service Rate | D98: $/kWh | E98: 0.0044 | H98: 3_GENERAL SERVICE 50 TO 499 KW SERVICE CLASSIFICATION | M98: 3_GENERAL SERVICE 50 TO 499 KW SERVICE CLASSIFICATION_WMSR | Z98: Wholesale Market Service Rate
B99: Rural or Remote Electricity Rate Protection Charge (RRRP) | D99: $/kWh | E99: 0.0013 | H99: 3_GENERAL SERVICE 50 TO 499 KW SERVICE CLASSIFICATION | M99: 3_GENERAL SERVICE 50 TO 499 KW SERVICE CLASSIFICATION_RRRP | Z99: Rural or Remote Electricity Rate Protection Charge (RRRP)
B100: Standard Supply Service - Administrative Charge (if applicable) | D100: $ | E100: 0.25 | H100: 3_GENERAL SERVICE 50 TO 499 KW SERVICE CLASSIFICATION | M100: 3_GENERAL SERVICE 50 TO 499 KW SERVICE CLASSIFICATION_SSS | Z100: Standard Supply Service - Administrative Charge (if applicable) | AS100: X
B101: GENERAL SERVICE 500 TO 4,999 KW SERVICE CLASSIFICATION | H101: 4_GENERAL SERVICE 500 TO 4,999 KW SERVICE CLASSIFICATION | AA101: GENERAL SERVICE 500 TO 4,999 KW SERVICE CLASSIFICATION
B102: This classification refers to a non-residential account whose monthly average peak demand is equal to or greater than, or is forecast to be equal to or greater than, 500 kW but less than 5,000 kW. Further servicing details are available in the distributor’s Conditions of Service. | H102: 4_GENERAL SERVICE 500 TO 4,999 KW SERVICE CLASSIFICATION | AA102: This classification refers to a non-residential account whose monthly average peak demand is equal to or greater than, or is forecast to be equal to or greater than, 500 kW but less than 5,000 kW. Further servicing details are available in the distributor’s Conditions of Service.
B104: APPLICATION | H104: 4_APPLICATION | AA104: APPLICATION
B106: The application of these rates and charges shall be in accordance with the Licence of the Distributor and any Code or Order of the Board, and amendments thereto as approved by the Board, which may be applicable to the administration of this schedule. | H106: 4_GENERAL SERVICE 500 TO 4,999 KW SERVICE CLASSIFICATION | AA106: The application of these rates and charges shall be in accordance with the Licence of the Distributor and any Code or Order of the Board, and amendments thereto as approved by the Board, which may be applicable to the administration of this schedule.
B108: No rates and charges for the distribution of electricity and charges to meet the costs of any work or service done or furnished for the purpose of the distribution of electricity shall be made except as permitted by this schedule, unless required by the Distributor’s Licence or a Code or Order of the Board, and amendments thereto as approved by the Board, or as specified herein. | H108: 4_GENERAL SERVICE 500 TO 4,999 KW SERVICE CLASSIFICATION | AA108: No rates and charges for the distribution of electricity and charges to meet the costs of any work or service done or furnished for the purpose of the distribution of electricity shall be made except as permitted by this schedule, unless required by the Distributor’s Licence or a Code or Order of the Board, and amendments thereto as approved by the Board, or as specified herein.
B110: Unless specifically noted, this schedule does not contain any charges for the electricity commodity, be it under the Regulated Price Plan, a contract with a retailer or the wholesale market price, as applicable. In addition, the charges in the MONTHLY RATES AND CHARGES - Regulatory Component of this schedule do not apply to a customer that is an embedded wholesale market participant. | H110: 4_GENERAL SERVICE 500 TO 4,999 KW SERVICE CLASSIFICATION | AA110: Unless specifically noted, this schedule does not contain any charges for the electricity commodity, be it under the Regulated Price Plan, a contract with a retailer or the wholesale market price, as applicable. In addition, the charges in the MONTHLY RATES AND CHARGES - Regulatory Component of this schedule do not apply to a customer that is an embedded wholesale market participant.
B112: It should be noted that this schedule does not list any charges, assessments, or credits that are required by law to be invoiced by a distributor and that are not subject to Board approval, such as the Debt Retirement Charge, the Global Adjustment, the Ontario Clean Energy Benefit and the HST. | H112: 4_GENERAL SERVICE 500 TO 4,999 KW SERVICE CLASSIFICATION | AA112: It should be noted that this schedule does not list any charges, assessments, or credits that are required by law to be invoiced by a distributor and that are not subject to Board approval, such as the Debt Retirement Charge, the Global Adjustment, the Ontario Clean Energy Benefit and the HST.
B113: Billing demands are established at the greater of 100% of the kW, or 90% of the kVa amounts. | H113: 4_GENERAL SERVICE 500 TO 4,999 KW SERVICE CLASSIFICATION | AA113: Billing demands are established at the greater of 100% of the kW, or 90% of the kVa amounts.
B115: MONTHLY RATES AND CHARGES - Delivery Component | H115: 4_MRC_Del | AA115: MONTHLY RATES AND CHARGES - Delivery Component
B117: Service Charge | D117: $ | E117: 1631.56 | H117: 4_GENERAL SERVICE 500 TO 4,999 KW SERVICE CLASSIFICATION | M117: 4_GENERAL SERVICE 500 TO 4,999 KW SERVICE CLASSIFICATION_MSC | Z117: Service Charge
B118: Distribution Volumetric Rate | D118: $/kW | E118: 2.2187 | H118: 4_GENERAL SERVICE 500 TO 4,999 KW SERVICE CLASSIFICATION | M118: 4_GENERAL SERVICE 500 TO 4,999 KW SERVICE CLASSIFICATION_DVC | Z118: Distribution Volumetric Rate
B119: Low Voltage Service Rate | D119: $/kW | E119: 0.0784 | H119: 4_GENERAL SERVICE 500 TO 4,999 KW SERVICE CLASSIFICATION | M119: 4_GENERAL SERVICE 500 TO 4,999 KW SERVICE CLASSIFICATION_LV | Z119: Low Voltage Service Rate
B120: Retail Transmission Rate - Network Service Rate - Interval Metered | D120: $/kW | E120: 2.831953498 | H120: 4_GENERAL SERVICE 500 TO 4,999 KW SERVICE CLASSIFICATION | M120: 4_GENERAL SERVICE 500 TO 4,999 KW SERVICE CLASSIFICATION_Retail Transmission Rate - Network Service Rate - Interval Metered | Z120: Retail Transmission Rate - Network Service Rate - Interval Metered
B121: Retail Transmission Rate - Line and Transformation Connection Service Rate - Interval Metered | D121: $/kW | E121: 2.148818984 | H121: 4_GENERAL SERVICE 500 TO 4,999 KW SERVICE CLASSIFICATION | M121: 4_GENERAL SERVICE 500 TO 4,999 KW SERVICE CLASSIFICATION_Retail Transmission Rate - Line and Transformation Connection Service Rate - Interval Metered | Z121: Retail Transmission Rate - Line and Transformation Connection Service Rate - Interval Metered
B123: MONTHLY RATES AND CHARGES - Regulatory Component | H123: 4_MRC_Reg | Z123: MONTHLY RATES AND CHARGES - Regulatory Component
B125: Wholesale Market Service Rate | D125: $/kWh | E125: 0.0044 | H125: 4_GENERAL SERVICE 500 TO 4,999 KW SERVICE CLASSIFICATION | M125: 4_GENERAL SERVICE 500 TO 4,999 KW SERVICE CLASSIFICATION_WMSR | Z125: Wholesale Market Service Rate
B126: Rural or Remote Electricity Rate Protection Charge (RRRP) | D126: $/kWh | E126: 0.0013 | H126: 4_GENERAL SERVICE 500 TO 4,999 KW SERVICE CLASSIFICATION | M126: 4_GENERAL SERVICE 500 TO 4,999 KW SERVICE CLASSIFICATION_RRRP | Z126: Rural or Remote Electricity Rate Protection Charge (RRRP)
B127: Standard Supply Service - Administrative Charge (if applicable) | D127: $ | E127: 0.25 | H127: 4_GENERAL SERVICE 500 TO 4,999 KW SERVICE CLASSIFICATION | M127: 4_GENERAL SERVICE 500 TO 4,999 KW SERVICE CLASSIFICATION_SSS | Z127: Standard Supply Service - Administrative Charge (if applicable) | AS127: X
B128: LARGE USE SERVICE CLASSIFICATION | H128: 5_LARGE USE SERVICE CLASSIFICATION | AA128: LARGE USE SERVICE CLASSIFICATION
B129: This classification refers to an account whose monthly average peak demand is equal to or greater than, or is forecast to be equal to or greater than, 5,000 kW. Further servicing details are available in the distributor’s Conditions of Service. | H129: 5_LARGE USE SERVICE CLASSIFICATION | AA129: This classification refers to an account whose monthly average peak demand is equal to or greater than, or is forecast to be equal to or greater than, 5,000 kW. Further servicing details are available in the distributor’s Conditions of Service.
B131: APPLICATION | H131: 5_APPLICATION | AA131: APPLICATION
B133: The application of these rates and charges shall be in accordance with the Licence of the Distributor and any Code or Order of the Board, and amendments thereto as approved by the Board, which may be applicable to the administration of this schedule. | H133: 5_LARGE USE SERVICE CLASSIFICATION | AA133: The application of these rates and charges shall be in accordance with the Licence of the Distributor and any Code or Order of the Board, and amendments thereto as approved by the Board, which may be applicable to the administration of this schedule.
B135: No rates and charges for the distribution of electricity and charges to meet the costs of any work or service done or furnished for the purpose of the distribution of electricity shall be made except as permitted by this schedule, unless required by the Distributor’s Licence or a Code or Order of the Board, and amendments thereto as approved by the Board, or as specified herein. | H135: 5_LARGE USE SERVICE CLASSIFICATION | AA135: No rates and charges for the distribution of electricity and charges to meet the costs of any work or service done or furnished for the purpose of the distribution of electricity shall be made except as permitted by this schedule, unless required by the Distributor’s Licence or a Code or Order of the Board, and amendments thereto as approved by the Board, or as specified herein.
B137: Unless specifically noted, this schedule does not contain any charges for the electricity commodity, be it under the Regulated Price Plan, a contract with a retailer or the wholesale market price, as applicable. In addition, the charges in the MONTHLY RATES AND CHARGES - Regulatory Component of this schedule do not apply to a customer that is an embedded wholesale market participant. | H137: 5_LARGE USE SERVICE CLASSIFICATION | AA137: Unless specifically noted, this schedule does not contain any charges for the electricity commodity, be it under the Regulated Price Plan, a contract with a retailer or the wholesale market price, as applicable. In addition, the charges in the MONTHLY RATES AND CHARGES - Regulatory Component of this schedule do not apply to a customer that is an embedded wholesale market participant.
B139: It should be noted that this schedule does not list any charges, assessments, or credits that are required by law to be invoiced by a distributor and that are not subject to Board approval, such as the Debt Retirement Charge, the Global Adjustment, the Ontario Clean Energy Benefit and the HST. | H139: 5_LARGE USE SERVICE CLASSIFICATION | AA139: It should be noted that this schedule does not list any charges, assessments, or credits that are required by law to be invoiced by a distributor and that are not subject to Board approval, such as the Debt Retirement Charge, the Global Adjustment, the Ontario Clean Energy Benefit and the HST.
B140: Billing demands are established at the greater of 100% of the kW, or 90% of the kVa amounts. | H140: 5_LARGE USE SERVICE CLASSIFICATION | AA140: Billing demands are established at the greater of 100% of the kW, or 90% of the kVa amounts.
B142: MONTHLY RATES AND CHARGES - Delivery Component | H142: 5_MRC_Del | AA142: MONTHLY RATES AND CHARGES - Delivery Component
B144: Service Charge | D144: $ | E144: 12864.22 | H144: 5_LARGE USE SERVICE CLASSIFICATION | M144: 5_LARGE USE SERVICE CLASSIFICATION_MSC | Z144: Service Charge
B145: Distribution Volumetric Rate | D145: $/kW | E145: 2.7539 | H145: 5_LARGE USE SERVICE CLASSIFICATION | M145: 5_LARGE USE SERVICE CLASSIFICATION_DVC | Z145: Distribution Volumetric Rate
B146: Low Voltage Service Rate | D146: $/kW | E146: 0.0838 | H146: 5_LARGE USE SERVICE CLASSIFICATION | M146: 5_LARGE USE SERVICE CLASSIFICATION_LV | Z146: Low Voltage Service Rate
B147: Retail Transmission Rate - Network Service Rate - Interval Metered | D147: $/kW | E147: 3.022011038 | H147: 5_LARGE USE SERVICE CLASSIFICATION | M147: 5_LARGE USE SERVICE CLASSIFICATION_Retail Transmission Rate - Network Service Rate - Interval Metered | Z147: Retail Transmission Rate - Network Service Rate - Interval Metered
B148: Retail Transmission Rate - Line and Transformation Connection Service Rate - Interval Metered | D148: $/kW | E148: 2.295041663 | H148: 5_LARGE USE SERVICE CLASSIFICATION | M148: 5_LARGE USE SERVICE CLASSIFICATION_Retail Transmission Rate - Line and Transformation Connection Service Rate - Interval Metered | Z148: Retail Transmission Rate - Line and Transformation Connection Service Rate - Interval Metered
B150: MONTHLY RATES AND CHARGES - Regulatory Component | H150: 5_MRC_Reg | Z150: MONTHLY RATES AND CHARGES - Regulatory Component
B152: Wholesale Market Service Rate | D152: $/kWh | E152: 0.0044 | H152: 5_LARGE USE SERVICE CLASSIFICATION | M152: 5_LARGE USE SERVICE CLASSIFICATION_WMSR | Z152: Wholesale Market Service Rate
B153: Rural or Remote Electricity Rate Protection Charge (RRRP) | D153: $/kWh | E153: 0.0013 | H153: 5_LARGE USE SERVICE CLASSIFICATION | M153: 5_LARGE USE SERVICE CLASSIFICATION_RRRP | Z153: Rural or Remote Electricity Rate Protection Charge (RRRP)
B154: Standard Supply Service - Administrative Charge (if applicable) | D154: $ | E154: 0.25 | H154: 5_LARGE USE SERVICE CLASSIFICATION | M154: 5_LARGE USE SERVICE CLASSIFICATION_SSS | Z154: Standard Supply Service - Administrative Charge (if applicable) | AS154: X
B155: UNMETERED SCATTERED LOAD SERVICE CLASSIFICATION | H155: 6_UNMETERED SCATTERED LOAD SERVICE CLASSIFICATION | AA155: UNMETERED SCATTERED LOAD SERVICE CLASSIFICATION
B156: This classification applies to an account taking electricity at 750 volts or less whose average monthly maximum demand is less than, or is forecast to be less than, 50 kW and the consumption is unmetered. The amount of electricity consumed by unmetered connections will be based on detailed information/documentation provided by the device’s manufacturer and will be agreed to by Enersource Hydro Mississauga Inc. and the customer and may be subject to periodic monitoring of actual consumption. Eligible unmetered loads include cable TV power packs, bus shelters, telephone booths, traffic lights, railway crossings. Further servicing details are available in the distributor’s Conditions of Service. | H156: 6_UNMETERED SCATTERED LOAD SERVICE CLASSIFICATION | AA156: This classification applies to an account taking electricity at 750 volts or less whose average monthly maximum demand is less than, or is forecast to be less than, 50 kW and the consumption is unmetered. The amount of electricity consumed by unmetered connections will be based on detailed information/documentation provided by the device’s manufacturer and will be agreed to by Enersource Hydro Mississauga Inc. and the customer and may be subject to periodic monitoring of actual consumption. Eligible unmetered loads include cable TV power packs, bus shelters, telephone booths, traffic lights, railway crossings. Further servicing details are available in the distributor’s Conditions of Service.
B158: APPLICATION | H158: 6_APPLICATION | AA158: APPLICATION
B160: The application of these rates and charges shall be in accordance with the Licence of the Distributor and any Code or Order of the Board, and amendments thereto as approved by the Board, which may be applicable to the administration of this schedule. | H160: 6_UNMETERED SCATTERED LOAD SERVICE CLASSIFICATION | AA160: The application of these rates and charges shall be in accordance with the Licence of the Distributor and any Code or Order of the Board, and amendments thereto as approved by the Board, which may be applicable to the administration of this schedule.
B162: No rates and charges for the distribution of electricity and charges to meet the costs of any work or service done or furnished for the purpose of the distribution of electricity shall be made except as permitted by this schedule, unless required by the Distributor’s Licence or a Code or Order of the Board, and amendments thereto as approved by the Board, or as specified herein. | H162: 6_UNMETERED SCATTERED LOAD SERVICE CLASSIFICATION | AA162: No rates and charges for the distribution of electricity and charges to meet the costs of any work or service done or furnished for the purpose of the distribution of electricity shall be made except as permitted by this schedule, unless required by the Distributor’s Licence or a Code or Order of the Board, and amendments thereto as approved by the Board, or as specified herein.
B164: Unless specifically noted, this schedule does not contain any charges for the electricity commodity, be it under the Regulated Price Plan, a contract with a retailer or the wholesale market price, as applicable. In addition, the charges in the MONTHLY RATES AND CHARGES - Regulatory Component of this schedule do not apply to a customer that is an embedded wholesale market participant. | H164: 6_UNMETERED SCATTERED LOAD SERVICE CLASSIFICATION | AA164: Unless specifically noted, this schedule does not contain any charges for the electricity commodity, be it under the Regulated Price Plan, a contract with a retailer or the wholesale market price, as applicable. In addition, the charges in the MONTHLY RATES AND CHARGES - Regulatory Component of this schedule do not apply to a customer that is an embedded wholesale market participant.
B166: It should be noted that this schedule does not list any charges, assessments, or credits that are required by law to be invoiced by a distributor and that are not subject to Board approval, such as the Debt Retirement Charge, the Global Adjustment, the Ontario Clean Energy Benefit and the HST. | H166: 6_UNMETERED SCATTERED LOAD SERVICE CLASSIFICATION | AA166: It should be noted that this schedule does not list any charges, assessments, or credits that are required by law to be invoiced by a distributor and that are not subject to Board approval, such as the Debt Retirement Charge, the Global Adjustment, the Ontario Clean Energy Benefit and the HST.
B168: MONTHLY RATES AND CHARGES - Delivery Component | H168: 6_MRC_Del | AA168: MONTHLY RATES AND CHARGES - Delivery Component
B170: Service Charge (per connection) | D170: $ | E170: 8.4 | H170: 6_UNMETERED SCATTERED LOAD SERVICE CLASSIFICATION | M170: 6_UNMETERED SCATTERED LOAD SERVICE CLASSIFICATION_MSC | Z170: Service Charge (per connection)
B171: Distribution Volumetric Rate | D171: $/kWh | E171: 0.0153 | H171: 6_UNMETERED SCATTERED LOAD SERVICE CLASSIFICATION | M171: 6_UNMETERED SCATTERED LOAD SERVICE CLASSIFICATION_DVC | Z171: Distribution Volumetric Rate
B172: Low Voltage Service Rate | D172: $/kWh | E172: 0.0002 | H172: 6_UNMETERED SCATTERED LOAD SERVICE CLASSIFICATION | M172: 6_UNMETERED SCATTERED LOAD SERVICE CLASSIFICATION_LV | Z172: Low Voltage Service Rate
B173: Retail Transmission Rate - Network Service Rate | D173: $/kWh | E173: 0.007585208176 | H173: 6_UNMETERED SCATTERED LOAD SERVICE CLASSIFICATION | M173: 6_UNMETERED SCATTERED LOAD SERVICE CLASSIFICATION_Retail Transmission Rate - Network Service Rate | Z173: Retail Transmission Rate - Network Service Rate
B174: Retail Transmission Rate - Line and Transformation Connection Service Rate | D174: $/kWh | E174: 0.005578561515 | H174: 6_UNMETERED SCATTERED LOAD SERVICE CLASSIFICATION | M174: 6_UNMETERED SCATTERED LOAD SERVICE CLASSIFICATION_Retail Transmission Rate - Line and Transformation Connection Service Rate | Z174: Retail Transmission Rate - Line and Transformation Connection Service Rate
B176: MONTHLY RATES AND CHARGES - Regulatory Component | H176: 6_MRC_Reg | Z176: MONTHLY RATES AND CHARGES - Regulatory Component
B178: Wholesale Market Service Rate | D178: $/kWh | E178: 0.0044 | H178: 6_UNMETERED SCATTERED LOAD SERVICE CLASSIFICATION | M178: 6_UNMETERED SCATTERED LOAD SERVICE CLASSIFICATION_WMSR | Z178: Wholesale Market Service Rate
B179: Rural or Remote Electricity Rate Protection Charge (RRRP) | D179: $/kWh | E179: 0.0013 | H179: 6_UNMETERED SCATTERED LOAD SERVICE CLASSIFICATION | M179: 6_UNMETERED SCATTERED LOAD SERVICE CLASSIFICATION_RRRP | Z179: Rural or Remote Electricity Rate Protection Charge (RRRP)
B180: Standard Supply Service - Administrative Charge (if applicable) | D180: $ | E180: 0.25 | H180: 6_UNMETERED SCATTERED LOAD SERVICE CLASSIFICATION | M180: 6_UNMETERED SCATTERED LOAD SERVICE CLASSIFICATION_SSS | Z180: Standard Supply Service - Administrative Charge (if applicable) | AS180: X
B181: STREET LIGHTING SERVICE CLASSIFICATION | H181: 7_STREET LIGHTING SERVICE CLASSIFICATION | AA181: STREET LIGHTING SERVICE CLASSIFICATION
B182: This classification refers to an account for roadway lighting. Street Lighting is unmetered where energy consumption is estimated based on the connected wattage and calculated hours of use using methods established by the Ontario Energy Board. Further servicing details are available in the distributor’s Conditions of Service. | H182: 7_STREET LIGHTING SERVICE CLASSIFICATION | AA182: This classification refers to an account for roadway lighting. Street Lighting is unmetered where energy consumption is estimated based on the connected wattage and calculated hours of use using methods established by the Ontario Energy Board. Further servicing details are available in the distributor’s Conditions of Service.
B184: APPLICATION | H184: 7_APPLICATION | AA184: APPLICATION
B186: The application of these rates and charges shall be in accordance with the Licence of the Distributor and any Code or Order of the Board, and amendments thereto as approved by the Board, which may be applicable to the administration of this schedule. | H186: 7_STREET LIGHTING SERVICE CLASSIFICATION | AA186: The application of these rates and charges shall be in accordance with the Licence of the Distributor and any Code or Order of the Board, and amendments thereto as approved by the Board, which may be applicable to the administration of this schedule.
B188: No rates and charges for the distribution of electricity and charges to meet the costs of any work or service done or furnished for the purpose of the distribution of electricity shall be made except as permitted by this schedule, unless required by the Distributor’s Licence or a Code or Order of the Board, and amendments thereto as approved by the Board, or as specified herein. | H188: 7_STREET LIGHTING SERVICE CLASSIFICATION | AA188: No rates and charges for the distribution of electricity and charges to meet the costs of any work or service done or furnished for the purpose of the distribution of electricity shall be made except as permitted by this schedule, unless required by the Distributor’s Licence or a Code or Order of the Board, and amendments thereto as approved by the Board, or as specified herein.
B190: Unless specifically noted, this schedule does not contain any charges for the electricity commodity, be it under the Regulated Price Plan, a contract with a retailer or the wholesale market price, as applicable. In addition, the charges in the MONTHLY RATES AND CHARGES - Regulatory Component of this schedule do not apply to a customer that is an embedded wholesale market participant. | H190: 7_STREET LIGHTING SERVICE CLASSIFICATION | AA190: Unless specifically noted, this schedule does not contain any charges for the electricity commodity, be it under the Regulated Price Plan, a contract with a retailer or the wholesale market price, as applicable. In addition, the charges in the MONTHLY RATES AND CHARGES - Regulatory Component of this schedule do not apply to a customer that is an embedded wholesale market participant.
B192: It should be noted that this schedule does not list any charges, assessments, or credits that are required by law to be invoiced by a distributor and that are not subject to Board approval, such as the Debt Retirement Charge, the Global Adjustment, the Ontario Clean Energy Benefit and the HST. | H192: 7_STREET LIGHTING SERVICE CLASSIFICATION | AA192: It should be noted that this schedule does not list any charges, assessments, or credits that are required by law to be invoiced by a distributor and that are not subject to Board approval, such as the Debt Retirement Charge, the Global Adjustment, the Ontario Clean Energy Benefit and the HST.
B194: MONTHLY RATES AND CHARGES - Delivery Component | H194: 7_MRC_Del | AA194: MONTHLY RATES AND CHARGES - Delivery Component
B196: Service Charge (per light) | D196: $ | E196: 1.41 | H196: 7_STREET LIGHTING SERVICE CLASSIFICATION | M196: 7_STREET LIGHTING SERVICE CLASSIFICATION_MSC | Z196: Service Charge (per light)
B197: Distribution Volumetric Rate | D197: $/kW | E197: 10.7732 | H197: 7_STREET LIGHTING SERVICE CLASSIFICATION | M197: 7_STREET LIGHTING SERVICE CLASSIFICATION_DVC | Z197: Distribution Volumetric Rate
B198: Low Voltage Service Rate | D198: $/kW | E198: 0.058 | H198: 7_STREET LIGHTING SERVICE CLASSIFICATION | M198: 7_STREET LIGHTING SERVICE CLASSIFICATION_LV | Z198: Low Voltage Service Rate
B199: Retail Transmission Rate - Network Service Rate | D199: $/kW | E199: 2.02706676 | H199: 7_STREET LIGHTING SERVICE CLASSIFICATION | M199: 7_STREET LIGHTING SERVICE CLASSIFICATION_Retail Transmission Rate - Network Service Rate | Z199: Retail Transmission Rate - Network Service Rate
B200: Retail Transmission Rate - Line and Transformation Connection Service Rate | D200: $/kW | E200: 1.587851711 | H200: 7_STREET LIGHTING SERVICE CLASSIFICATION | M200: 7_STREET LIGHTING SERVICE CLASSIFICATION_Retail Transmission Rate - Line and Transformation Connection Service Rate | Z200: Retail Transmission Rate - Line and Transformation Connection Service Rate
B202: MONTHLY RATES AND CHARGES - Regulatory Component | H202: 7_MRC_Reg | Z202: MONTHLY RATES AND CHARGES - Regulatory Component
B204: Wholesale Market Service Rate | D204: $/kWh | E204: 0.0044 | H204: 7_STREET LIGHTING SERVICE CLASSIFICATION | M204: 7_STREET LIGHTING SERVICE CLASSIFICATION_WMSR | Z204: Wholesale Market Service Rate
B205: Rural or Remote Electricity Rate Protection Charge (RRRP) | D205: $/kWh | E205: 0.0013 | H205: 7_STREET LIGHTING SERVICE CLASSIFICATION | M205: 7_STREET LIGHTING SERVICE CLASSIFICATION_RRRP | Z205: Rural or Remote Electricity Rate Protection Charge (RRRP)
B206: Standard Supply Service - Administrative Charge (if applicable) | D206: $ | E206: 0.25 | H206: 7_STREET LIGHTING SERVICE CLASSIFICATION | M206: 7_STREET LIGHTING SERVICE CLASSIFICATION_SSS | Z206: Standard Supply Service - Administrative Charge (if applicable) | AS206: X
B207: STANDBY POWER SERVICE CLASSIFICATION | H207: 8_STANDBY POWER SERVICE CLASSIFICATION | AA207: STANDBY POWER SERVICE CLASSIFICATION
B208: This classification refers to an account that requires Enersource Hydro Mississauga to provide distribution service on a standby basis as a back-up supply to an on-site generator. Further servicing details are available in the distributor’s Conditions of Service. | H208: 8_STANDBY POWER SERVICE CLASSIFICATION | AA208: This classification refers to an account that requires Enersource Hydro Mississauga to provide distribution service on a standby basis as a back-up supply to an on-site generator. Further servicing details are available in the distributor’s Conditions of Service.
B210: APPLICATION | H210: 8_APPLICATION | AA210: APPLICATION
B212: The application of these rates and charges shall be in accordance with the Licence of the Distributor and any Code or Order of the Board, and amendments thereto as approved by the Board, which may be applicable to the administration of this schedule. | H212: 8_STANDBY POWER SERVICE CLASSIFICATION | AA212: The application of these rates and charges shall be in accordance with the Licence of the Distributor and any Code or Order of the Board, and amendments thereto as approved by the Board, which may be applicable to the administration of this schedule.
B214: No rates and charges for the distribution of electricity and charges to meet the costs of any work or service done or furnished for the purpose of the distribution of electricity shall be made except as permitted by this schedule, unless required by the Distributor’s Licence or a Code or Order of the Board, and amendments thereto as approved by the Board, or as specified herein. | H214: 8_STANDBY POWER SERVICE CLASSIFICATION | AA214: No rates and charges for the distribution of electricity and charges to meet the costs of any work or service done or furnished for the purpose of the distribution of electricity shall be made except as permitted by this schedule, unless required by the Distributor’s Licence or a Code or Order of the Board, and amendments thereto as approved by the Board, or as specified herein.
B216: Unless specifically noted, this schedule does not contain any charges for the electricity commodity, be it under the Regulated Price Plan, a contract with a retailer or the wholesale market price, as applicable. | H216: 8_STANDBY POWER SERVICE CLASSIFICATION | AA216: Unless specifically noted, this schedule does not contain any charges for the electricity commodity, be it under the Regulated Price Plan, a contract with a retailer or the wholesale market price, as applicable.
B218: It should be noted that this schedule does not list any charges, assessments, or credits that are required by law to be invoiced by a distributor and that are not subject to Board approval, such as the Debt Retirement Charge, the Global Adjustment, the Ontario Clean Energy Benefit and the HST. | H218: 8_STANDBY POWER SERVICE CLASSIFICATION | AA218: It should be noted that this schedule does not list any charges, assessments, or credits that are required by law to be invoiced by a distributor and that are not subject to Board approval, such as the Debt Retirement Charge, the Global Adjustment, the Ontario Clean Energy Benefit and the HST.
B220: MONTHLY RATES AND CHARGES - Delivery Component | H220: 8_MRC_Del | AA220: MONTHLY RATES AND CHARGES - Delivery Component
B222: A Standby Service Charge will be applied for a month where standby power is not provided. The applicable rate is the approved Distribution Volumetric Rate of the applicable service class and is applied to gross metered demand or contracted amount, whichever is greater. A monthly administration charge of $200, for simple metering arrangements, or $500, for complex metering arrangements, will also be applied. | H222: 8_STANDBY POWER SERVICE CLASSIFICATION | Z222: A Standby Service Charge will be applied for a month where standby power is not provided. The applicable rate is the approved Distribution Volumetric Rate of the applicable service class and is applied to gross metered demand or contracted amount, whichever is greater. A monthly administration charge of $200, for simple metering arrangements, or $500, for complex metering arrangements, will also be applied. | AS222: X
B223: MICROFIT SERVICE CLASSIFICATION | H223: 9_microFIT SERVICE CLASSIFICATION | AA223: MICROFIT SERVICE CLASSIFICATION
B224: This classification applies to an electricity generation facility contracted under the Ontario Power Authority’s microFIT program and connected to the distributor’s distribution system. Further servicing details are available in the distributor’s Conditions of Service. | H224: 9_microFIT SERVICE CLASSIFICATION | AA224: This classification applies to an electricity generation facility contracted under the Ontario Power Authority’s microFIT program and connected to the distributor’s distribution system. Further servicing details are available in the distributor’s Conditions of Service.
B226: APPLICATION | H226: 9_APPLICATION | AA226: APPLICATION
B228: The application of these rates and charges shall be in accordance with the Licence of the Distributor and any Code or Order of the Board, and amendments thereto as approved by the Board, which may be applicable to the administration of this schedule. | H228: 9_microFIT SERVICE CLASSIFICATION | AA228: The application of these rates and charges shall be in accordance with the Licence of the Distributor and any Code or Order of the Board, and amendments thereto as approved by the Board, which may be applicable to the administration of this schedule.
B230: No rates and charges for the distribution of electricity and charges to meet the costs of any work or service done or furnished for the purpose of the distribution of electricity shall be made except as permitted by this schedule, unless required by the Distributor’s Licence or a Code or Order of the Board, and amendments thereto as approved by the Board, or as specified herein. | H230: 9_microFIT SERVICE CLASSIFICATION | AA230: No rates and charges for the distribution of electricity and charges to meet the costs of any work or service done or furnished for the purpose of the distribution of electricity shall be made except as permitted by this schedule, unless required by the Distributor’s Licence or a Code or Order of the Board, and amendments thereto as approved by the Board, or as specified herein.
B232: Unless specifically noted, this schedule does not contain any charges for the electricity commodity, be it under the Regulated Price Plan, a contract with a retailer or the wholesale market price, as applicable. | H232: 9_microFIT SERVICE CLASSIFICATION | AA232: Unless specifically noted, this schedule does not contain any charges for the electricity commodity, be it under the Regulated Price Plan, a contract with a retailer or the wholesale market price, as applicable.
B234: It should be noted that this schedule does not list any charges, assessments, or credits that are required by law to be invoiced by a distributor and that are not subject to Board approval, such as the Debt Retirement Charge, the Global Adjustment, the Ontario Clean Energy Benefit and the HST. | H234: 9_microFIT SERVICE CLASSIFICATION | AA234: It should be noted that this schedule does not list any charges, assessments, or credits that are required by law to be invoiced by a distributor and that are not subject to Board approval, such as the Debt Retirement Charge, the Global Adjustment, the Ontario Clean Energy Benefit and the HST.
B236: MONTHLY RATES AND CHARGES - Delivery Component | H236: 9_MRC_Del | AA236: MONTHLY RATES AND CHARGES - Delivery Component
B238: Service Charge | D238: $ | E238: 5.4 | H238: 9_microFIT SERVICE CLASSIFICATION | M238: 9_microFIT SERVICE CLASSIFICATION_MSC | Z238: Service Charge
B240: ALLOWANCES | H240: Enersource Hydro Mississauga Inc._ALLOWANCES
B241: Transformer Allowance for Ownership - per kW of billing demand/month | D241: $/kW | E241: -0.4 | Z241: Transformer Allowance for Ownership - per kW of billing demand/month
B242: Primary Metering Allowance for transformer losses - applied to measured demand and energy | D242: % | E242: -1 | Z242: Primary Metering Allowance for transformer losses - applied to measured demand and energy | AS242: X
B243: SPECIFIC SERVICE CHARGES | H243: Enersource Hydro Mississauga Inc._SSC
B245: APPLICATION | H245: 9_APPLICATION | AA245: APPLICATION
B247: The application of these rates and charges shall be in accordance with the Licence of the Distributor and any Code or Order of the Board, and amendments thereto as approved by the Board, which may be applicable to the administration of this schedule. | AA247: The application of these rates and charges shall be in accordance with the Licence of the Distributor and any Code or Order of the Board, and amendments thereto as approved by the Board, which may be applicable to the administration of this schedule.
B249: No charges to meet the costs of any work or service done or furnished for the purpose of the distribution of electricity shall be made except as permitted by this schedule, unless required by the Distributor’s Licence or a Code or Order of the Board, and amendments thereto as approved by the Board, or as specified herein. | AA249: No charges to meet the costs of any work or service done or furnished for the purpose of the distribution of electricity shall be made except as permitted by this schedule, unless required by the Distributor’s Licence or a Code or Order of the Board, and amendments thereto as approved by the Board, or as specified herein.
B251: It should be noted that this schedule does not list any charges, assessments, or credits that are required by law to be invoiced by a distributor and that are not subject to Board approval, such as the Debt Retirement Charge, the Global Adjustment, the Ontario Clean Energy Benefit and the HST.
B253: Customer Administration | H253: Enersource Hydro Mississauga Inc._CA
B254: Arrears certificate | D254: $ | E254: 15 | Z254: Arrears certificate
B255: Request for other billing information | D255: $ | E255: 15 | Z255: Request for other billing information
B256: Credit Reference/credit check (plus credit agency costs) | D256: $ | E256: 15 | Z256: Credit Reference/credit check (plus credit agency costs)
B257: Credit reference/credit check (plus credit agency costs - General Service) | D257: $ | E257: 25 | Z257: Credit reference/credit check (plus credit agency costs - General Service)
B258: Income Tax Letter | D258: $ | E258: 15 | Z258: Income Tax Letter
B259: Returned cheque (plus bank charges) | D259: $ | E259: 12.5 | Z259: Returned cheque (plus bank charges)
B260: Account set up charge/change of occupancy charge (plus credit agency costs if applicable) | D260: $ | E260: 30 | Z260: Account set up charge/change of occupancy charge (plus credit agency costs if applicable)
B261: Account set up charge/change of occupancy charge (plus credit agency costs if applicable - Residential) | D261: $ | E261: 20 | Z261: Account set up charge/change of occupancy charge (plus credit agency costs if applicable - Residential)
B262: Meter dispute charge plus Measurement Canada fees (if meter found correct) | D262: $ | E262: 10 | Z262: Meter dispute charge plus Measurement Canada fees (if meter found correct)
B263: Non-Payment of Account | H263: Enersource Hydro Mississauga Inc._NPoA
B264: Late Payment - per month | D264: % | E264: 1.5 | Z264: Late Payment - per month
B265: Late Payment - per annum | D265: % | E265: 19.56 | Z265: Late Payment - per annum
B266: Collection of account charge - no disconnection | D266: $ | E266: 9 | Z266: Collection of account charge - no disconnection
B267: Disconnect/Reconnect at meter - during regular hours | D267: $ | E267: 20 | Z267: Disconnect/Reconnect at meter - during regular hours
B268: Disconnect/Reconnect at pole - during regular hours | D268: $ | E268: 185 | Z268: Disconnect/Reconnect at pole - during regular hours
B269: Disconnect/Reconnect at pole - after regular hours | D269: $ | E269: 415 | Z269: Disconnect/Reconnect at pole - after regular hours
B271: Other
B272: Special meter reads | D272: $ | E272: 30 | Z272: Special meter reads
B273: Interval meter request change | D273: $ | E273: 40 | Z273: Interval meter request change
B274: Temporary service install & remove - overhead - no transformer | D274: $ | E274: 400 | Z274: Temporary service install & remove - overhead - no transformer
B275: Specific Charge for Access to the Power Poles - $/pole/year | D275: $ | E275: 22.35 | Z275: Specific Charge for Access to the Power Poles - $/pole/year | AS275: X
B276: RETAIL SERVICE CHARGES (if applicable) | H276: Enersource Hydro Mississauga Inc._RSC
B278: The application of these rates and charges shall be in accordance with the Licence of the Distributor and any Code or Order of the Board, and amendments thereto as approved by the Board, which may be applicable to the administration of this schedule. | AA278: The application of these rates and charges shall be in accordance with the Licence of the Distributor and any Code or Order of the Board, and amendments thereto as approved by the Board, which may be applicable to the administration of this schedule.
B280: No rates and charges for the distribution of electricity and charges to meet the costs of any work or service done or furnished for the purpose of the distribution of electricity shall be made except as permitted by this schedule, unless required by the Distributor’s Licence or a Code or Order of the Board, and amendments thereto as approved by the Board, or as specified herein. | AA280: No rates and charges for the distribution of electricity and charges to meet the costs of any work or service done or furnished for the purpose of the distribution of electricity shall be made except as permitted by this schedule, unless required by the Distributor’s Licence or a Code or Order of the Board, and amendments thereto as approved by the Board, or as specified herein.
B282: Unless specifically noted, this schedule does not contain any charges for the electricity commodity, be it under the Regulated Price Plan, a contract with a retailer or the wholesale market price, as applicable. | AA282: Unless specifically noted, this schedule does not contain any charges for the electricity commodity, be it under the Regulated Price Plan, a contract with a retailer or the wholesale market price, as applicable.
B284: It should be noted that this schedule does not list any charges, assessments, or credits that are required by law to be invoiced by a distributor and that are not subject to Board approval, such as the Debt Retirement Charge, the Global Adjustment, the Ontario Clean Energy Benefit and the HST. | AA284: It should be noted that this schedule does not list any charges, assessments, or credits that are required by law to be invoiced by a distributor and that are not subject to Board approval, such as the Debt Retirement Charge, the Global Adjustment, the Ontario Clean Energy Benefit and the HST.
B286: Retail Service Charges refer to services provided by a distributor to retailers or customers related to the supply of competitive electricity. | AA286: Retail Service Charges refer to services provided by a distributor to retailers or customers related to the supply of competitive electricity.
B287: One-time charge, per retailer, to establish the service agreement between the distributor and the retailer | D287: $ | E287: 100 | Z287: One-time charge, per retailer, to establish the service agreement between the distributor and the retailer
B288: Monthly Fixed Charge, per retailer | D288: $ | E288: 20 | Z288: Monthly Fixed Charge, per retailer
B289: Monthly Variable Charge, per customer, per retailer | D289: $/cust. | E289: 0.5 | Z289: Monthly Variable Charge, per customer, per retailer
B290: Distributor-consolidated billing monthly charge, per customer, per retailer | D290: $/cust. | E290: 0.3 | Z290: Distributor-consolidated billing monthly charge, per customer, per retailer
B291: Retailer-consolidated billing monthly credit, per customer, per retailer | D291: $/cust. | E291: -0.3 | Z291: Retailer-consolidated billing monthly credit, per customer, per retailer
B292: Service Transaction Requests (STR) | Z292: Service Transaction Requests (STR)
B293: Request fee, per request, applied to the requesting party | D293: $ | E293: 0.25 | Z293: Request fee, per request, applied to the requesting party
B294: Processing fee, per request, applied to the requesting party | D294: $ | E294: 0.5 | Z294: Processing fee, per request, applied to the requesting party
B295: Request for customer information as outlined in Section 10.6.3 and Chapter 11 of the Retail | Z295: Request for customer information as outlined in Section 10.6.3 and Chapter 11 of the Retail
B296: Settlement Code directly to retailers and customers, if not delivered electronically through the | Z296: Settlement Code directly to retailers and customers, if not delivered electronically through the
B297: Electronic Business Transaction (EBT) system, applied to the requesting party | Z297: Electronic Business Transaction (EBT) system, applied to the requesting party
B298: Up to twice a year | D298: $ | E298: no charge | Z298: Up to twice a year
... 7 more rows

Sheet 2016 List (hidden)
A1: Algoma Power Inc. | B1: JUYGF2541 | C1: Fort Erie Service Area | I1: RESIDENTIAL SERVICE CLASSIFICATION | Q1: RESIDENTIAL SERVICE CLASSIFICATION | X1: 9 | Y1: 0
A2: Atikokan Hydro Inc. | B2: PNPHZ590 | C2: Eastern Ontario Power Service Area | I2: GENERAL SERVICE LESS THAN 50 KW SERVICE CLASSIFICATION | Q2: GENERAL SERVICE LESS THAN 50 KW SERVICE CLASSIFICATION | AA2: Retail Transmission Rate - Line and Transformation Connection Service Rate
A3: Bluewater Power Distribution Corporation | B3: XTGUT701 | C3: Port Colborne Service Area | I3: GENERAL SERVICE 50 TO 499 KW SERVICE CLASSIFICATION | Q3: GENERAL SERVICE 50 TO 499 KW SERVICE CLASSIFICATION | AA3: Retail Transmission Rate - Line and Transformation Connection Service Rate - < 1,000 kW
A4: Brant County Power Inc. | B4: UUWQJ805 | I4: GENERAL SERVICE 500 TO 4,999 KW SERVICE CLASSIFICATION | Q4: GENERAL SERVICE 500 TO 4,999 KW SERVICE CLASSIFICATION | AA4: Retail Transmission Rate - Line and Transformation Connection Service Rate - Interval Metered
A5: Brantford Power Inc. | B5: PZNNT969 | C5: Former Chatham-Kent Hydro Service Area | I5: LARGE USE SERVICE CLASSIFICATION | Q5: LARGE USE SERVICE CLASSIFICATION | AA5: Retail Transmission Rate - Line and Transformation Connection Service Rate - Interval Metered (1,000 to 4,999 kW)
A6: Burlington Hydro Inc. | B6: ZJEOY915 | C6: Strathroy, Mount Brydges & Parkhill Service Area | I6: UNMETERED SCATTERED LOAD SERVICE CLASSIFICATION | Q6: UNMETERED SCATTERED LOAD SERVICE CLASSIFICATION | AA6: Retail Transmission Rate - Line and Transformation Connection Service Rate - Interval Metered < 1,000 kW
A7: Cambridge and North Dumfries Hydro Inc. | B7: ZYRAA781 | C7: Dutton Service Area | I7: STREET LIGHTING SERVICE CLASSIFICATION | Q7: STREET LIGHTING SERVICE CLASSIFICATION | AA7: Retail Transmission Rate - Line and Transformation Connection Service Rate - Interval Metered > 1,000 kW
A8: Canadian Niagara Power Inc. | B8: JKAAM766 | C8: Newbury Service Area | I8: STANDBY POWER SERVICE CLASSIFICATION | Q8: STANDBY POWER SERVICE CLASSIFICATION | AA8: Retail Transmission Rate - Line Connection Service Rate
A9: Centre Wellington Hydro Ltd. | B9: DBWGU588 | I9: microFIT SERVICE CLASSIFICATION | AA9: Retail Transmission Rate - Transformation Connection Service Rate
A10: Chapleau Public Utilities Corporation | B10: BVAPK691 | C10: Former Lakeland Power Service Area
A11: Collus PowerStream Corp. | B11: HDLEB570 | C11: Former Parry Sound Service Area
A12: Cooperative Hydro Embrun Inc. | B12: QLDGQ980
A13: E.L.K. Energy Inc. | B13: LUYWA678
A14: Enersource Hydro Mississauga Inc. | B14: JGYFI531 | D14: X
A15: Entegrus Powerlines Inc. | B15: EOHJM824
A16: EnWin Utilities Ltd. | B16: FZPIU844
A17: Erie Thames Powerlines Corporation | B17: QNGJU788
A18: Espanola Regional Hydro Distribution Corporation | B18: BSNQG716
A19: Essex Powerlines Corporation | B19: LPRSN779
A20: Festival Hydro Inc. | B20: POKMN118 | AA20: Retail Transmission Rate - Network Service Rate
A21: Fort Frances Power Corporation | B21: EWTKS545 | AA21: Retail Transmission Rate - Network Service Rate - < 1,000 kW
A22: Greater Sudbury Hydro Inc. | B22: EDDAG807 | AA22: Retail Transmission Rate - Network Service Rate - Interval Metered
A23: Grimsby Power Incorporated | B23: QPHYS721 | AA23: Retail Transmission Rate - Network Service Rate - Interval Metered (1,000 to 4,999 kW)
A24: Guelph Hydro Electric Systems Inc. | B24: MQDDV748 | AA24: Retail Transmission Rate - Network Service Rate - Interval Metered < 1,000 kW
A25: Halton Hills Hydro Inc. | B25: YBXPR652 | AA25: Retail Transmission Rate - Network Service Rate - Interval Metered > 1,000 kW
A26: Hydro 2000 Inc. | B26: WBMJZ509
A27: Hydro Hawkesbury Inc. | B27: AYIJR663
A28: Hydro One Brampton Networks Inc. | B28: AJYTR957
A29: Hydro One Remote Communities Inc. | B29: BOOEP878
A30: Hydro Ottawa Limited | B30: UKVAN878
A31: Innpower Corporation | B31: XNVZJ961
A32: Kenora Hydro Electric Corporation Ltd. | B32: ITSJJ691
A33: Kingston Hydro Corporation | B33: MVRNU555
A34: Kitchener-Wilmot Hydro Inc. | B34: TCAGT833
A35: Lakefront Utilities Inc. | B35: NLAQY849
A36: Lakeland Power Distribution Ltd. | B36: RFMXC541
A37: London Hydro Inc. | B37: JBKZC579
A38: Midland Power Utility Corporation | B38: LOMSM912
A39: Milton Hydro Distribution Inc. | B39: VJTCZ706
A40: Niagara-on-the-Lake Hydro Inc. | B40: MBDFS720
A41: Niagara Peninsula Energy Inc. | B41: DTWAA547
A42: Newmarket-Tay Power Distribution Ltd. | B42: MUTRX579
A43: Northern Ontario Wires Inc. | B43: WGEEL667
A44: Oakville Hydro Electricity Distribution Inc. | B44: NAAKJ875
A45: Orangeville Hydro Limited | B45: LQXBH875
A46: Orillia Power Distribution Corporation | B46: LDAEL764
A47: Peterborough Distribution Incorporated | B47: YZORW894
A48: PowerStream Inc. | B48: YSXZU548
A49: PUC Distribution Inc. | B49: JJJYE591
A50: Renfrew Hydro Inc. | B50: ADTUV519
A51: Rideau St. Lawrence Distribution Inc. | B51: VHODD956
A52: Sioux Lookout Hydro Inc. | B52: FFBGK901
A53: St. Thomas Energy Inc. | B53: KKSQZ614
A54: Thunder Bay Hydro Electricity Distribution Inc. | B54: SDPJQ567
A55: Tillsonburg Hydro Inc. | B55: STERM963
A56: Veridian Connections Inc. | B56: GLNWI964
A57: Wasaga Distribution Inc. | B57: JVVYM701
A58: Waterloo North Hydro Inc. | B58: RSNIL591
A59: Welland Hydro-Electric System Corp. | B59: DEDGY628
A60: Wellington North Power Inc. | B60: EGNSY840
A61: West Coast Huron Energy Inc. | B61: MJUBL587
A62: Westario Power Inc. | B62: FFLCJ629
A63: Whitby Hydro Electric Corporation | B63: AAVJP865

Sheet 3. 2015 Continuity Schedule
CA1: TRUE
CA2: TRUE
CA3: FALSE
CA4: FALSE
C12: Please complete the following continuity schedule for the following Deferral / Variance Accounts. Enter information into green cells only. COLUMN AZ has been prepopulated from the latest 2.1.7 RRR filing. If you have received approval to dispose of balances from prior years, the starting point for entries in the schedule below will be the balance sheet date as per your G/L for which you received approval. For example, if in the 2015 EDR process (CoS or IRM) you received approval for the December 31, 2013 balances, the starting point for your entries below should be the 2012 year. This will allow for the correct starting point for the 2013 opening balance columns for both principal and interest. Please refer to the footnotes for further instructions.
AZ15: **Auto-populated by Rate Generator**
E19: 2011 | O19: 2012 | Y19: 2013 | AI19: 2014 | AS19: 2015 | AW19: Projected Interest on Dec-31-14 Balances | AZ19: As of Dec 31, 2014 (RRR - 2.1.7) April 30, 2015 | BA19: Variance RRR vs. 2014 Balance (Principal + Interest)
C20: Account Descriptions | D20: Account Number | E20: Opening Principal Amounts as of Jan-1-11 | F20: Transactions Debit / (Credit) during 2011 excluding interest and adjustments 2 | G20: Board-Approved Disposition during 2011 | H20: Adjustments during 2011 - other 1 | I20: Closing Principal Balance as of Dec-31-11 | J20: Opening Interest Amounts as of Jan-1-11 | K20: Interest Jan-1 to Dec-31-11 | L20: Board-Approved Disposition during 2011 | M20: Adjustments during 2011 - other 2 | N20: Closing Interest Amounts as of Dec-31-11 | O20: Opening Principal Amounts as of Jan-1-12 | P20: Transactions Debit / (Credit) during 2012 excluding interest and adjustments 2 | Q20: Board-Approved Disposition during 2012 | R20: Adjustments during 2012 - other 1 | S20: Closing Principal Balance as of Dec-31-12 | T20: Opening Interest Amounts as of Jan-1-12 | U20: Interest Jan-1 to Dec-31-12 | V20: Board-Approved Disposition during 2012 | W20: Adjustments during 2012 - other 2 | X20: Closing Interest Amounts as of Dec-31-12 | Y20: Opening Principal Amounts as of Jan-1-13 | Z20: Transactions Debit / (Credit) during 2013 excluding interest and adjustments 2 | AA20: Board-Approved Disposition during 2013 | AB20: Adjustments during 2013 - other 1 | AC20: Closing Principal Balance as of Dec-31-13 | AD20: Opening Interest Amounts as of Jan-1-13 | AE20: Interest Jan-1 to Dec-31-13 | AF20: Board-Approved Disposition during 2013 | AG20: Adjustments during 2013 - other 2 | AH20: Closing Interest Amounts as of Dec-31-13 | AI20: Opening Principal Amounts as of Jan-1-14 | AJ20: Transactions Debit / (Credit) during 2014 excluding interest and adjustments 2 | AK20: Board-Approved Disposition during 2014 | AL20: Adjustments during 2014 - other 1 | AM20: Closing Principal Balance as of Dec-31-14 | AN20: Opening Interest Amounts as of Jan-1-14 | AO20: Interest Jan-1 to Dec-31-14 | AP20: Board-Approved Disposition during 2014 | AQ20: Adjustments during 2014 - other 2 | AR20: Closing Interest Amounts as of Dec-31-14 | AS20: Principal Disposition during 2015 - instructed by Board | AT20: Interest Disposition during 2015 - instructed by Board | AU20: Closing Principal Balances as of Dec 31, 2014 Adjusted for Dispositions during 2015 | AV20: Closing Interest Balances as of Dec 31, 2014 Adjusted for Dispositions during 2015 | AW20: Projected Interest from Jan 1, 2015 to December 31, 2015 on Dec 31, 2014 balance adjusted for disposition during 2015 3 | AX20: Projected Interest from January 1, 2016 to April 30, 2016 on Dec 31, 2014 balance adjusted for disposition during 2014 3 | AY20: Total Claim
AY22: Claim before Forecasted Transactions
C23: Group 1 Accounts
A24: 1 | C24: LV Variance Account | D24: 1550 | E24: 2000049 | F24: =1492594 -> 1492594 | I24: =E24+F24-G24+H24 -> 3492643 | J24: 11626.75 | K24: 38470 | N24: =J24+K24-L24+M24 -> 50096.75 | O24: =I24 -> 3492643 | P24: 1690690.24 | Q24: 2000049 | S24: =O24+P24-Q24+R24 -> 3183284.24 | T24: =N24 -> 50096.75 | U24: 38367.72 | V24: 43517 | X24: =T24+U24-V24+W24 -> 44947.47 | Y24: =S24 -> 3183284.24 | Z24: 804981.85 | AA24: 1492593.91 | AC24: =Y24+Z24-AA24+SUM(AB24:AB24) -> 2495672.18 | AD24: =X24 -> 44947.47 | AE24: 34705.18 | AF24: 28520.75 | AH24: =AD24+AE24-AF24+AG24 -> 51131.9 | AI24: =AC24 -> 2495672.18 | AJ24: =938908.09+1 -> 938909.09 | AK24: 1690690.02 | AM24: =AI24+AJ24-AK24+SUM(AL24:AL24) -> 1743891.25 | AN24: =AH24 -> 51131.9 | AO24: 20669.6 | AP24: 41280.14 | AR24: =AN24+AO24-AP24+AQ24 -> 30521.36 | AU24: =AM24-AS24 -> 1743891.25 | AV24: =AR24-AT24 -> 30521.36 | AW24: =(AU24*1.1%) -> 19182.80375 | AY24: =SUM(AU24:AX24) -> 1793595.414 | AZ24: 1774413 | BA24: =AZ24-SUM(AM24,AR24) -> 0.3899999994
C25: Smart Metering Entity Charge Variance | D25: 1551 | E25: 0 | F25: 0 | J25: 0 | K25: 0 | Y25: =X25 -> 0 | Z25: -36015.11 | AC25: =Y25+Z25-AA25+SUM(AB25:AB25) -> -36015.11 | AD25: =X25 -> 0 | AE25: -147.98 | AH25: -147.98 | AI25: =AC25 -> -36015.11 | AJ25: -33601.45 | AM25: -69616.56 | AN25: -147.98 | AO25: -667.98 | AP25: 0 | AR25: -815.96 | AU25: =AM25-AS25 -> -69616.56 | AV25: =AR25-AT25 -> -815.96 | AW25: =(AU25*1.1%) -> -765.78216 | AY25: =SUM(AU25:AX25) -> -71198.30216 | AZ25: -70433 | BA25: =AZ25-SUM(AM25,AR25) -> -0.48
A26: 2 | C26: RSVA - Wholesale Market Service Charge | D26: 1580 | E26: =-10401383 -> -10401383 | F26: =-7802501 -> -7802501 | I26: =E26+F26-G26+SUM(H26:H26) -> -18203884 | J26: -65884.99 | K26: -208490 | N26: =J26+K26-L26+M26 -> -274374.99 | O26: =I26 -> -18203884 | P26: -9704716.33 | Q26: -10401473 | S26: =O26+P26-Q26+SUM(R26:R26) -> -17507127.33 | T26: -274374.99 | U26: -208234.34 | V26: -231638 | X26: =T26+U26-V26+W26 -> -250971.33 | Y26: =S26 -> -17507127.33 | Z26: -4742781.74 | AA26: -7802410.54 | AC26: =Y26+Z26-AA26+SUM(AB26:AB26) -> -14447498.53 | AD26: =X26 -> -250971.33 | AE26: -209514.37 | AF26: -157435.46 | AH26: -303050.24 | AI26: =AC26 -> -14447498.53 | AJ26: -1098113.85 | AK26: -9704806 | AM26: -5840806.38 | AN26: -303050.24 | AO26: -35370.7 | AP26: -236108.65 | AR26: -102312.29 | AU26: -5840806.38 | AV26: -102312.29 | AW26: -64248.87018 | AY26: =SUM(AU26:AX26) -> -6007367.54 | AZ26: -5943119 | BA26: -0.3299999991
A27: 3 | C27: RSVA - Retail Transmission Network Charge | D27: 1584 | E27: -6212254.76 | F27: =499949 -> 499949 | I27: -5712305.76 | J27: -41547.08 | K27: -96477 | N27: -138024.08 | O27: -5712305.76 | P27: 1692258.93 | Q27: -6212255 | S27: 2192208.17 | T27: -138024.08 | U27: 10026.72 | V27: -140595 | X27: 12597.64 | Y27: 2192208.17 | Z27: 3416731.5 | AA27: 499948.11 | AC27: 5108991.56 | AD27: 12597.64 | AE27: 46249.35 | AF27: 9921.89 | AH27: 48925.1 | AI27: 5108991.56 | AJ27: 2422342.59 | AK27: 1692260 | AM27: 5839074.15 | AN27: 48925.1 | AO27: 71423.27 | AP27: 27552.22 | AR27: 92796.15 | AU27: 5839074.15 | AV27: 92796.15 | AW27: 64229.81565 | AY27: 5996100.116 | AZ27: 5931870 | BA27: -0.2999999998
A28: 4 | C28: RSVA - Retail Transmission Connection Charge | D28: 1586 | E28: -5293496 | F28: =453081 -> 453081 | I28: -4840415 | J28: -36402 | K28: -82842 | N28: -119244 | O28: -4840415 | P28: 1028935.85 | Q28: -5293496 | S28: 1482016.85 | T28: -119244 | U28: 2233.29 | V28: -120802 | X28: 3791.29 | Y28: 1482016.85 | Z28: 681957.9 | AA28: 453078 | AC28: 1710896.75 | AD28: 3791.29 | AE28: 18475.44 | AF28: 8221 | AH28: 14045.73 | AI28: 1710896.75 | AJ28: =2297465.04-2 -> 2297463.04 | AK28: 1028939 | AM28: 2979420.79 | AN28: 14045.73 | AO28: 28329.71 | AP28: 10695.4 | AR28: 31680.04 | AU28: 2979420.79 | AV28: 31680.04 | AW28: 32773.62869 | AY28: 3043874.459 | AZ28: 3011101 | BA28: 0.1699999999
A29: 5 | C29: RSVA - Power (excluding Global Adjustment) | D29: 1588 | E29: 3755373 | F29: 413948 | I29: 4169321 | J29: 17212.63 | K29: 63195.06 | N29: 80407.69 | O29: 4169321 | P29: 716651.5 | Q29: 3755373 | S29: 1130599.5 | T29: 80407.69 | U29: -11526.07 | V29: 77088 | X29: -8206.38 | Y29: 1130599.5 | Z29: -1860216.32 | AA29: 413949.51 | AC29: -1143566.33 | AD29: -8206.38 | AE29: -19173.59 | AF29: 9403.49 | AH29: -36783.46 | AI29: -1143566.33 | AJ29: =-490297.98+1 -> -490296.98 | AK29: 716650 | AM29: -2350513.31 | AN29: -36783.46 | AO29: 2506.51 | AP29: -7074.25 | AR29: -27202.7 | AU29: -2350513.31 | AV29: -27202.7 | AW29: -25855.64641 | AY29: -2403571.656 | AZ29: -2377716 | BA29: 0.01000000024
A30: 6 | C30: RSVA - Global Adjustment | D30: 1589 | E30: -22821333 | F30: 2042513 | I30: -20778820 | J30: -113282 | K30: -331638.34 | N30: -444920.34 | O30: -20778820 | P30: -2771959.94 | Q30: -22821333 | S30: -729446.94 | T30: -444920.34 | U30: -31191.42 | V30: -477146 | X30: 1034.24 | Y30: -729446.94 | Z30: 3161417.86 | AA30: 2042512.49 | AC30: 389458.43 | AD30: 1034.24 | AE30: 40514.37 | AF30: 62251.51 | AH30: -20702.9 | AI30: 389458.43 | AJ30: =7999426.66-1 -> 7999425.66 | AK30: -2771959 | AM30: 11160843.09 | AN30: -20702.9 | AO30: 59398.74 | AP30: -101964.8 | AR30: 140660.64 | AU30: 11160843.09 | AV30: 140660.64 | AW30: 122769.274 | AY30: 11424273 | AZ30: 11301504 | BA30: 0.2700000014
A31: 8 | C31: Disposition and Recovery/Refund of Regulatory Balances (2008)4 | D31: 1595_(2008) | E31: -203108 | I31: -203108 | J31: -77336 | K31: -2170 | N31: -79506 | O31: -203108 | Q31: -203108 | S31: 0 | T31: -79506 | V31: -80574 | X31: 1068 | Y31: 0 | AC31: 0 | AD31: 1068 | AF31: 1068 | AH31: 0 | AI31: 0 | AM31: 0 | AN31: 0 | AR31: 0 | AU31: 0 | AV31: 0 | AY31: 0 | AZ31: 0 | BA31: 0
A32: 9 | C32: Disposition and Recovery/Refund of Regulatory Balances (2009)4 | D32: 1595_(2009) | E32: 6321395.04 | F32: -8464147 | I32: -2142751.96 | J32: =-970358.34+69076.96 -> -901281.38 | K32: =691905.58+36647.72 -> 728553.3 | N32: -172728.08 | O32: -2142751.96 | P32: -662497.29 | S32: -2805249.25 | T32: -172728.08 | U32: 21253.34 | V32: 0 | X32: -151474.74 | Y32: -2805249.25 | Z32: -1854.49 | AC32: -2807103.74 | AD32: -151474.74 | AE32: -41243.73 | AH32: -192718.47 | AI32: -2807103.74 | AK32: -2807103.74 | AM32: 0 | AN32: -192718.47 | AP32: -192718.47 | AR32: -8.731149137e-11 | AU32: 0 | AV32: -8.731149137e-11 | AY32: -8.731149137e-11 | AZ32: 0 | BA32: 8.731149137e-11
A33: 9 | C33: Disposition and Recovery/Refund of Regulatory Balances (2010)4 | D33: 1595_(2010) | E33: 0 | F33: 0 | I33: 0 | J33: 0 | N33: 0 | O33: 0 | P33: 16473029.02 | Q33: 39120922.39 | S33: -22647893.37 | T33: 0 | U33: 92362.91 | V33: 982233.3 | X33: -889870.39 | Y33: -22647893.37 | Z33: 18966816.4 | AC33: -3681076.97 | AD33: -889870.39 | AE33: 236847.88 | AH33: -653022.51 | AI33: -3681076.97 | AJ33: 1560914.15 | AM33: -2120162.82 | AN33: -653022.51 | AO33: 3820.14 | AR33: -649202.37 | AU33: -2120162.82 | AV33: -649202.37 | AW33: -23321.79102 | AY33: -2792686.981 | AZ33: -2769365 | BA33: 0.1900000027
A34: 9 | C34: Disposition and Recovery/Refund of Regulatory Balances (2011)4 | D34: 1595_(2011) | E34: 0 | F34: 0 | I34: 0 | J34: 0 | N34: 0 | O34: 0 | S34: 0 | T34: 0 | X34: 0 | Y34: 0 | Z34: 2675.19 | AC34: =Y34+Z34-AA34+SUM(AB34:AB34) -> 2675.19 | AD34: 0 | AE34: -5660 | AH34: -5660 | AI34: 2675.19 | AJ34: =377.82+1 -> 378.82 | AM34: 3054.01 | AN34: -5660 | AO34: 23.5 | AR34: -5636.5 | AU34: 3054.01 | AV34: -5636.5 | AW34: 33.59411 | AY34: =IF(CA1=TRUE, SUM(AU34:AX34), 0) -> -2548.89589 | AZ34: -2582 | BA34: 0.49
A35: 9 | C35: Disposition and Recovery/Refund of Regulatory Balances (2012)4 | D35: 1595_(2012) | E35: 0 | F35: 0 | I35: 0 | J35: 0 | N35: 0 | O35: 0 | S35: 0 | T35: =N35 -> 0 | X35: 0 | Y35: =S35 -> 0 | AC35: =Y35+Z35-AA35+SUM(AB35:AB35) -> 0 | AD35: 0 | AH35: =AD35+AE35-AF35+AG35 -> 0 | AI35: =AC35 -> 0 | AJ35: 9885176.98 | AK35: 10153475 | AM35: -268298.02 | AN35: 0 | AO35: 383549.67 | AP35: 458332.08 | AR35: =AN35+AO35-AP35+AQ35 -> -74782.41 | AU35: -268298.02 | AV35: -74782.41 | AW35: -2951.27822 | AY35: =IF(CA2=TRUE, SUM(AU35:AX35), 0) -> -346031.7082 | AZ35: -343080 | BA35: 0.4299999995
C36: Disposition and Recovery/Refund of Regulatory Balances (2013)4 | D36: 1595_(2013) | E36: 0 | F36: 0 | I36: 0 | J36: 0 | N36: 0 | O36: 0 | S36: =O36+P36-Q36+SUM(R36:R36) -> 0 | T36: =N36 -> 0 | X36: =T36+U36-V36+W36 -> 0 | Y36: =S36 -> 0 | AC36: =Y36+Z36-AA36+SUM(AB36:AB36) -> 0 | AD36: =X36 -> 0 | AH36: =AD36+AE36-AF36+AG36 -> 0 | AI36: =AC36 -> 0 | AM36: =AI36+AJ36-AK36+SUM(AL36:AL36) -> 0 | AN36: =AH36 -> 0 | AR36: =AN36+AO36-AP36+AQ36 -> 0 | AU36: =AM36-AS36 -> 0 | AV36: =AR36-AT36 -> 0 | AY36: =IF(CA3=TRUE, SUM(AU36:AX36), 0) -> 0 | AZ36: 0 | BA36: 0
C37: Disposition and Recovery/Refund of Regulatory Balances (2014)4 Not to be disposed of unless rate rider has expired and balance has been audited | D37: 1595_(2014) | E37: 0 | F37: 0 | I37: 0 | J37: 0 | N37: 0 | O37: 0 | S37: 0 | T37: 0 | X37: 0 | Y37: 0 | AC37: 0 | AD37: 0 | AH37: 0 | AI37: 0 | AM37: 0 | AN37: 0 | AR37: 0 | AU37: =AM37-AS37 -> 0 | AV37: =AR37-AT37 -> 0 | AY37: =IF(CA4=TRUE, SUM(AU37:AX37), 0) -> 0 | AZ37: 0 | BA37: 0
C39: RSVA - Global Adjustment | D39: 1589 | E39: =E30 -> -22821333 | F39: 2042513 | G39: 0 | H39: 0 | I39: -20778820 | J39: -113282 | K39: -331638.34 | L39: 0 | M39: 0 | N39: -444920.34 | O39: -20778820 | P39: -2771959.94 | Q39: =Q30 -> -22821333 | R39: 0 | S39: -729446.94 | T39: -444920.34 | U39: -31191.42 | V39: -477146 | W39: 0 | X39: 1034.24 | Y39: -729446.94 | Z39: 3161417.86 | AA39: 2042512.49 | AB39: 0 | AC39: 389458.43 | AD39: 1034.24 | AE39: 40514.37 | AF39: 62251.51 | AG39: 0 | AH39: -20702.9 | AI39: 389458.43 | AJ39: 7999425.66 | AK39: -2771959 | AL39: 0 | AM39: 11160843.09 | AN39: -20702.9 | AO39: 59398.74 | AP39: -101964.8 | AQ39: 0 | AR39: 140660.64 | AS39: 0 | AT39: 0 | AU39: 11160843.09 | AV39: 140660.64 | AW39: 122769.274 | AX39: 0 | AY39: 11424273 | AZ39: 11301504 | BA39: 0.2700000014
C40: Total Group 1 Balance excluding Account 1589 - Global Adjustment | E40: =SUM(E26:E29,E31:E37, E24) -> -10033424.72 | F40: =SUM(F26:F29,F31:F37, F24) -> -13407076 | G40: =SUM(G26:G29,G31:G37, G24) -> 0 | H40: 0 | I40: -23440500.72 | J40: -1093612.07 | K40: 440239.36 | L40: 0 | M40: 0 | N40: =SUM(N26:N29,N31:N37, N24) -> -653372.71 | O40: =SUM(O26:O29,O31:O37, O24) -> -23440500.72 | P40: =SUM(P26:P29,P31:P37, P24) -> 11234351.92 | Q40: =SUM(Q26:Q29,Q31:Q37, Q24) -> 22766012.39 | R40: 0 | S40: -34972161.19 | T40: -653372.71 | U40: -55516.43 | V40: 529229.3 | W40: 0 | X40: -1238118.44 | Y40: =SUM(Y26:Y29,Y31:Y37, Y24:Y25) -> -34972161.19 | Z40: =SUM(Z26:Z29,Z31:Z37, Z24:Z25) -> 17232295.18 | AA40: -4942841.01 | AB40: 0 | AC40: -12797025 | AD40: -1238118.44 | AE40: 60538.18 | AF40: -100300.33 | AG40: 0 | AH40: -1077279.93 | AI40: -12797025 | AJ40: 15483172.39 | AK40: 2770104.28 | AL40: 0 | AM40: -83956.89 | AN40: -1077279.93 | AO40: 474283.72 | AP40: 101958.47 | AQ40: 0 | AR40: -704954.68 | AS40: 0 | AT40: 0 | AU40: -83956.89 | AV40: -704954.68 | AW40: -923.52579 | AX40: 0 | AY40: -789835.0958 | AZ40: =SUM(AZ26:AZ29,AZ31:AZ37, AZ24:AZ25) -> -788911 | BA40: 0.570000003
C41: Total Group 1 Balance | E41: =SUM(E26:E37, E24) -> -32854757.72 | F41: =SUM(F26:F37, F24) -> -11364563 | G41: 0 | H41: 0 | I41: -44219320.72 | J41: -1206894.07 | K41: 108601.02 | L41: 0 | M41: =SUM(M26:M37, M24) -> 0 | N41: =SUM(N24:N37) -> -1098293.05 | O41: =SUM(O26:O37, O24) -> -44219320.72 | P41: =SUM(P26:P37, P24) -> 8462391.98 | Q41: =SUM(Q26:Q37, Q24) -> -55320.61 | R41: 0 | S41: -35701608.13 | T41: -1098293.05 | U41: -86707.85 | V41: 52083.3 | W41: 0 | X41: -1237084.2 | Y41: =SUM(Y26:Y37, Y24:Y25) -> -35701608.13 | Z41: =SUM(Z26:Z37, Z24:Z25) -> 20393713.04 | AA41: -2900328.52 | AB41: 0 | AC41: -12407566.57 | AD41: -1237084.2 | AE41: 101052.55 | AF41: -38048.82 | AG41: 0 | AH41: -1097982.83 | AI41: -12407566.57 | AJ41: 23482598.05 | AK41: -1854.72 | AL41: 0 | AM41: 11076886.2 | AN41: -1097982.83 | AO41: 533682.46 | AP41: -6.33 | AQ41: 0 | AR41: -564294.04 | AS41: 0 | AT41: 0 | AU41: 11076886.2 | AV41: -564294.04 | AW41: 121845.7482 | AX41: 0 | AY41: 10634437.91 | AZ41: =SUM(AZ26:AZ37, AZ24:AZ25) -> 10512593 | BA41: =SUM(BA26:BA37, BA24:BA25) -> 0.8400000044
C43: LRAM Variance Account (only input amounts if applying for disposition of this account) | D43: 1568 | I43: =E43+F43-G43+SUM(H43:H43) -> 0 | N43: =J43+K43-L43+M43 -> 0 | P43: 399442.86 | S43: =O43+P43-Q43+SUM(R43:R43) -> 399442.86 | T43: 380 | X43: =T43+U43-V43+W43 -> 380 | Y43: =S43 -> 399442.86 | Z43: -338024.2 | AC43: =Y43+Z43-AA43+SUM(AB43:AB43) -> 61418.66 | AD43: =X43 -> 380 | AE43: 5488 | AH43: =AD43+AE43-AF43+AG43 -> 5868 | AI43: =AC43 -> 61418.66 | AJ43: 12856.94 | AM43: =AI43+AJ43-AK43+SUM(AL43:AL43) -> 74275.6 | AN43: =AH43 -> 5868 | AO43: 688.53 | AR43: =AN43+AO43-AP43+AQ43 -> 6556.53 | AS43: 0 | AT43: 0 | AU43: =AM43-AS43 -> 74275.6 | AV43: =AR43-AT43 -> 6556.53 | AW43: =(AU43*1.1%) -> 817.0316 | AY43: =SUM(AU43:AX43) -> 81649.1616 | AZ43: 80832 | BA43: =AZ43-SUM(AM43,AR43) -> -0.13
C45: Total including Account 1568 | E45: =E43+E41 -> -32854757.72 | F45: =F43+F41 -> -11364563 | G45: 0 | H45: 0 | I45: -44219320.72 | J45: -1206894.07 | K45: 108601.02 | L45: 0 | M45: 0 | N45: -1098293.05 | O45: -44219320.72 | P45: 8861834.84 | Q45: -55320.61 | R45: 0 | S45: -35302165.27 | T45: -1097913.05 | U45: -86707.85 | V45: 52083.3 | W45: 0 | X45: -1236704.2 | Y45: -35302165.27 | Z45: 20055688.84 | AA45: -2900328.52 | AB45: 0 | AC45: -12346147.91 | AD45: -1236704.2 | AE45: 106540.55 | AF45: -38048.82 | AG45: 0 | AH45: -1092114.83 | AI45: -12346147.91 | AJ45: 23495454.99 | AK45: -1854.72 | AL45: 0 | AM45: 11151161.8 | AN45: -1092114.83 | AO45: 534370.99 | AP45: -6.33 | AQ45: 0 | AR45: -557737.51 | AS45: 0 | AT45: 0 | AU45: 11151161.8 | AV45: -557737.51 | AW45: 122662.7798 | AX45: 0 | AY45: 10716087.07 | AZ45: 10593425 | BA45: 0.7100000044
C48: For all Board-Approved dispositions, please ensure that the disposition amount has the same sign (e.g: debit balances are to have a positive figure and credit balance are to have a negative figure) as per the related Board decision.
B51: 1 | C51: Please provide explanations for the nature of the adjustments. If the adjustment relates to previously Board Approved disposed balances, please provide amounts for adjustments and include supporting documentations.
B52: 2 | C52: For RSVA accounts only, report the net variance to the account during the year. For all other accounts, record the transactions during the year.
B53: 3 | C53: If the LDC’s rate year begins on January 1, 2016, the projected interest is recorded from January 1, 2015 to December 31, 2015 on the December 31, 2014 balances adjusted for the disposed balances approved by the Board in the 2015 rate decision. If the LDC’s rate year begins on May 1, 2016, the projected interest is recorded from January 1, 2015 to April 30, 2016 on the December 31, 2014 balances adjusted for the disposed interest balances approved by the Board in the 2015 rate decision.
B54: 4 | C54: Include Account 1595 as part of Group 1 accounts (lines 31-37) for review and disposition if the recovery (or refund) period has been completed. If the recovery (or refund) period has not been completed, do not include the respective balance in Account 1595 for disposition at this time.

Sheet 4. Billing Det. for Def-Var
AA1: =IF(#REF!="YES", "YES", "NO") ->  | AZ1: FALSE
C14: ** Auto Populated by Rate Generator from most recent RRR Filing ** | K14: ** Applicant to Enter ** | P14: ** Applicant to Enter ** | X14: ** Auto Populated**
C15: Total Metered kWh | D15: Total Metered kW | E15: Billed kWh for Non-RPP Customers | F15: Estimated kW for Non-RPP Customers | G15: Billed kWh for Wholesale Market Participants (WMP) | H15: Billed kW for Wholesale Market Participants (WMP) | I15: Total Metered kWh less WMP consumption (if applicable) | J15: Total Metered kW less WMP consumption (if applicable) | K15: GA Allocator for Class A, Non-WMP Customers (if applicable)4 | L15: Billed kWh for Class A, Non-WMP Customers (if applicable) | M15: Billed kW for Class A, Non-WMP Customers (if applicable) | N15: Billed kWh for Non-RPP Customers LESS Class A Consumption | O15: Billed kW for Non-RPP Customers LESS Class A Demand | P15: 1595 Recovery Share Proportion (2008) 1 | Q15: 1595 Recovery Share Proportion (2009) 1 | R15: 1595 Recovery Share Proportion (2010) 1 | S15: 1595 Recovery Share Proportion (2011) 1 | T15: 1595 Recovery Share Proportion (2012) 1 | U15: 1595 Recovery Share Proportion (2013) 1 | V15: 1595 Recovery Share Proportion (2014) 1 | W15: 1568 LRAM Variance Account Class Allocation ($ amounts) | X15: Number of Customers for Residential and GS<50 classes3
A16: Rate Class | B16: Unit
A17: RESIDENTIAL SERVICE CLASSIFICATION | B17: kWh | C17: 1469096847 | D17: 0 | E17: 91130679 | F17: 0 | G17: 0 | H17: 0 | I17: =C17-G17 -> 1469096847 | J17: =D17-H17 -> 0 | L17: 0 | M17: 0 | N17: =E17-L17 -> 91130679 | O17: =F17-M17 -> 0 | X17: 179407
A18: GENERAL SERVICE LESS THAN 50 KW SERVICE CLASSIFICATION | B18: kWh | C18: 647112058 | D18: 0 | E18: 107176499 | F18: 0 | G18: 0 | H18: 0 | I18: =C18-G18 -> 647112058 | J18: =D18-H18 -> 0 | L18: 0 | M18: 0 | N18: =E18-L18 -> 107176499 | O18: =F18-M18 -> 0 | X18: 17872
A19: GENERAL SERVICE 50 TO 499 KW SERVICE CLASSIFICATION | B19: kW | C19: 2104160255 | D19: 6035821 | E19: 1752950269 | F19: 5050207 | G19: 307920 | H19: 12796 | I19: =C19-G19 -> 2103852335 | J19: =D19-H19 -> 6023025 | N19: =E19-L19 -> 1752950269 | O19: =F19-M19 -> 5050207
A20: GENERAL SERVICE 500 TO 4,999 KW SERVICE CLASSIFICATION | B20: kW | C20: 2087036250 | D20: 4709432 | E20: 1904049776 | F20: 4321176 | G20: 17469875 | H20: 31090 | I20: =C20-G20 -> 2069566375 | J20: =D20-H20 -> 4678342 | N20: =E20-L20 -> 1904049776 | O20: =F20-M20 -> 4321176
A21: LARGE USE SERVICE CLASSIFICATION | B21: kW | C21: 1002165608 | D21: 1741184 | E21: 1002165608 | F21: 1741184 | G21: 0 | H21: 0 | I21: =C21-G21 -> 1002165608 | J21: =D21-H21 -> 1741184 | L21: 920433360.3 | M21: 1579942 | N21: =E21-L21 -> 81732247.68 | O21: =F21-M21 -> 161242
A22: UNMETERED SCATTERED LOAD SERVICE CLASSIFICATION | B22: kWh | C22: 11501822 | D22: 0 | E22: 523144 | F22: 0 | G22: 0 | H22: 0 | I22: =C22-G22 -> 11501822 | J22: =D22-H22 -> 0 | L22: 0 | M22: 0 | N22: =E22-L22 -> 523144 | O22: =F22-M22 -> 0
A23: STREET LIGHTING SERVICE CLASSIFICATION | B23: kW | C23: 31923315 | D23: 90307 | E23: 31923315 | F23: 90307 | G23: 0 | H23: 0 | I23: =C23-G23 -> 31923315 | J23: =D23-H23 -> 90307 | K23: 0 | L23: 0 | M23: 0 | N23: =E23-L23 -> 31923315 | O23: =F23-M23 -> 90307
A24: STANDBY POWER SERVICE CLASSIFICATION | B24: kW | C24: 0 | D24: 0 | E24: 0 | F24: 0 | G24: 0 | H24: 0 | I24: =C24-G24 -> 0 | J24: =D24-H24 -> 0 | N24: =E24-L24 -> 0 | O24: =F24-M24 -> 0
B25: Total | C25: =SUM($C$17:$C$24) -> 7352996155 | D25: =SUM($D$17:$D$24) -> 12576744 | E25: =SUM($E$17:$E$24) -> 4889919290 | F25: =SUM($F$17:$F$24) -> 11202874 | G25: =SUM($G$17:$G$24) -> 17777795 | H25: =SUM($H$17:$H$24) -> 43886 | I25: =SUM($I$17:$I$24) -> 7335218360 | J25: =SUM($J$17:$J$24) -> 12532858 | K25: =SUM($K$17:$K$24) -> 0 | L25: =SUM($L$17:$L$24) -> 920433360.3 | M25: =SUM($M$17:$M$24) -> 1579942 | N25: =SUM($N$17:$N$24) -> 3969485930 | O25: =SUM($O$17:$O$24) -> 9622932 | P25: =SUM($P$17:$P$24) -> 0 | Q25: =SUM($Q$17:$Q$24) -> 0 | R25: =SUM($R$17:$R$24) -> 0 | S25: =SUM($S$17:$S$24) -> 0 | T25: =SUM($T$17:$T$24) -> 0 | U25: =SUM($U$17:$U$24) -> 0 | V25: =SUM($V$17:$V$24) -> 0 | W25: =SUM($W$17:$W$24) -> 0 | X25: =SUM($X$17:$X$24) -> 197279
A27: Threshold Test | U27: 1568 Account Balance from Continuity Schedule | W27: ='3. 2015 Continuity Schedule'!AY43 -> 81649.1616
A28: Total Claim (including Account 1568) | C28: 10634437.91 | U28: =IF(W27=W25,"Total Balance of Account 1568 in Column W matches the amount entered on the Continuity Schedule","Total Balance of Account 1568 in Column W DOES NOT MATCH the amount entered on the Continuity Schedule") -> Total Balance of Account 1568 in Column W DOES NOT MATCH the amount entered on the Continuity Schedule
A29: Total Claim for Threshold Test (All Group 1 Accounts) | C29: 10716087.07
A30: Threshold Test (Total claim per kWh) 2 | C30: ='3. 2015 Continuity Schedule'!AY41/C25 -> 0.001446272742
A32: Account 1589 Memo Calculation | C32: ='3. 2015 Continuity Schedule'!AY30/N25 -> 0.002878023302 | D32: Balance in Account 1589 divided by Non-RPP kWh less Class A kWh (column N)
A34: 1 Residual Account balance to be allocated to rate classes in proportion to the recovery share as established when rate riders were implemented.
A35: 2 The Threshold Test does not include the amount in 1568.
A36: 3 The proportion of customers for the Residential and GS<50 Classes will be used to allocate Account 1551.
A37: 4 Enter the percentage of the balance in account 1589 allocated to Class A customers. Distributors typically settle GA costs with Class A customers on the basis of actual (i.e. non-estimated) costs. If this is the case, no amount of the balance in 1589 should be allocated to a distributor’s Class A customers.

Sheet 2.1.5 RetailerConsumptionData (hidden)
A2: 215_RetailerCustomerConsumption_Detail
A3: Filing_Year | B3: Company_Name | C3: combined | D3: WMP? | E3: Class A? | F3: Rate_Class | G3: Rate_Class_Detail | H3: Metered_consumption_in_kWhs | I3: Metered_consumption_in_kWs
A4: 2015 | B4: Algoma Power Inc. | C4: =IF(ISERROR(FIND("WMP",G4))=TRUE, UPPER(B4)&"_"&UPPER(G4)&" "&"SERVICE CLASSIFICATION", UPPER(B4)&"_"&UPPER(LEFT(G4,FIND(" -",G4)-1))&" SERVICE CLASSIFICATION") -> ALGOMA POWER INC._RESIDENTIAL - R2 SERVICE CLASSIFICATION | D4: =IF(ISERROR(FIND("- WMP", G4))=TRUE, "NON WMP", "WMP") -> NON WMP | E4: =IF(ISERROR(FIND("- Class A", G4))=TRUE, "NON CLASS A", "CLASS A") -> NON CLASS A | F4: General Service >= 50 kW | G4: Residential - R2 | H4: 4132638 | I4: 9971
A5: 2015 | B5: Algoma Power Inc. | C5: ALGOMA POWER INC._RESIDENTIAL - R1 SERVICE CLASSIFICATION | D5: =IF(ISERROR(FIND("- WMP", G5))=TRUE, "NON WMP", "WMP") -> NON WMP | E5: =IF(ISERROR(FIND("- Class A", G5))=TRUE, "NON CLASS A", "CLASS A") -> NON CLASS A | F5: Residential | G5: Residential - R1 | H5: 3115917 | I5: 0
A6: 2015 | B6: Algoma Power Inc. | C6: ALGOMA POWER INC._SEASONAL CUSTOMERS SERVICE CLASSIFICATION | D6: NON WMP | E6: NON CLASS A | F6: Residential | G6: Seasonal Customers | H6: 59675 | I6: 0
A7: 2015 | B7: Algoma Power Inc. | C7: ALGOMA POWER INC._STREET LIGHTING SERVICE CLASSIFICATION | D7: NON WMP | E7: NON CLASS A | F7: Street Lighting Connections | G7: Street Lighting | H7: 216518 | I7: 0
A8: 2015 | B8: Atikokan Hydro Inc. | C8: ATIKOKAN HYDRO INC._GENERAL SERVICE LESS THAN 50 KW SERVICE CLASSIFICATION | D8: NON WMP | E8: NON CLASS A | F8: General Service < 50 kW | G8: General Service Less Than 50 kW | H8: 141664 | I8: 0
A9: 2015 | B9: Atikokan Hydro Inc. | C9: ATIKOKAN HYDRO INC._GENERAL SERVICE 50 TO 499 KW SERVICE CLASSIFICATION | D9: NON WMP | E9: NON CLASS A | F9: General Service >= 50 kW | G9: General Service 50 to 499 kW | H9: 753000 | I9: 1937
A10: 2015 | B10: Atikokan Hydro Inc. | C10: ATIKOKAN HYDRO INC._RESIDENTIAL SERVICE CLASSIFICATION | D10: NON WMP | E10: NON CLASS A | F10: Residential | G10: Residential | H10: 211125 | I10: 0
A11: 2015 | B11: Atikokan Hydro Inc. | C11: ATIKOKAN HYDRO INC._STREET LIGHTING SERVICE CLASSIFICATION | D11: NON WMP | E11: NON CLASS A | F11: Street Lighting Connections | G11: Street Lighting | H11: 0 | I11: 0
A12: 2015 | B12: Bluewater Power Distribution Corporation | C12: BLUEWATER POWER DISTRIBUTION CORPORATION_GENERAL SERVICE LESS THAN 50 KW SERVICE CLASSIFICATION | D12: NON WMP | E12: NON CLASS A | F12: General Service < 50 kW | G12: General Service Less Than 50 kW | H12: 12494018 | I12: 0
A13: 2015 | B13: Bluewater Power Distribution Corporation | C13: BLUEWATER POWER DISTRIBUTION CORPORATION_GENERAL SERVICE 1,000 TO 4,999 KW SERVICE CLASSIFICATION | D13: NON WMP | E13: NON CLASS A | F13: General Service >= 50 kW | G13: General Service 1,000 to 4,999 kW | H13: 17772268 | I13: 31448
A14: 2015 | B14: Bluewater Power Distribution Corporation | C14: BLUEWATER POWER DISTRIBUTION CORPORATION_GENERAL SERVICE 50 TO 999 KW SERVICE CLASSIFICATION | D14: NON WMP | E14: NON CLASS A | F14: General Service >= 50 kW | G14: General Service 50 to 999 kW - non WMP | H14: 28303303 | I14: 102145
A15: 2015 | B15: Bluewater Power Distribution Corporation | C15: BLUEWATER POWER DISTRIBUTION CORPORATION_GENERAL SERVICE 50 TO 999 KW SERVICE CLASSIFICATION | D15: WMP | E15: NON CLASS A | F15: General Service >= 50 kW | G15: General Service 50 to 999 kW - WMP | H15: 0 | I15: 0
A16: 2015 | B16: Bluewater Power Distribution Corporation | C16: BLUEWATER POWER DISTRIBUTION CORPORATION_LARGE USE SERVICE CLASSIFICATION | D16: NON WMP | E16: NON CLASS A | F16: Large User | G16: Large Use - non WMP | H16: 0 | I16: 0
A17: 2015 | B17: Bluewater Power Distribution Corporation | C17: BLUEWATER POWER DISTRIBUTION CORPORATION_LARGE USE SERVICE CLASSIFICATION | D17: WMP | E17: NON CLASS A | F17: Large User | G17: Large Use - WMP | H17: 0 | I17: 0
A18: 2015 | B18: Bluewater Power Distribution Corporation | C18: BLUEWATER POWER DISTRIBUTION CORPORATION_RESIDENTIAL SERVICE CLASSIFICATION | D18: NON WMP | E18: NON CLASS A | F18: Residential | G18: Residential | H18: 17549533 | I18: 0
A19: 2015 | B19: Bluewater Power Distribution Corporation | C19: BLUEWATER POWER DISTRIBUTION CORPORATION_SENTINEL LIGHTING SERVICE CLASSIFICATION | D19: NON WMP | E19: NON CLASS A | F19: Sentinel Lighting Connections | G19: Sentinel Lighting | H19: 23105 | I19: 0
A20: 2015 | B20: Bluewater Power Distribution Corporation | C20: BLUEWATER POWER DISTRIBUTION CORPORATION_STREET LIGHTING SERVICE CLASSIFICATION | D20: NON WMP | E20: NON CLASS A | F20: Street Lighting Connections | G20: Street Lighting | H20: 0 | I20: 0
A21: 2015 | B21: Bluewater Power Distribution Corporation | C21: BLUEWATER POWER DISTRIBUTION CORPORATION_UNMETERED SCATTERED LOAD SERVICE CLASSIFICATION | D21: NON WMP | E21: NON CLASS A | F21: Unmetered Scattered Load Connections | G21: Unmetered Scattered Load | H21: 0 | I21: 0
A22: 2015 | B22: Brant County Power Inc. | C22: BRANT COUNTY POWER INC._GENERAL SERVICE LESS THAN 50 KW SERVICE CLASSIFICATION | D22: NON WMP | E22: NON CLASS A | F22: General Service < 50 kW | G22: General Service Less Than 50 kW | H22: 5720407 | I22: 145
A23: 2015 | B23: Brant County Power Inc. | C23: BRANT COUNTY POWER INC._GENERAL SERVICE 50 TO 4,999 KW SERVICE CLASSIFICATION | D23: NON WMP | E23: NON CLASS A | F23: General Service >= 50 kW | G23: General Service 50 to 4,999 kW | H23: 24758738 | I23: 70319
A24: 2015 | B24: Brant County Power Inc. | C24: BRANT COUNTY POWER INC._RESIDENTIAL SERVICE CLASSIFICATION | D24: NON WMP | E24: NON CLASS A | F24: Residential | G24: Residential | H24: 3427526 | I24: 0
A25: 2015 | B25: Brant County Power Inc. | C25: BRANT COUNTY POWER INC._SENTINEL LIGHTING SERVICE CLASSIFICATION | D25: NON WMP | E25: NON CLASS A | F25: Sentinel Lighting Connections | G25: Sentinel Lighting | H25: 21428 | I25: 65
A26: 2015 | B26: Brant County Power Inc. | C26: BRANT COUNTY POWER INC._STREET LIGHTING SERVICE CLASSIFICATION | D26: NON WMP | E26: NON CLASS A | F26: Street Lighting Connections | G26: Street Lighting | H26: 1696635 | I26: 4770
A27: 2015 | B27: Brant County Power Inc. | C27: BRANT COUNTY POWER INC._UNMETERED SCATTERED LOAD SERVICE CLASSIFICATION | D27: NON WMP | E27: NON CLASS A | F27: Unmetered Scattered Load Connections | G27: Unmetered Scattered Load | H27: 224400 | I27: 0
A28: 2015 | B28: Brantford Power Inc. | C28: BRANTFORD POWER INC._EMBEDDED DISTRIBUTOR SERVICE CLASSIFICATION | D28: NON WMP | E28: NON CLASS A | F28: Embedded Distributor(s) | G28: Embedded Distributor | H28: 0 | I28: 0
A29: 2015 | B29: Brantford Power Inc. | C29: BRANTFORD POWER INC._GENERAL SERVICE LESS THAN 50 KW SERVICE CLASSIFICATION | D29: NON WMP | E29: NON CLASS A | F29: General Service < 50 kW | G29: General Service Less Than 50 kW | H29: 11051374 | I29: 0
A30: 2015 | B30: Brantford Power Inc. | C30: BRANTFORD POWER INC._GENERAL SERVICE 50 TO 4,999 KW SERVICE CLASSIFICATION | D30: NON WMP | E30: NON CLASS A | F30: General Service >= 50 kW | G30: General Service 50 to 4,999 kW | H30: 87914091 | I30: 246469
A31: 2015 | B31: Brantford Power Inc. | C31: BRANTFORD POWER INC._RESIDENTIAL SERVICE CLASSIFICATION | D31: NON WMP | E31: NON CLASS A | F31: Residential | G31: Residential | H31: 19558224 | I31: 0
A32: 2015 | B32: Brantford Power Inc. | C32: BRANTFORD POWER INC._SENTINEL LIGHTING SERVICE CLASSIFICATION | D32: NON WMP | E32: NON CLASS A | F32: Sentinel Lighting Connections | G32: Sentinel Lighting | H32: 13556 | I32: 0
A33: 2015 | B33: Brantford Power Inc. | C33: BRANTFORD POWER INC._STREET LIGHTING SERVICE CLASSIFICATION | D33: NON WMP | E33: NON CLASS A | F33: Street Lighting Connections | G33: Street Lighting | H33: 0 | I33: 0
A34: 2015 | B34: Brantford Power Inc. | C34: BRANTFORD POWER INC._UNMETERED SCATTERED LOAD SERVICE CLASSIFICATION | D34: NON WMP | E34: NON CLASS A | F34: Unmetered Scattered Load Connections | G34: Unmetered Scattered Load | H34: 0 | I34: 0
A35: 2015 | B35: Burlington Hydro Inc. | C35: BURLINGTON HYDRO INC._GENERAL SERVICE LESS THAN 50 KW SERVICE CLASSIFICATION | D35: NON WMP | E35: NON CLASS A | F35: General Service < 50 kW | G35: General Service Less Than 50 kW | H35: 25666700 | I35: 539
A36: 2015 | B36: Burlington Hydro Inc. | C36: BURLINGTON HYDRO INC._GENERAL SERVICE 50 TO 4,999 KW SERVICE CLASSIFICATION | D36: NON WMP | E36: NON CLASS A | F36: General Service >= 50 kW | G36: General Service 50 to 4,999 kW | H36: 178038268 | I36: 446112
A37: 2015 | B37: Burlington Hydro Inc. | C37: BURLINGTON HYDRO INC._RESIDENTIAL SERVICE CLASSIFICATION | D37: NON WMP | E37: NON CLASS A | F37: Residential | G37: Residential | H37: 19590641 | I37: 20
A38: 2015 | B38: Burlington Hydro Inc. | C38: BURLINGTON HYDRO INC._STREET LIGHTING SERVICE CLASSIFICATION | D38: NON WMP | E38: NON CLASS A | F38: Street Lighting Connections | G38: Street Lighting | H38: 0 | I38: 0
A39: 2015 | B39: Burlington Hydro Inc. | C39: BURLINGTON HYDRO INC._UNMETERED SCATTERED LOAD SERVICE CLASSIFICATION | D39: NON WMP | E39: NON CLASS A | F39: Unmetered Scattered Load Connections | G39: Unmetered Scattered Load | H39: 0 | I39: 0
A40: 2015 | B40: Cambridge and North Dumfries Hydro Inc. | C40: CAMBRIDGE AND NORTH DUMFRIES HYDRO INC._EMBEDDED DISTRIBUTOR - HYDRO ONE SERVICE CLASSIFICATION | D40: NON WMP | E40: NON CLASS A | F40: Embedded Distributor(s) | G40: Embedded Distributor - Hydro One | H40: 0 | I40: 0
A41: 2015 | B41: Cambridge and North Dumfries Hydro Inc. | C41: CAMBRIDGE AND NORTH DUMFRIES HYDRO INC._EMBEDDED DISTRIBUTOR - WATERLOO NORTH SERVICE CLASSIFICATION | D41: NON WMP | E41: NON CLASS A | F41: Embedded Distributor(s) | G41: Embedded Distributor - Waterloo North | H41: 0 | I41: 0
A42: 2015 | B42: Cambridge and North Dumfries Hydro Inc. | C42: CAMBRIDGE AND NORTH DUMFRIES HYDRO INC._GENERAL SERVICE LESS THAN 50 KW SERVICE CLASSIFICATION | D42: NON WMP | E42: NON CLASS A | F42: General Service < 50 kW | G42: General Service Less Than 50 kW | H42: 23193982 | I42: 0
A43: 2015 | B43: Cambridge and North Dumfries Hydro Inc. | C43: CAMBRIDGE AND NORTH DUMFRIES HYDRO INC._GENERAL SERVICE 1,000 TO 4,999 KW SERVICE CLASSIFICATION | D43: NON WMP | E43: NON CLASS A | F43: General Service >= 50 kW | G43: General Service 1,000 to 4,999 kW | H43: 50627265 | I43: 0
A44: 2015 | B44: Cambridge and North Dumfries Hydro Inc. | C44: CAMBRIDGE AND NORTH DUMFRIES HYDRO INC._GENERAL SERVICE 50 TO 999 KW SERVICE CLASSIFICATION | D44: NON WMP | E44: NON CLASS A | F44: General Service >= 50 kW | G44: General Service 50 to 999 kW | H44: 73263430 | I44: 0
A45: 2015 | B45: Cambridge and North Dumfries Hydro Inc. | C45: CAMBRIDGE AND NORTH DUMFRIES HYDRO INC._LARGE USE SERVICE CLASSIFICATION | D45: NON WMP | E45: NON CLASS A | F45: Large User | G45: Large Use | H45: 0 | I45: 0
A46: 2015 | B46: Cambridge and North Dumfries Hydro Inc. | C46: CAMBRIDGE AND NORTH DUMFRIES HYDRO INC._RESIDENTIAL SERVICE CLASSIFICATION | D46: NON WMP | E46: NON CLASS A | F46: Residential | G46: Residential | H46: 21458022 | I46: 0
A47: 2015 | B47: Cambridge and North Dumfries Hydro Inc. | C47: CAMBRIDGE AND NORTH DUMFRIES HYDRO INC._STREET LIGHTING SERVICE CLASSIFICATION | D47: NON WMP | E47: NON CLASS A | F47: Street Lighting Connections | G47: Street Lighting | H47: 6865040 | I47: 0
A48: 2015 | B48: Cambridge and North Dumfries Hydro Inc. | C48: CAMBRIDGE AND NORTH DUMFRIES HYDRO INC._UNMETERED SCATTERED LOAD SERVICE CLASSIFICATION | D48: NON WMP | E48: NON CLASS A | F48: Unmetered Scattered Load Connections | G48: Unmetered Scattered Load | H48: 0 | I48: 0
A49: 2015 | B49: Canadian Niagara Power Inc. | C49: =IF(ISERROR(FIND("WMP",G49))=TRUE, UPPER(B49)&"_"&UPPER(G49), UPPER(B49)&"_"&UPPER(LEFT(G49,FIND(" -",G49)-1))&" SERVICE CLASSIFICATION") -> CANADIAN NIAGARA POWER INC._GENERAL SERVICE LESS THAN 50 KW SERVICE CLASSIFICATION - EASTERN ONTARIO POWER SERVICE AREA | D49: NON WMP | E49: NON CLASS A | F49: General Service < 50 kW | G49: General Service Less Than 50 kW Service Classification - Eastern Ontario Power Service Area | H49: 1369228 | I49: 0
A50: 2015 | B50: Canadian Niagara Power Inc. | C50: =IF(ISERROR(FIND("WMP",G50))=TRUE, UPPER(B50)&"_"&UPPER(G50), UPPER(B50)&"_"&UPPER(LEFT(G50,FIND(" -",G50)-1))&" SERVICE CLASSIFICATION") -> CANADIAN NIAGARA POWER INC._GENERAL SERVICE LESS THAN 50 KW SERVICE CLASSIFICATION- FORT ERIE SERVICE AREA | D50: NON WMP | E50: NON CLASS A | F50: General Service < 50 kW | G50: General Service Less Than 50 kW Service Classification- Fort Erie Service Area | H50: 5227812 | I50: 0
A51: 2015 | B51: Canadian Niagara Power Inc. | C51: CANADIAN NIAGARA POWER INC._GENERAL SERVICE LESS THAN 50 KW SERVICE CLASSIFICATION - PORT COLBORNE SERVICE AREA | D51: NON WMP | E51: NON CLASS A | F51: General Service < 50 kW | G51: General Service Less Than 50 kW Service Classification - Port Colborne Service Area | H51: 4489837 | I51: 0
A52: 2015 | B52: Canadian Niagara Power Inc. | C52: CANADIAN NIAGARA POWER INC._GENERAL SERVICE 50 TO 4,999 KW SERVICE CLASSIFICATION - EASTERN ONTARIO POWER SERVICE AREA | D52: NON WMP | E52: NON CLASS A | F52: General Service >= 50 kW | G52: General Service 50 to 4,999 kW Service Classification - Eastern Ontario Power Service Area | H52: 331280 | I52: 1238
A53: 2015 | B53: Canadian Niagara Power Inc. | C53: CANADIAN NIAGARA POWER INC._GENERAL SERVICE 50 TO 4,999 KW SERVICE CLASSIFICATION - FORT ERIE SERVICE AREA | D53: NON WMP | E53: NON CLASS A | F53: General Service >= 50 kW | G53: General Service 50 to 4,999 kW Service Classification - Fort Erie Service Area | H53: 4148401 | I53: 14482
A54: 2015 | B54: Canadian Niagara Power Inc. | C54: CANADIAN NIAGARA POWER INC._GENERAL SERVICE 50 TO 4,999 KW SERVICE CLASSIFICATION - PORT COLBORNE SERVICE AREA | D54: NON WMP | E54: NON CLASS A | F54: General Service >= 50 kW | G54: General Service 50 to 4,999 kW Service Classification - Port Colborne Service Area | H54: 10545424 | I54: 48152
A55: 2015 | B55: Canadian Niagara Power Inc. | C55: CANADIAN NIAGARA POWER INC._RESIDENTIAL SERVICE CLASSIFICATION - EASTERN ONTARIO POWER SERVICE AREA | D55: NON WMP | E55: NON CLASS A | F55: Residential | G55: Residential Service Classification - Eastern Ontario Power Service Area | H55: 1783981 | I55: 0
A56: 2015 | B56: Canadian Niagara Power Inc. | C56: CANADIAN NIAGARA POWER INC._RESIDENTIAL SERVICE CLASSIFICATION - FORT ERIE SERVICE AREA | D56: NON WMP | E56: NON CLASS A | F56: Residential | G56: Residential Service Classification - Fort Erie Service Area | H56: 7602793 | I56: 0
A57: 2015 | B57: Canadian Niagara Power Inc. | C57: CANADIAN NIAGARA POWER INC._RESIDENTIAL SERVICE CLASSIFICATION - PORT COLBORNE SERVICE AREA | D57: NON WMP | E57: NON CLASS A | F57: Residential | G57: Residential Service Classification - Port Colborne Service Area | H57: 4395746 | I57: 0
A58: 2015 | B58: Canadian Niagara Power Inc. | C58: CANADIAN NIAGARA POWER INC._SENTINEL LIGHTING SERVICE CLASSIFICATION - EASTERN ONTARIO POWER SERVICE AREA | D58: NON WMP | E58: NON CLASS A | F58: Sentinel Lighting Connections | G58: Sentinel Lighting Service Classification - Eastern Ontario Power Service Area | H58: 0 | I58: 0
A59: 2015 | B59: Canadian Niagara Power Inc. | C59: CANADIAN NIAGARA POWER INC._SENTINEL LIGHTING SERVICE CLASSIFICATION - FORT ERIE SERVICE AREA | D59: NON WMP | E59: NON CLASS A | F59: Sentinel Lighting Connections | G59: Sentinel Lighting Service Classification - Fort Erie Service Area | H59: 0 | I59: 0
A60: 2015 | B60: Canadian Niagara Power Inc. | C60: CANADIAN NIAGARA POWER INC._SENTINEL LIGHTING SERVICE CLASSIFICATION - PORT COLBORNE SERVICE AREA | D60: NON WMP | E60: NON CLASS A | F60: Sentinel Lighting Connections | G60: Sentinel Lighting Service Classification - Port Colborne Service Area | H60: 0 | I60: 0
A61: 2015 | B61: Canadian Niagara Power Inc. | C61: CANADIAN NIAGARA POWER INC._STREET LIGHTING SERVICE CLASSIFICATION - EASTERN ONTARIO POWER SERVICE AREA | D61: NON WMP | E61: NON CLASS A | F61: Street Lighting Connections | G61: Street Lighting Service Classification - Eastern Ontario Power Service Area | H61: 0 | I61: 0
A62: 2015 | B62: Canadian Niagara Power Inc. | C62: CANADIAN NIAGARA POWER INC._STREET LIGHTING SERVICE CLASSIFICATION - FORT ERIE SERVICE AREA | D62: NON WMP | E62: NON CLASS A | F62: Street Lighting Connections | G62: Street Lighting Service Classification - Fort Erie Service Area | H62: 16768 | I62: 51
A63: 2015 | B63: Canadian Niagara Power Inc. | C63: CANADIAN NIAGARA POWER INC._STREET LIGHTING SERVICE CLASSIFICATION - PORT COLBORNE SERVICE AREA | D63: NON WMP | E63: NON CLASS A | F63: Street Lighting Connections | G63: Street Lighting Service Classification - Port Colborne Service Area | H63: 0 | I63: 0
A64: 2015 | B64: Canadian Niagara Power Inc. | C64: CANADIAN NIAGARA POWER INC._UNMETERED SCATTERED LOAD SERVICE CLASSIFICATION - EASTERN ONTARIO POWER SERVICE AREA | D64: NON WMP | E64: NON CLASS A | F64: Unmetered Scattered Load Connections | G64: Unmetered Scattered Load Service Classification - Eastern Ontario Power Service Area | H64: 0 | I64: 0
A65: 2015 | B65: Canadian Niagara Power Inc. | C65: CANADIAN NIAGARA POWER INC._UNMETERED SCATTERED LOAD SERVICE CLASSIFICATION - FORT ERIE SERVICE AREA | D65: NON WMP | E65: NON CLASS A | F65: Unmetered Scattered Load Connections | G65: Unmetered Scattered Load Service Classification - Fort Erie Service Area | H65: 2247 | I65: 0
A66: 2015 | B66: Canadian Niagara Power Inc. | C66: CANADIAN NIAGARA POWER INC._UNMETERED SCATTERED LOAD SERVICE CLASSIFICATION - PORT COLBORNE SERVICE AREA | D66: NON WMP | E66: NON CLASS A | F66: Unmetered Scattered Load Connections | G66: Unmetered Scattered Load Service Classification - Port Colborne Service Area | H66: 3971 | I66: 0
A67: 2015 | B67: Centre Wellington Hydro Ltd. | C67: CENTRE WELLINGTON HYDRO LTD._GENERAL SERVICE LESS THAN 50 KW SERVICE CLASSIFICATION | D67: NON WMP | E67: NON CLASS A | F67: General Service < 50 kW | G67: General Service Less Than 50 kW | H67: 3794097 | I67: 0
A68: 2015 | B68: Centre Wellington Hydro Ltd. | C68: =IF(ISERROR(FIND("WMP",G68))=TRUE, UPPER(B68)&"_"&UPPER(G68)&" "&"SERVICE CLASSIFICATION", UPPER(B68)&"_"&UPPER(LEFT(G68,FIND(" -",G68)-1))&" SERVICE CLASSIFICATION") -> CENTRE WELLINGTON HYDRO LTD._GENERAL SERVICE 3,000 TO 4,999 KW SERVICE CLASSIFICATION | D68: NON WMP | E68: NON CLASS A | F68: General Service >= 50 kW | G68: General Service 3,000 to 4,999 kW | H68: 0 | I68: 0
A69: 2015 | B69: Centre Wellington Hydro Ltd. | C69: CENTRE WELLINGTON HYDRO LTD._GENERAL SERVICE 50 TO 2,999 KW SERVICE CLASSIFICATION | D69: =IF(ISERROR(FIND("- WMP", G69))=TRUE, "NON WMP", "WMP") -> NON WMP | E69: =IF(ISERROR(FIND("- Class A", G69))=TRUE, "NON CLASS A", "CLASS A") -> NON CLASS A | F69: General Service >= 50 kW | G69: General Service 50 to 2,999 kW | H69: 9887137 | I69: 26614
A70: 2015 | B70: Centre Wellington Hydro Ltd. | C70: CENTRE WELLINGTON HYDRO LTD._RESIDENTIAL SERVICE CLASSIFICATION | D70: NON WMP | E70: NON CLASS A | F70: Residential | G70: Residential | H70: 2977784 | I70: 0
A71: 2015 | B71: Centre Wellington Hydro Ltd. | C71: CENTRE WELLINGTON HYDRO LTD._SENTINEL LIGHTING SERVICE CLASSIFICATION | D71: NON WMP | E71: NON CLASS A | F71: Sentinel Lighting Connections | G71: Sentinel Lighting | H71: 12918 | I71: 36
A72: 2015 | B72: Centre Wellington Hydro Ltd. | C72: CENTRE WELLINGTON HYDRO LTD._STREET LIGHTING SERVICE CLASSIFICATION | D72: NON WMP | E72: NON CLASS A | F72: Street Lighting Connections | G72: Street Lighting | H72: 0 | I72: 0
A73: 2015 | B73: Centre Wellington Hydro Ltd. | C73: CENTRE WELLINGTON HYDRO LTD._UNMETERED SCATTERED LOAD SERVICE CLASSIFICATION | D73: NON WMP | E73: NON CLASS A | F73: Unmetered Scattered Load Connections | G73: Unmetered Scattered Load | H73: 14533 | I73: 0
A74: 2015 | B74: Chapleau Public Utilities Corporation | C74: CHAPLEAU PUBLIC UTILITIES CORPORATION_GENERAL SERVICE LESS THAN 50 KW SERVICE CLASSIFICATION | D74: NON WMP | E74: NON CLASS A | F74: General Service < 50 kW | G74: General Service Less Than 50 kW | H74: 122231 | I74: 0
A75: 2015 | B75: Chapleau Public Utilities Corporation | C75: CHAPLEAU PUBLIC UTILITIES CORPORATION_GENERAL SERVICE 50 TO 4,999 KW SERVICE CLASSIFICATION | D75: NON WMP | E75: NON CLASS A | F75: General Service >= 50 kW | G75: General Service 50 to 4,999 kW | H75: 2118041 | I75: 5030
A76: 2015 | B76: Chapleau Public Utilities Corporation | C76: CHAPLEAU PUBLIC UTILITIES CORPORATION_RESIDENTIAL SERVICE CLASSIFICATION | D76: NON WMP | E76: NON CLASS A | F76: Residential | G76: Residential | H76: 143298 | I76: 0
A77: 2015 | B77: Chapleau Public Utilities Corporation | C77: CHAPLEAU PUBLIC UTILITIES CORPORATION_SENTINEL LIGHTING SERVICE CLASSIFICATION | D77: NON WMP | E77: NON CLASS A | F77: Sentinel Lighting Connections | G77: Sentinel Lighting | H77: 0 | I77: 0
A78: 2015 | B78: Chapleau Public Utilities Corporation | C78: CHAPLEAU PUBLIC UTILITIES CORPORATION_STREET LIGHTING SERVICE CLASSIFICATION | D78: NON WMP | E78: NON CLASS A | F78: Street Lighting Connections | G78: Street Lighting | H78: 0 | I78: 0
A79: 2015 | B79: Chapleau Public Utilities Corporation | C79: CHAPLEAU PUBLIC UTILITIES CORPORATION_UNMETERED SCATTERED LOAD SERVICE CLASSIFICATION | D79: NON WMP | E79: NON CLASS A | F79: Unmetered Scattered Load Connections | G79: Unmetered Scattered Load | H79: 0 | I79: 0
A80: 2015 | B80: Collus PowerStream Corp. | C80: COLLUS POWERSTREAM CORP._GENERAL SERVICE LESS THAN 50 KW SERVICE CLASSIFICATION | D80: NON WMP | E80: NON CLASS A | F80: General Service < 50 kW | G80: General Service Less Than 50 kW | H80: 8253486 | I80: 896
A81: 2015 | B81: Collus PowerStream Corp. | C81: COLLUS POWERSTREAM CORP._GENERAL SERVICE 50 TO 4,999 KW SERVICE CLASSIFICATION | D81: NON WMP | E81: NON CLASS A | F81: General Service >= 50 kW | G81: General Service 50 to 4,999 kW | H81: 20626743 | I81: 51741
A82: 2015 | B82: Collus PowerStream Corp. | C82: COLLUS POWERSTREAM CORP._RESIDENTIAL SERVICE CLASSIFICATION | D82: NON WMP | E82: NON CLASS A | F82: Residential | G82: Residential | H82: 8297897 | I82: 0
A83: 2015 | B83: Collus PowerStream Corp. | C83: COLLUS POWERSTREAM CORP._STREET LIGHTING SERVICE CLASSIFICATION | D83: NON WMP | E83: NON CLASS A | F83: Street Lighting Connections | G83: Street Lighting | H83: 251976 | I83: 708
A84: 2015 | B84: Collus PowerStream Corp. | C84: COLLUS POWERSTREAM CORP._UNMETERED SCATTERED LOAD SERVICE CLASSIFICATION | D84: NON WMP | E84: NON CLASS A | F84: Unmetered Scattered Load Connections | G84: Unmetered Scattered Load | H84: 21996 | I84: 0
A85: 2015 | B85: Cooperative Hydro Embrun Inc. | C85: COOPERATIVE HYDRO EMBRUN INC._GENERAL SERVICE LESS THAN 50 KW SERVICE CLASSIFICATION | D85: NON WMP | E85: NON CLASS A | F85: General Service < 50 kW | G85: General Service Less Than 50 kW | H85: 186352 | I85: 0
A86: 2015 | B86: Cooperative Hydro Embrun Inc. | C86: COOPERATIVE HYDRO EMBRUN INC._GENERAL SERVICE 50 TO 4,999 KW SERVICE CLASSIFICATION | D86: NON WMP | E86: NON CLASS A | F86: General Service >= 50 kW | G86: General Service 50 to 4,999 kW | H86: 1030650 | I86: 0
A87: 2015 | B87: Cooperative Hydro Embrun Inc. | C87: COOPERATIVE HYDRO EMBRUN INC._RESIDENTIAL SERVICE CLASSIFICATION | D87: NON WMP | E87: NON CLASS A | F87: Residential | G87: Residential | H87: 757162 | I87: 0
A88: 2015 | B88: Cooperative Hydro Embrun Inc. | C88: COOPERATIVE HYDRO EMBRUN INC._STREET LIGHTING SERVICE CLASSIFICATION | D88: NON WMP | E88: NON CLASS A | F88: Street Lighting Connections | G88: Street Lighting | H88: 359464 | I88: 0
A89: 2015 | B89: Cooperative Hydro Embrun Inc. | C89: COOPERATIVE HYDRO EMBRUN INC._UNMETERED SCATTERED LOAD SERVICE CLASSIFICATION | D89: NON WMP | E89: NON CLASS A | F89: Unmetered Scattered Load Connections | G89: Unmetered Scattered Load | H89: 12998 | I89: 0
A90: 2015 | B90: E.L.K. Energy Inc. | C90: E.L.K. ENERGY INC._EMBEDDED DISTRIBUTOR SERVICE CLASSIFICATION | D90: NON WMP | E90: NON CLASS A | F90: Embedded Distributor(s) | G90: Embedded Distributor | H90: 0 | I90: 0
A91: 2015 | B91: E.L.K. Energy Inc. | C91: E.L.K. ENERGY INC._GENERAL SERVICE LESS THAN 50 KW SERVICE CLASSIFICATION | D91: NON WMP | E91: NON CLASS A | F91: General Service < 50 kW | G91: General Service Less Than 50 kW | H91: 0 | I91: 0
A92: 2015 | B92: E.L.K. Energy Inc. | C92: E.L.K. ENERGY INC._GENERAL SERVICE 50 TO 4,999 KW SERVICE CLASSIFICATION | D92: NON WMP | E92: NON CLASS A | F92: General Service >= 50 kW | G92: General Service 50 to 4,999 kW | H92: 0 | I92: 0
A93: 2015 | B93: E.L.K. Energy Inc. | C93: E.L.K. ENERGY INC._RESIDENTIAL SERVICE CLASSIFICATION | D93: NON WMP | E93: NON CLASS A | F93: Residential | G93: Residential | H93: 1 | I93: 1
A94: 2015 | B94: E.L.K. Energy Inc. | C94: E.L.K. ENERGY INC._SENTINEL LIGHTING SERVICE CLASSIFICATION | D94: NON WMP | E94: NON CLASS A | F94: Sentinel Lighting Connections | G94: Sentinel Lighting | H94: 0 | I94: 0
A95: 2015 | B95: E.L.K. Energy Inc. | C95: E.L.K. ENERGY INC._STREET LIGHTING SERVICE CLASSIFICATION | D95: NON WMP | E95: NON CLASS A | F95: Street Lighting Connections | G95: Street Lighting | H95: 0 | I95: 0
A96: 2015 | B96: E.L.K. Energy Inc. | C96: E.L.K. ENERGY INC._UNMETERED SCATTERED LOAD SERVICE CLASSIFICATION | D96: NON WMP | E96: NON CLASS A | F96: Unmetered Scattered Load Connections | G96: Unmetered Scattered Load | H96: 0 | I96: 0
A97: 2015 | B97: Enersource Hydro Mississauga Inc. | C97: ENERSOURCE HYDRO MISSISSAUGA INC._GENERAL SERVICE LESS THAN 50 KW SERVICE CLASSIFICATION | D97: NON WMP | E97: NON CLASS A | F97: General Service < 50 kW | G97: General Service Less Than 50 kW | H97: 107176499 | I97: 0
A98: 2015 | B98: Enersource Hydro Mississauga Inc. | C98: ENERSOURCE HYDRO MISSISSAUGA INC._GENERAL SERVICE 50 TO 499 KW SERVICE CLASSIFICATION | D98: NON WMP | E98: NON CLASS A | F98: General Service >= 50 kW | G98: General Service 50 to 499 kW | H98: 391024416 | I98: 1155504
A99: 2015 | B99: Enersource Hydro Mississauga Inc. | C99: =IF(ISERROR(FIND("WMP",G99))=TRUE, UPPER(B99)&"_"&UPPER(G99)&" "&"SERVICE CLASSIFICATION", UPPER(B99)&"_"&UPPER(LEFT(G99,FIND(" -",G99)-1))&" SERVICE CLASSIFICATION") -> ENERSOURCE HYDRO MISSISSAUGA INC._GENERAL SERVICE 500 TO 4,999 KW SERVICE CLASSIFICATION | D99: NON WMP | E99: NON CLASS A | F99: General Service >= 50 kW | G99: General Service 500 to 4,999 kW | H99: 438189750 | I99: 955982
B100: Enersource Hydro Mississauga Inc. | C100: ENERSOURCE HYDRO MISSISSAUGA INC._LARGE USE SERVICE CLASSIFICATION | D100: =IF(ISERROR(FIND("- WMP", G100))=TRUE, "NON WMP", "WMP") -> NON WMP | E100: NON CLASS A | F100: Large User | G100: Large Use | H100: =SUM(H101:H102) -> 353082786 | I100: =SUM(I101:I102) -> 660480
A101: 2015 | B101: Enersource Hydro Mississauga Inc. | C101: ENERSOURCE HYDRO MISSISSAUGA INC._LARGE USE - CLASS A CUSTOMERS SERVICE CLASSIFICATION | D101: NON WMP | E101: CLASS A | F101: Large User | G101: Large Use - Class A Customers | H101: 322581911 | I101: 600964
A102: 2015 | B102: Enersource Hydro Mississauga Inc. | C102: ENERSOURCE HYDRO MISSISSAUGA INC._LARGE USE - CLASS B CUSTOMERS SERVICE CLASSIFICATION | D102: NON WMP | E102: NON CLASS A | F102: Large User | G102: Large Use - Class B Customers | H102: 30500875 | I102: 59516
A103: 2015 | B103: Enersource Hydro Mississauga Inc. | C103: ENERSOURCE HYDRO MISSISSAUGA INC._RESIDENTIAL SERVICE CLASSIFICATION | D103: NON WMP | E103: NON CLASS A | F103: Residential | G103: Residential | H103: 91130679 | I103: 0
A104: 2015 | B104: Enersource Hydro Mississauga Inc. | C104: ENERSOURCE HYDRO MISSISSAUGA INC._STREET LIGHTING SERVICE CLASSIFICATION | D104: NON WMP | E104: NON CLASS A | F104: Street Lighting Connections | G104: Street Lighting | H104: 0 | I104: 0
A105: 2015 | B105: Enersource Hydro Mississauga Inc. | C105: ENERSOURCE HYDRO MISSISSAUGA INC._UNMETERED SCATTERED LOAD SERVICE CLASSIFICATION | D105: NON WMP | E105: NON CLASS A | F105: Unmetered Scattered Load Connections | G105: Unmetered Scattered Load | H105: 523144 | I105: 0
A106: 2015 | B106: Entegrus Powerlines Inc. | C106: =IF(ISERROR(FIND("WMP",G106))=TRUE, UPPER(B106)&"_"&UPPER(G106), UPPER(B106)&"_"&UPPER(LEFT(G106,FIND(" -",G106)-1))&" SERVICE CLASSIFICATION") -> ENTEGRUS POWERLINES INC._GENERAL SERVICE LESS THAN 50 KW SERVICE CLASSIFICATION - CHATHAM-KENT HYDRO SERVICE AREA | D106: NON WMP | E106: NON CLASS A | F106: General Service < 50 kW | G106: General Service Less Than 50 kW Service Classification - Chatham-Kent Hydro Service Area | H106: 13873160 | I106: 0
A107: 2015 | B107: Entegrus Powerlines Inc. | C107: =IF(ISERROR(FIND("WMP",G107))=TRUE, UPPER(B107)&"_"&UPPER(G107), UPPER(B107)&"_"&UPPER(LEFT(G107,FIND(" -",G107)-1))&" SERVICE CLASSIFICATION") -> ENTEGRUS POWERLINES INC._GENERAL SERVICE LESS THAN 50 KW SERVICE CLASSIFICATION - DUTTON SERVICE AREA | D107: NON WMP | E107: NON CLASS A | F107: General Service < 50 kW | G107: General Service less than 50 kW Service Classification - Dutton Service Area | H107: 134952 | I107: 0
A108: 2015 | B108: Entegrus Powerlines Inc. | C108: ENTEGRUS POWERLINES INC._GENERAL SERVICE LESS THAN 50 KW SERVICE CLASSIFICATION - NEWBURY SERVICE AREA | D108: NON WMP | E108: NON CLASS A | F108: General Service < 50 kW | G108: General Service Less Than 50 kW Service Classification - Newbury Service Area | H108: 24505 | I108: 0
A109: 2015 | B109: Entegrus Powerlines Inc. | C109: ENTEGRUS POWERLINES INC._GENERAL SERVICE LESS THAN 50 KW SERVICE CLASSIFICATION - STRATHROY, MOUNT BRYDGES AND PARKHILL SERVICE AREA | D109: NON WMP | E109: NON CLASS A | F109: General Service < 50 kW | G109: General Service Less Than 50 kW Service Classification - Strathroy, Mount Brydges and Parkhill Service Area | H109: 3192954 | I109: 0
A110: 2015 | B110: Entegrus Powerlines Inc. | C110: ENTEGRUS POWERLINES INC._GENERAL SERVICE 50 TO 4,999 KW SERVICE CLASSIFICATION - NEWBURY SERVICE AREA | D110: NON WMP | E110: NON CLASS A | F110: General Service >= 50 kW | G110: General Service 50 to 4,999 kW Service Classification - Newbury Service Area | H110: 917540 | I110: 1959
A111: 2015 | B111: Entegrus Powerlines Inc. | C111: ENTEGRUS POWERLINES INC._GENERAL SERVICE 50 TO 4,999 KW SERVICE CLASSIFICATION - STRATHROY, MOUNT BRYDGES AND PARKHILL SERVICE AREA | D111: NON WMP | E111: NON CLASS A | F111: General Service >= 50 kW | G111: General Service 50 to 4,999 kW Service Classification - Strathroy, Mount Brydges and Parkhill Service Area | H111: 12000653 | I111: 28119
A112: 2015 | B112: Entegrus Powerlines Inc. | C112: ENTEGRUS POWERLINES INC._GENERAL SERVICE 50 TO 999 KW SERVICE CLASSIFICATION - CHATHAM-KENT HYDRO SERVICE AREA | D112: NON WMP | E112: NON CLASS A | F112: General Service >= 50 kW | G112: General Service 50 to 999 kW Service Classification - Chatham-Kent Hydro Service Area | H112: 51193785 | I112: 146004
A113: 2015 | B113: Entegrus Powerlines Inc. | C113: ENTEGRUS POWERLINES INC._GENERAL SERVICE INTERMEDIATE 1,000 TO 4,999 KW SERVICE CLASSIFICATION - CHATHAM-KENT HYDRO SERVICE | D113: NON WMP | E113: NON CLASS A | F113: General Service >= 50 kW | G113: General Service Intermediate 1,000 to 4,999 kW Service Classification - Chatham-Kent Hydro Service | H113: 39294483 | I113: 82548
A114: 2015 | B114: Entegrus Powerlines Inc. | C114: ENTEGRUS POWERLINES INC._INTERMEDIATE WITH SELF GENERATION SERVICE CLASSIFICATION - CHATHAM-KENT HYDRO SERVICE AREA | D114: NON WMP | E114: NON CLASS A | F114: General Service >= 50 kW | G114: Intermediate With Self Generation Service Classification - Chatham-Kent Hydro Service Area | H114: 0 | I114: 0
A115: 2015 | B115: Entegrus Powerlines Inc. | C115: ENTEGRUS POWERLINES INC._LARGE USE SERVICE CLASSIFICATION - STRATHROY, MOUNT BRYDGES AND PARKHILL SERVICE AREA | D115: NON WMP | E115: NON CLASS A | F115: Large User | G115: Large Use Service Classification - Strathroy, Mount Brydges and Parkhill Service Area | H115: 0 | I115: 0
A116: 2015 | B116: Entegrus Powerlines Inc. | C116: ENTEGRUS POWERLINES INC._RESIDENTIAL SERVICE CLASSIFICATION - CHATHAM-KENT HYDRO SERVICE AREA | D116: NON WMP | E116: NON CLASS A | F116: Residential | G116: Residential Service Classification - Chatham-Kent Hydro Service Area | H116: 19623503 | I116: 0
A117: 2015 | B117: Entegrus Powerlines Inc. | C117: ENTEGRUS POWERLINES INC._RESIDENTIAL SERVICE CLASSIFICATION - DUTTON SERVICE AREA | D117: NON WMP | E117: NON CLASS A | F117: Residential | G117: Residential Service Classification - Dutton Service Area | H117: 477079 | I117: 0
A118: 2015 | B118: Entegrus Powerlines Inc. | C118: ENTEGRUS POWERLINES INC._RESIDENTIAL SERVICE CLASSIFICATION - NEWBURY SERVICE AREA | D118: NON WMP | E118: NON CLASS A | F118: Residential | G118: Residential Service Classification - Newbury Service Area | H118: 146828 | I118: 0
A119: 2015 | B119: Entegrus Powerlines Inc. | C119: ENTEGRUS POWERLINES INC._RESIDENTIAL SERVICE CLASSIFICATION - STRATHROY, MOUNT BRYDGES AND PARKHILL SERVICE AREA | D119: NON WMP | E119: NON CLASS A | F119: Residential | G119: Residential Service Classification - Strathroy, Mount Brydges and Parkhill Service Area | H119: 5884951 | I119: 0
A120: 2015 | B120: Entegrus Powerlines Inc. | C120: ENTEGRUS POWERLINES INC._SENTINEL LIGHTING SERVICE CLASSIFICATION - CHATHAM-KENT HYDRO SERVICE AREA | D120: NON WMP | E120: NON CLASS A | F120: Sentinel Lighting Connections | G120: Sentinel Lighting Service Classification - Chatham-Kent Hydro Service Area | H120: 0 | I120: 0
A121: 2015 | B121: Entegrus Powerlines Inc. | C121: ENTEGRUS POWERLINES INC._SENTINEL LIGHTING SERVICE CLASSIFICATION - DUTTON SERVICE AREA | D121: NON WMP | E121: NON CLASS A | F121: Sentinel Lighting Connections | G121: Sentinel Lighting Service Classification - Dutton Service Area | H121: 0 | I121: 0
A122: 2015 | B122: Entegrus Powerlines Inc. | C122: ENTEGRUS POWERLINES INC._SENTINEL LIGHTING SERVICE CLASSIFICATION - STRATHROY, MOUNT BRYDGES AND PARKHILL SERVICE AREA | D122: NON WMP | E122: NON CLASS A | F122: Sentinel Lighting Connections | G122: Sentinel Lighting Service Classification - Strathroy, Mount Brydges and Parkhill Service Area | H122: 0 | I122: 0
A123: 2015 | B123: Entegrus Powerlines Inc. | C123: ENTEGRUS POWERLINES INC._STREET LIGHTING SERVICE CLASSIFICATION - CHATHAM-KENT HYDRO SERVICE AREA | D123: NON WMP | E123: NON CLASS A | F123: Street Lighting Connections | G123: Street Lighting Service Classification - Chatham-Kent Hydro Service Area | H123: 0 | I123: 0
A124: 2015 | B124: Entegrus Powerlines Inc. | C124: ENTEGRUS POWERLINES INC._STREET LIGHTING SERVICE CLASSIFICATION - DUTTON SERVICE AREA | D124: NON WMP | E124: NON CLASS A | F124: Street Lighting Connections | G124: Street Lighting Service Classification - Dutton Service Area | H124: 0 | I124: 0
A125: 2015 | B125: Entegrus Powerlines Inc. | C125: ENTEGRUS POWERLINES INC._STREET LIGHTING SERVICE CLASSIFICATION - NEWBURY SERVICE AREA | D125: NON WMP | E125: NON CLASS A | F125: Street Lighting Connections | G125: Street Lighting Service Classification - Newbury Service Area | H125: 0 | I125: 0
A126: 2015 | B126: Entegrus Powerlines Inc. | C126: ENTEGRUS POWERLINES INC._STREET LIGHTING SERVICE CLASSIFICATION - STRATHROY, MOUNT BRYDGES AND PARKHILL SERVICE AREA | D126: NON WMP | E126: NON CLASS A | F126: Street Lighting Connections | G126: Street Lighting Service Classification - Strathroy, Mount Brydges and Parkhill Service Area | H126: 151737 | I126: 464
A127: 2015 | B127: Entegrus Powerlines Inc. | C127: ENTEGRUS POWERLINES INC._UNMETERED SCATTERED LOAD SERVICE CLASSIFICATION - CHATHAM-KENT HYDRO SERVICE AREA | D127: NON WMP | E127: NON CLASS A | F127: Unmetered Scattered Load Connections | G127: Unmetered Scattered Load Service Classification - Chatham-Kent Hydro Service Area | H127: 5672 | I127: 0
A128: 2015 | B128: Entegrus Powerlines Inc. | C128: ENTEGRUS POWERLINES INC._UNMETERED SCATTERED LOAD SERVICE CLASSIFICATION - STRATHROY, MOUNT BRYDGES AND PARKHILL SERVICE AREA | D128: NON WMP | E128: NON CLASS A | F128: Unmetered Scattered Load Connections | G128: Unmetered Scattered Load Service Classification - Strathroy, Mount Brydges and Parkhill Service Area | H128: 0 | I128: 0
A129: 2015 | B129: EnWin Utilities Ltd. | C129: ENWIN UTILITIES LTD._GENERAL SERVICE LESS THAN 50 KW SERVICE CLASSIFICATION | D129: NON WMP | E129: NON CLASS A | F129: General Service < 50 kW | G129: General Service Less Than 50 kW | H129: 31777564 | I129: 0
A130: 2015 | B130: EnWin Utilities Ltd. | C130: ENWIN UTILITIES LTD._GENERAL SERVICE 3,000 TO 4,999 KW - FORMER TOU SERVICE CLASSIFICATION | D130: NON WMP | E130: NON CLASS A | F130: General Service >= 50 kW | G130: General Service 3,000 to 4,999 kW - former TOU | H130: 0 | I130: 0
A131: 2015 | B131: EnWin Utilities Ltd. | C131: ENWIN UTILITIES LTD._GENERAL SERVICE 50 TO 4,999 KW SERVICE CLASSIFICATION | D131: NON WMP | E131: NON CLASS A | F131: General Service >= 50 kW | G131: General Service 50 to 4,999 kW | H131: 153458983 | I131: 409558
A132: 2015 | B132: EnWin Utilities Ltd. | C132: ENWIN UTILITIES LTD._LARGE USE - 3TS SERVICE CLASSIFICATION | D132: NON WMP | E132: NON CLASS A | F132: Large User | G132: Large Use - 3TS | H132: 0 | I132: 0
A133: 2015 | B133: EnWin Utilities Ltd. | C133: =IF(ISERROR(FIND("WMP",G133))=TRUE, UPPER(B133)&"_"&UPPER(G133)&" "&"SERVICE CLASSIFICATION", UPPER(B133)&"_"&UPPER(LEFT(G133,FIND(" -",G133)-1))&" SERVICE CLASSIFICATION") -> ENWIN UTILITIES LTD._LARGE USE - FORD ANNEX SERVICE CLASSIFICATION | D133: NON WMP | E133: NON CLASS A | F133: Large User | G133: Large Use - Ford Annex | H133: 0 | I133: 0
A134: 2015 | B134: EnWin Utilities Ltd. | C134: ENWIN UTILITIES LTD._LARGE USE - REGULAR SERVICE CLASSIFICATION | D134: =IF(ISERROR(FIND("- WMP", G134))=TRUE, "NON WMP", "WMP") -> NON WMP | E134: =IF(ISERROR(FIND("- Class A", G134))=TRUE, "NON CLASS A", "CLASS A") -> NON CLASS A | F134: Large User | G134: Large Use - Regular | H134: 10479576 | I134: 28500
A135: 2015 | B135: EnWin Utilities Ltd. | C135: ENWIN UTILITIES LTD._RESIDENTIAL SERVICE CLASSIFICATION | D135: NON WMP | E135: NON CLASS A | F135: Residential | G135: Residential | H135: 36081493 | I135: 0
A136: 2015 | B136: EnWin Utilities Ltd. | C136: ENWIN UTILITIES LTD._SENTINEL LIGHTING SERVICE CLASSIFICATION | D136: NON WMP | E136: NON CLASS A | F136: Sentinel Lighting Connections | G136: Sentinel Lighting | H136: 52053 | I136: 339
A137: 2015 | B137: EnWin Utilities Ltd. | C137: ENWIN UTILITIES LTD._STREET LIGHTING SERVICE CLASSIFICATION | D137: NON WMP | E137: NON CLASS A | F137: Street Lighting Connections | G137: Street Lighting | H137: 0 | I137: 0
A138: 2015 | B138: EnWin Utilities Ltd. | C138: ENWIN UTILITIES LTD._UNMETERED SCATTERED LOAD SERVICE CLASSIFICATION | D138: NON WMP | E138: NON CLASS A | F138: Unmetered Scattered Load Connections | G138: Unmetered Scattered Load | H138: 582790 | I138: 0
A139: 2015 | B139: Erie Thames Powerlines Corporation | C139: ERIE THAMES POWERLINES CORPORATION_EMBEDDED DISTRIBUTOR SERVICE CLASSIFICATION | D139: NON WMP | E139: NON CLASS A | F139: Embedded Distributor(s) | G139: Embedded Distributor | H139: 0 | I139: 0
A140: 2015 | B140: Erie Thames Powerlines Corporation | C140: ERIE THAMES POWERLINES CORPORATION_GENERAL SERVICE LESS THAN 50 KW SERVICE CLASSIFICATION | D140: NON WMP | E140: NON CLASS A | F140: General Service < 50 kW | G140: General Service Less Than 50 kW | H140: 11317615 | I140: 0
A141: 2015 | B141: Erie Thames Powerlines Corporation | C141: ERIE THAMES POWERLINES CORPORATION_GENERAL SERVICE 1,000 TO 4,999 KW SERVICE CLASSIFICATION | D141: NON WMP | E141: NON CLASS A | F141: General Service >= 50 kW | G141: General Service 1,000 to 4,999 kW | H141: 0 | I141: 0
A142: 2015 | B142: Erie Thames Powerlines Corporation | C142: ERIE THAMES POWERLINES CORPORATION_GENERAL SERVICE 50 TO 999 KW SERVICE CLASSIFICATION | D142: NON WMP | E142: NON CLASS A | F142: General Service >= 50 kW | G142: General Service 50 to 999 kW | H142: 41067022 | I142: 101500
A143: 2015 | B143: Erie Thames Powerlines Corporation | C143: ERIE THAMES POWERLINES CORPORATION_LARGE USE SERVICE CLASSIFICATION | D143: NON WMP | E143: NON CLASS A | F143: Large User | G143: Large Use | H143: 0 | I143: 0
A144: 2015 | B144: Erie Thames Powerlines Corporation | C144: ERIE THAMES POWERLINES CORPORATION_RESIDENTIAL SERVICE CLASSIFICATION | D144: NON WMP | E144: NON CLASS A | F144: Residential | G144: Residential | H144: 13802096 | I144: 0
A145: 2015 | B145: Erie Thames Powerlines Corporation | C145: ERIE THAMES POWERLINES CORPORATION_SENTINEL LIGHTING SERVICE CLASSIFICATION | D145: NON WMP | E145: NON CLASS A | F145: Sentinel Lighting Connections | G145: Sentinel Lighting | H145: 35545 | I145: 0
A146: 2015 | B146: Erie Thames Powerlines Corporation | C146: ERIE THAMES POWERLINES CORPORATION_STREET LIGHTING SERVICE CLASSIFICATION | D146: NON WMP | E146: NON CLASS A | F146: Street Lighting Connections | G146: Street Lighting | H146: 747736 | I146: 2028
A147: 2015 | B147: Erie Thames Powerlines Corporation | C147: ERIE THAMES POWERLINES CORPORATION_UNMETERED SCATTERED LOAD SERVICE CLASSIFICATION | D147: NON WMP | E147: NON CLASS A | F147: Unmetered Scattered Load Connections | G147: Unmetered Scattered Load | H147: 55145 | I147: 0
A148: 2015 | B148: Espanola Regional Hydro Distribution Corporation | C148: ESPANOLA REGIONAL HYDRO DISTRIBUTION CORPORATION_GENERAL SERVICE LESS THAN 50 KW SERVICE CLASSIFICATION | D148: NON WMP | E148: NON CLASS A | F148: General Service < 50 kW | G148: General Service Less Than 50 kW | H148: 1580793 | I148: 3077
A149: 2015 | B149: Espanola Regional Hydro Distribution Corporation | C149: ESPANOLA REGIONAL HYDRO DISTRIBUTION CORPORATION_GENERAL SERVICE 50 TO 4,999 KW SERVICE CLASSIFICATION | D149: NON WMP | E149: NON CLASS A | F149: General Service >= 50 kW | G149: General Service 50 to 4,999 kW | H149: 7116733 | I149: 17479
A150: 2015 | B150: Espanola Regional Hydro Distribution Corporation | C150: ESPANOLA REGIONAL HYDRO DISTRIBUTION CORPORATION_RESIDENTIAL SERVICE CLASSIFICATION | D150: NON WMP | E150: NON CLASS A | F150: Residential | G150: Residential | H150: 1934856 | I150: 0
A151: 2015 | B151: Espanola Regional Hydro Distribution Corporation | C151: ESPANOLA REGIONAL HYDRO DISTRIBUTION CORPORATION_SENTINEL LIGHTING SERVICE CLASSIFICATION | D151: NON WMP | E151: NON CLASS A | F151: Sentinel Lighting Connections | G151: Sentinel Lighting | H151: 0 | I151: 0
A152: 2015 | B152: Espanola Regional Hydro Distribution Corporation | C152: ESPANOLA REGIONAL HYDRO DISTRIBUTION CORPORATION_STREET LIGHTING SERVICE CLASSIFICATION | D152: NON WMP | E152: NON CLASS A | F152: Street Lighting Connections | G152: Street Lighting | H152: 312468 | I152: 864
A153: 2015 | B153: Espanola Regional Hydro Distribution Corporation | C153: ESPANOLA REGIONAL HYDRO DISTRIBUTION CORPORATION_UNMETERED SCATTERED LOAD SERVICE CLASSIFICATION | D153: NON WMP | E153: NON CLASS A | F153: Unmetered Scattered Load Connections | G153: Unmetered Scattered Load | H153: 10764 | I153: 0
A154: 2015 | B154: Essex Powerlines Corporation | C154: ESSEX POWERLINES CORPORATION_GENERAL SERVICE LESS THAN 50 KW SERVICE CLASSIFICATION | D154: NON WMP | E154: NON CLASS A | F154: General Service < 50 kW | G154: General Service Less Than 50 kW | H154: 14245140 | I154: 0
A155: 2015 | B155: Essex Powerlines Corporation | C155: ESSEX POWERLINES CORPORATION_GENERAL SERVICE 3,000 TO 4,999 KW SERVICE CLASSIFICATION | D155: NON WMP | E155: NON CLASS A | F155: General Service >= 50 kW | G155: General Service 3,000 to 4,999 kW | H155: 0 | I155: 0
A156: 2015 | B156: Essex Powerlines Corporation | C156: ESSEX POWERLINES CORPORATION_GENERAL SERVICE 50 TO 2,999 KW SERVICE CLASSIFICATION | D156: NON WMP | E156: NON CLASS A | F156: General Service >= 50 kW | G156: General Service 50 to 2,999 kW | H156: 32457070 | I156: 93824
A157: 2015 | B157: Essex Powerlines Corporation | C157: ESSEX POWERLINES CORPORATION_RESIDENTIAL SERVICE CLASSIFICATION | D157: NON WMP | E157: NON CLASS A | F157: Residential | G157: Residential | H157: 16237931 | I157: 0
A158: 2015 | B158: Essex Powerlines Corporation | C158: ESSEX POWERLINES CORPORATION_SENTINEL LIGHTING SERVICE CLASSIFICATION | D158: NON WMP | E158: NON CLASS A | F158: Sentinel Lighting Connections | G158: Sentinel Lighting | H158: 26617 | I158: 74
A159: 2015 | B159: Essex Powerlines Corporation | C159: ESSEX POWERLINES CORPORATION_STREET LIGHTING SERVICE CLASSIFICATION | D159: NON WMP | E159: NON CLASS A | F159: Street Lighting Connections | G159: Street Lighting | H159: 3560216 | I159: 10781
A160: 2015 | B160: Essex Powerlines Corporation | C160: ESSEX POWERLINES CORPORATION_UNMETERED SCATTERED LOAD SERVICE CLASSIFICATION | D160: NON WMP | E160: NON CLASS A | F160: Unmetered Scattered Load Connections | G160: Unmetered Scattered Load | H160: 462076 | I160: 0
A161: 2015 | B161: Festival Hydro Inc. | C161: FESTIVAL HYDRO INC._GENERAL SERVICE LESS THAN 50 KW SERVICE CLASSIFICATION | D161: NON WMP | E161: NON CLASS A | F161: General Service < 50 kW | G161: General Service Less Than 50 kW | H161: 15260787 | I161: 0
A162: 2015 | B162: Festival Hydro Inc. | C162: FESTIVAL HYDRO INC._GENERAL SERVICE 50 TO 4,999 KW SERVICE CLASSIFICATION | D162: NON WMP | E162: NON CLASS A | F162: General Service >= 50 kW | G162: General Service 50 to 4,999 kW | H162: 57297058 | I162: 147106
A163: 2015 | B163: Festival Hydro Inc. | C163: FESTIVAL HYDRO INC._LARGE USE SERVICE CLASSIFICATION | D163: NON WMP | E163: NON CLASS A | F163: Large User | G163: Large Use | H163: 6017901 | I163: 9346
A164: 2015 | B164: Festival Hydro Inc. | C164: FESTIVAL HYDRO INC._RESIDENTIAL SERVICE CLASSIFICATION | D164: NON WMP | E164: NON CLASS A | F164: Residential | G164: Residential | H164: 12747942 | I164: 0
A165: 2015 | B165: Festival Hydro Inc. | C165: FESTIVAL HYDRO INC._RESIDENTIAL - HENSALL SERVICE CLASSIFICATION | D165: NON WMP | E165: NON CLASS A | F165: Residential | G165: Residential - Hensall | H165: 394266 | I165: 0
A166: 2015 | B166: Festival Hydro Inc. | C166: FESTIVAL HYDRO INC._SENTINEL LIGHTING SERVICE CLASSIFICATION | D166: NON WMP | E166: NON CLASS A | F166: Sentinel Lighting Connections | G166: Sentinel Lighting | H166: 0 | I166: 0
A167: 2015 | B167: Festival Hydro Inc. | C167: FESTIVAL HYDRO INC._STREET LIGHTING SERVICE CLASSIFICATION | D167: NON WMP | E167: NON CLASS A | F167: Street Lighting Connections | G167: Street Lighting | H167: 3529343 | I167: 8966
A168: 2015 | B168: Festival Hydro Inc. | C168: FESTIVAL HYDRO INC._UNMETERED SCATTERED LOAD SERVICE CLASSIFICATION | D168: NON WMP | E168: NON CLASS A | F168: Unmetered Scattered Load Connections | G168: Unmetered Scattered Load | H168: 62671 | I168: 0
A169: 2015 | B169: Fort Frances Power Corporation | C169: FORT FRANCES POWER CORPORATION_GENERAL SERVICE LESS THAN 50 KW SERVICE CLASSIFICATION | D169: NON WMP | E169: NON CLASS A | F169: General Service < 50 kW | G169: General Service Less Than 50 kW | H169: 325738 | I169: 0
A170: 2015 | B170: Fort Frances Power Corporation | C170: FORT FRANCES POWER CORPORATION_GENERAL SERVICE 50 TO 4,999 KW SERVICE CLASSIFICATION | D170: NON WMP | E170: NON CLASS A | F170: General Service >= 50 kW | G170: General Service 50 to 4,999 kW | H170: 0 | I170: 0
A171: 2015 | B171: Fort Frances Power Corporation | C171: FORT FRANCES POWER CORPORATION_RESIDENTIAL SERVICE CLASSIFICATION | D171: NON WMP | E171: NON CLASS A | F171: Residential | G171: Residential | H171: 367384 | I171: 0
A172: 2015 | B172: Fort Frances Power Corporation | C172: FORT FRANCES POWER CORPORATION_STREET LIGHTING SERVICE CLASSIFICATION | D172: NON WMP | E172: NON CLASS A | F172: Street Lighting Connections | G172: Street Lighting | H172: 0 | I172: 0
A173: 2015 | B173: Fort Frances Power Corporation | C173: FORT FRANCES POWER CORPORATION_UNMETERED SCATTERED LOAD SERVICE CLASSIFICATION | D173: NON WMP | E173: NON CLASS A | F173: Unmetered Scattered Load Connections | G173: Unmetered Scattered Load | H173: 0 | I173: 0
A174: 2015 | B174: Greater Sudbury Hydro Inc. | C174: GREATER SUDBURY HYDRO INC._GENERAL SERVICE LESS THAN 50 KW SERVICE CLASSIFICATION | D174: NON WMP | E174: NON CLASS A | F174: General Service < 50 kW | G174: General Service Less Than 50 kW | H174: 16111425 | I174: 0
A175: 2015 | B175: Greater Sudbury Hydro Inc. | C175: GREATER SUDBURY HYDRO INC._GENERAL SERVICE 50 TO 4,999 KW SERVICE CLASSIFICATION | D175: NON WMP | E175: NON CLASS A | F175: General Service >= 50 kW | G175: General Service 50 to 4,999 kW | H175: 57358583 | I175: 154976
A176: 2015 | B176: Greater Sudbury Hydro Inc. | C176: GREATER SUDBURY HYDRO INC._RESIDENTIAL SERVICE CLASSIFICATION | D176: NON WMP | E176: NON CLASS A | F176: Residential | G176: Residential | H176: 22054275 | I176: 0
A177: 2015 | B177: Greater Sudbury Hydro Inc. | C177: GREATER SUDBURY HYDRO INC._SENTINEL LIGHTING SERVICE CLASSIFICATION | D177: NON WMP | E177: NON CLASS A | F177: Sentinel Lighting Connections | G177: Sentinel Lighting | H177: 5847 | I177: 16
A178: 2015 | B178: Greater Sudbury Hydro Inc. | C178: GREATER SUDBURY HYDRO INC._STREET LIGHTING SERVICE CLASSIFICATION | D178: NON WMP | E178: NON CLASS A | F178: Street Lighting Connections | G178: Street Lighting | H178: 0 | I178: 0
A179: 2015 | B179: Greater Sudbury Hydro Inc. | C179: GREATER SUDBURY HYDRO INC._UNMETERED SCATTERED LOAD SERVICE CLASSIFICATION | D179: NON WMP | E179: NON CLASS A | F179: Unmetered Scattered Load Connections | G179: Unmetered Scattered Load | H179: 868 | I179: 0
A180: 2015 | B180: Grimsby Power Incorporated | C180: GRIMSBY POWER INCORPORATED_GENERAL SERVICE LESS THAN 50 KW SERVICE CLASSIFICATION | D180: NON WMP | E180: NON CLASS A | F180: General Service < 50 kW | G180: General Service Less Than 50 kW | H180: 3597444 | I180: 0
A181: 2015 | B181: Grimsby Power Incorporated | C181: GRIMSBY POWER INCORPORATED_GENERAL SERVICE 50 TO 4,999 KW SERVICE CLASSIFICATION | D181: NON WMP | E181: NON CLASS A | F181: General Service >= 50 kW | G181: General Service 50 to 4,999 kW | H181: 14815554 | I181: 43710
A182: 2015 | B182: Grimsby Power Incorporated | C182: GRIMSBY POWER INCORPORATED_RESIDENTIAL SERVICE CLASSIFICATION | D182: NON WMP | E182: NON CLASS A | F182: Residential | G182: Residential | H182: 4764169 | I182: 0
A183: 2015 | B183: Grimsby Power Incorporated | C183: GRIMSBY POWER INCORPORATED_STREET LIGHTING SERVICE CLASSIFICATION | D183: NON WMP | E183: NON CLASS A | F183: Street Lighting Connections | G183: Street Lighting | H183: 1299920 | I183: 3445
A184: 2015 | B184: Grimsby Power Incorporated | C184: GRIMSBY POWER INCORPORATED_UNMETERED SCATTERED LOAD SERVICE CLASSIFICATION | D184: NON WMP | E184: NON CLASS A | F184: Unmetered Scattered Load Connections | G184: Unmetered Scattered Load | H184: 1156 | I184: 0
A185: 2015 | B185: Guelph Hydro Electric Systems Inc. | C185: GUELPH HYDRO ELECTRIC SYSTEMS INC._GENERAL SERVICE LESS THAN 50 KW SERVICE CLASSIFICATION | D185: NON WMP | E185: NON CLASS A | F185: General Service < 50 kW | G185: General Service Less Than 50 kW | H185: 24119109 | I185: 0
A186: 2015 | B186: Guelph Hydro Electric Systems Inc. | C186: GUELPH HYDRO ELECTRIC SYSTEMS INC._GENERAL SERVICE 1,000 TO 4,999 KW SERVICE CLASSIFICATION | D186: NON WMP | E186: NON CLASS A | F186: General Service >= 50 kW | G186: General Service 1,000 to 4,999 kW | H186: 56130602 | I186: 109706
A187: 2015 | B187: Guelph Hydro Electric Systems Inc. | C187: GUELPH HYDRO ELECTRIC SYSTEMS INC._GENERAL SERVICES 50 TO 999 KW SERVICE CLASSIFICATION | D187: NON WMP | E187: NON CLASS A | F187: General Service >= 50 kW | G187: General Services 50 to 999 kW | H187: 99421741 | I187: 264167
A188: 2015 | B188: Guelph Hydro Electric Systems Inc. | C188: GUELPH HYDRO ELECTRIC SYSTEMS INC._LARGE USE SERVICE CLASSIFICATION | D188: NON WMP | E188: NON CLASS A | F188: Large User | G188: Large Use | H188: 62619436 | I188: 96048
A189: 2015 | B189: Guelph Hydro Electric Systems Inc. | C189: GUELPH HYDRO ELECTRIC SYSTEMS INC._RESIDENTIAL SERVICE CLASSIFICATION | D189: NON WMP | E189: NON CLASS A | F189: Residential | G189: Residential | H189: 22268029 | I189: 0
A190: 2015 | B190: Guelph Hydro Electric Systems Inc. | C190: GUELPH HYDRO ELECTRIC SYSTEMS INC._SENTINEL LIGHTING SERVICE CLASSIFICATION | D190: NON WMP | E190: NON CLASS A | F190: Sentinel Lighting Connections | G190: Sentinel Lighting | H190: 2222 | I190: 6
A191: 2015 | B191: Guelph Hydro Electric Systems Inc. | C191: GUELPH HYDRO ELECTRIC SYSTEMS INC._STREET LIGHTING SERVICE CLASSIFICATION | D191: NON WMP | E191: NON CLASS A | F191: Street Lighting Connections | G191: Street Lighting | H191: 233761 | I191: 653
A192: 2015 | B192: Guelph Hydro Electric Systems Inc. | C192: GUELPH HYDRO ELECTRIC SYSTEMS INC._UNMETERED SCATTERED LOAD SERVICE CLASSIFICATION | D192: NON WMP | E192: NON CLASS A | F192: Unmetered Scattered Load Connections | G192: Unmetered Scattered Load | H192: 12646 | I192: 0
A193: 2015 | B193: Haldimand County Hydro Inc. | C193: HALDIMAND COUNTY HYDRO INC._EMBEDDED DISTRIBUTOR - HYDRO ONE SERVICE CLASSIFICATION | D193: NON WMP | E193: NON CLASS A | F193: Embedded Distributor(s) | G193: Embedded Distributor - Hydro One | H193: 0 | I193: 0
A194: 2015 | B194: Haldimand County Hydro Inc. | C194: HALDIMAND COUNTY HYDRO INC._GENERAL SERVICE LESS THAN 50 KW SERVICE CLASSIFICATION | D194: NON WMP | E194: NON CLASS A | F194: General Service < 50 kW | G194: General Service Less Than 50 kW | H194: 15586676 | I194: 0
A195: 2015 | B195: Haldimand County Hydro Inc. | C195: HALDIMAND COUNTY HYDRO INC._GENERAL SERVICE 50 TO 4,999 KW SERVICE CLASSIFICATION | D195: NON WMP | E195: NON CLASS A | F195: General Service >= 50 kW | G195: General Service 50 to 4,999 kW | H195: 43442018 | I195: 108766
A196: 2015 | B196: Haldimand County Hydro Inc. | C196: HALDIMAND COUNTY HYDRO INC._RESIDENTIAL SERVICE CLASSIFICATION | D196: NON WMP | E196: NON CLASS A | F196: Residential | G196: Residential | H196: 15009649 | I196: 0
A197: 2015 | B197: Haldimand County Hydro Inc. | C197: =IF(ISERROR(FIND("WMP",G197))=TRUE, UPPER(B197)&"_"&UPPER(G197)&" "&"SERVICE CLASSIFICATION", UPPER(B197)&"_"&UPPER(LEFT(G197,FIND(" -",G197)-1))&" SERVICE CLASSIFICATION") -> HALDIMAND COUNTY HYDRO INC._SENTINEL LIGHTING SERVICE CLASSIFICATION | D197: NON WMP | E197: NON CLASS A | F197: Sentinel Lighting Connections | G197: Sentinel Lighting | H197: 52461 | I197: 145
A198: 2015 | B198: Haldimand County Hydro Inc. | C198: HALDIMAND COUNTY HYDRO INC._STREET LIGHTING SERVICE CLASSIFICATION | D198: =IF(ISERROR(FIND("- WMP", G198))=TRUE, "NON WMP", "WMP") -> NON WMP | E198: =IF(ISERROR(FIND("- Class A", G198))=TRUE, "NON CLASS A", "CLASS A") -> NON CLASS A | F198: Street Lighting Connections | G198: Street Lighting | H198: 2344629 | I198: 6538
A199: 2015 | B199: Haldimand County Hydro Inc. | C199: HALDIMAND COUNTY HYDRO INC._UNMETERED SCATTERED LOAD SERVICE CLASSIFICATION | D199: NON WMP | E199: NON CLASS A | F199: Unmetered Scattered Load Connections | G199: Unmetered Scattered Load | H199: 70502 | I199: 0
A200: 2015 | B200: Halton Hills Hydro Inc. | C200: HALTON HILLS HYDRO INC._GENERAL SERVICE LESS THAN 50 KW SERVICE CLASSIFICATION | D200: NON WMP | E200: NON CLASS A | F200: General Service < 50 kW | G200: General Service Less Than 50 kW | H200: 9216177 | I200: 0
A201: 2015 | B201: Halton Hills Hydro Inc. | C201: HALTON HILLS HYDRO INC._GENERAL SERVICE 1,000 TO 4,999 KW SERVICE CLASSIFICATION | D201: NON WMP | E201: NON CLASS A | F201: General Service >= 50 kW | G201: General Service 1,000 to 4,999 kW | H201: 6425625 | I201: 13985
... 333 more rows

Sheet 2.1.5 DistributrConsumptionData (hidden)
A2: 215_DistributorCustomerConsumption_Detail
A3: Filing_Year | B3: Company_Name | C3: combined | D3: WMP? | E3: Class A? | F3: Rate_Class | G3: Rate_Class_Detail | H3: RPPMeterCustkW | I3: RPPMeterCustkWh | J3: NonRPPMeterCustkW | K3: NonRPPMeterCustkWh | L3: TotConsmptionforDistCustkW | M3: TotConsmptionforDistCustkWh
A4: 2015 | B4: Algoma Power Inc. | C4: =IF(ISERROR(FIND("WMP",G4))=TRUE, UPPER(B4)&"_"&UPPER(G4)&" "&"SERVICE CLASSIFICATION", UPPER(B4)&"_"&UPPER(LEFT(G4,FIND(" -",G4)-1))&" SERVICE CLASSIFICATION") -> ALGOMA POWER INC._RESIDENTIAL - R2 SERVICE CLASSIFICATION | D4: =IF(ISERROR(FIND("- WMP", G4))=TRUE, "NON WMP", "WMP") -> NON WMP | E4: =IF(ISERROR(FIND("- Class A", G4))=TRUE, "NON CLASS A", "CLASS A") -> NON CLASS A | F4: General Service >= 50 kW | G4: Residential - R2 | H4: 18841 | I4: 5367254 | J4: 167876 | K4: 73970815 | L4: 186717 | M4: 79338070
A5: 2015 | B5: Algoma Power Inc. | C5: ALGOMA POWER INC._RESIDENTIAL - R1 SERVICE CLASSIFICATION | D5: =IF(ISERROR(FIND("- WMP", G5))=TRUE, "NON WMP", "WMP") -> NON WMP | E5: =IF(ISERROR(FIND("- Class A", G5))=TRUE, "NON CLASS A", "CLASS A") -> NON CLASS A | F5: Residential | G5: Residential - R1 | H5: 0 | I5: 109490039 | J5: 0 | K5: 0 | L5: 0 | M5: 109490039
A6: 2015 | B6: Algoma Power Inc. | C6: ALGOMA POWER INC._SEASONAL CUSTOMERS SERVICE CLASSIFICATION | D6: NON WMP | E6: NON CLASS A | F6: Residential | G6: Seasonal Customers | H6: 0 | I6: 7859893 | J6: 0 | K6: 0 | L6: 0 | M6: 7859893
A7: 2015 | B7: Algoma Power Inc. | C7: ALGOMA POWER INC._STREET LIGHTING SERVICE CLASSIFICATION | D7: NON WMP | E7: NON CLASS A | F7: Street Lighting Connections | G7: Street Lighting | H7: 0 | I7: 0 | J7: 0 | K7: 560751 | L7: 0 | M7: 560751
A8: 2015 | B8: Atikokan Hydro Inc. | C8: ATIKOKAN HYDRO INC._GENERAL SERVICE LESS THAN 50 KW SERVICE CLASSIFICATION | D8: NON WMP | E8: NON CLASS A | F8: General Service < 50 kW | G8: General Service Less Than 50 kW | H8: 0 | I8: 5174335 | J8: 0 | K8: 0 | L8: 0 | M8: 5174335
A9: 2015 | B9: Atikokan Hydro Inc. | C9: ATIKOKAN HYDRO INC._GENERAL SERVICE 50 TO 499 KW SERVICE CLASSIFICATION | D9: NON WMP | E9: NON CLASS A | F9: General Service >= 50 kW | G9: General Service 50 to 499 kW | H9: 7098921 | I9: 0 | J9: 129972 | K9: 7098921 | L9: 7228893 | M9: 7098921
A10: 2015 | B10: Atikokan Hydro Inc. | C10: ATIKOKAN HYDRO INC._RESIDENTIAL SERVICE CLASSIFICATION | D10: NON WMP | E10: NON CLASS A | F10: Residential | G10: Residential | H10: 0 | I10: 9531881 | J10: 0 | K10: 0 | L10: 0 | M10: 9531881
A11: 2015 | B11: Atikokan Hydro Inc. | C11: ATIKOKAN HYDRO INC._STREET LIGHTING SERVICE CLASSIFICATION | D11: NON WMP | E11: NON CLASS A | F11: Street Lighting Connections | G11: Street Lighting | H11: 466563 | I11: 0 | J11: 1455 | K11: 466563 | L11: 468017 | M11: 466563
A12: 2015 | B12: Bluewater Power Distribution Corporation | C12: BLUEWATER POWER DISTRIBUTION CORPORATION_GENERAL SERVICE LESS THAN 50 KW SERVICE CLASSIFICATION | D12: NON WMP | E12: NON CLASS A | F12: General Service < 50 kW | G12: General Service Less Than 50 kW | H12: 0 | I12: 91429414 | J12: 0 | K12: 0 | L12: 0 | M12: 91429414
A13: 2015 | B13: Bluewater Power Distribution Corporation | C13: BLUEWATER POWER DISTRIBUTION CORPORATION_GENERAL SERVICE 1,000 TO 4,999 KW SERVICE CLASSIFICATION | D13: NON WMP | E13: NON CLASS A | F13: General Service >= 50 kW | G13: General Service 1,000 to 4,999 kW | H13: 0 | I13: 0 | J13: 327658 | K13: 142509961 | L13: 327658 | M13: 142509961
A14: 2015 | B14: Bluewater Power Distribution Corporation | C14: BLUEWATER POWER DISTRIBUTION CORPORATION_GENERAL SERVICE 50 TO 999 KW SERVICE CLASSIFICATION | D14: NON WMP | E14: NON CLASS A | F14: General Service >= 50 kW | G14: General Service 50 to 999 kW - non WMP | H14: 126571 | I14: 46431883 | J14: 368768 | K14: 136385207 | L14: 495339 | M14: 182817090
A15: 2015 | B15: Bluewater Power Distribution Corporation | C15: BLUEWATER POWER DISTRIBUTION CORPORATION_GENERAL SERVICE 50 TO 999 KW SERVICE CLASSIFICATION | D15: WMP | E15: NON CLASS A | F15: General Service >= 50 kW | G15: General Service 50 to 999 kW - WMP | H15: 0 | I15: 0 | J15: 9724 | K15: 5281274 | L15: 9724 | M15: 5281274
A16: 2015 | B16: Bluewater Power Distribution Corporation | C16: BLUEWATER POWER DISTRIBUTION CORPORATION_LARGE USE SERVICE CLASSIFICATION | D16: NON WMP | E16: NON CLASS A | F16: Large User | G16: Large Use - non WMP | H16: 0 | I16: 0 | J16: 210812 | K16: 144864595 | L16: 210812 | M16: 144864595
A17: 2015 | B17: Bluewater Power Distribution Corporation | C17: BLUEWATER POWER DISTRIBUTION CORPORATION_LARGE USE SERVICE CLASSIFICATION | D17: WMP | E17: NON CLASS A | F17: Large User | G17: Large Use - WMP | H17: 0 | I17: 0 | J17: 193252 | K17: 112909781 | L17: 193252 | M17: 112909781
A18: 2015 | B18: Bluewater Power Distribution Corporation | C18: BLUEWATER POWER DISTRIBUTION CORPORATION_RESIDENTIAL SERVICE CLASSIFICATION | D18: NON WMP | E18: NON CLASS A | F18: Residential | G18: Residential | H18: 0 | I18: 230941687 | J18: 0 | K18: 0 | L18: 0 | M18: 230941687
A19: 2015 | B19: Bluewater Power Distribution Corporation | C19: BLUEWATER POWER DISTRIBUTION CORPORATION_SENTINEL LIGHTING SERVICE CLASSIFICATION | D19: NON WMP | E19: NON CLASS A | F19: Sentinel Lighting Connections | G19: Sentinel Lighting | H19: 1278 | I19: 513783 | J19: 0 | K19: 0 | L19: 1278 | M19: 513783
A20: 2015 | B20: Bluewater Power Distribution Corporation | C20: BLUEWATER POWER DISTRIBUTION CORPORATION_STREET LIGHTING SERVICE CLASSIFICATION | D20: NON WMP | E20: NON CLASS A | F20: Street Lighting Connections | G20: Street Lighting | H20: 0 | I20: 0 | J20: 21697 | K20: 8086583 | L20: 21697 | M20: 8086583
A21: 2015 | B21: Bluewater Power Distribution Corporation | C21: BLUEWATER POWER DISTRIBUTION CORPORATION_UNMETERED SCATTERED LOAD SERVICE CLASSIFICATION | D21: NON WMP | E21: NON CLASS A | F21: Unmetered Scattered Load Connections | G21: Unmetered Scattered Load | H21: 0 | I21: 2203828 | J21: 0 | K21: 0 | L21: 0 | M21: 2203828
A22: 2015 | B22: Brant County Power Inc. | C22: BRANT COUNTY POWER INC._GENERAL SERVICE LESS THAN 50 KW SERVICE CLASSIFICATION | D22: NON WMP | E22: NON CLASS A | F22: General Service < 50 kW | G22: General Service Less Than 50 kW | H22: 646 | I22: 31104815 | J22: 0 | K22: 471240 | L22: 646 | M22: 31576055
A23: 2015 | B23: Brant County Power Inc. | C23: BRANT COUNTY POWER INC._GENERAL SERVICE 50 TO 4,999 KW SERVICE CLASSIFICATION | D23: NON WMP | E23: NON CLASS A | F23: General Service >= 50 kW | G23: General Service 50 to 4,999 kW | H23: 23442 | I23: 3954363 | J23: 268691 | K23: 136414515 | L23: 292132 | M23: 140368878
A24: 2015 | B24: Brant County Power Inc. | C24: BRANT COUNTY POWER INC._RESIDENTIAL SERVICE CLASSIFICATION | D24: NON WMP | E24: NON CLASS A | F24: Residential | G24: Residential | H24: 0 | I24: 78392446 | J24: 0 | K24: 15531 | L24: 0 | M24: 78407977
A25: 2015 | B25: Brant County Power Inc. | C25: BRANT COUNTY POWER INC._SENTINEL LIGHTING SERVICE CLASSIFICATION | D25: NON WMP | E25: NON CLASS A | F25: Sentinel Lighting Connections | G25: Sentinel Lighting | H25: 278 | I25: 140673 | J25: 10 | K25: 4855 | L25: 288 | M25: 145528
A26: 2015 | B26: Brant County Power Inc. | C26: BRANT COUNTY POWER INC._STREET LIGHTING SERVICE CLASSIFICATION | D26: NON WMP | E26: NON CLASS A | F26: Street Lighting Connections | G26: Street Lighting | H26: 0 | I26: 0 | J26: 0 | K26: 0 | L26: 0 | M26: 0
A27: 2015 | B27: Brant County Power Inc. | C27: BRANT COUNTY POWER INC._UNMETERED SCATTERED LOAD SERVICE CLASSIFICATION | D27: NON WMP | E27: NON CLASS A | F27: Unmetered Scattered Load Connections | G27: Unmetered Scattered Load | H27: 0 | I27: 217668 | J27: 0 | K27: 0 | L27: 0 | M27: 217668
A28: 2015 | B28: Brantford Power Inc. | C28: BRANTFORD POWER INC._EMBEDDED DISTRIBUTOR SERVICE CLASSIFICATION | D28: NON WMP | E28: NON CLASS A | F28: Embedded Distributor(s) | G28: Embedded Distributor | H28: 0 | I28: 0 | J28: 0 | K28: 0 | L28: 0 | M28: 0
A29: 2015 | B29: Brantford Power Inc. | C29: BRANTFORD POWER INC._GENERAL SERVICE LESS THAN 50 KW SERVICE CLASSIFICATION | D29: NON WMP | E29: NON CLASS A | F29: General Service < 50 kW | G29: General Service Less Than 50 kW | H29: 0 | I29: 88184465 | J29: 0 | K29: 120741 | L29: 0 | M29: 88305206
A30: 2015 | B30: Brantford Power Inc. | C30: BRANTFORD POWER INC._GENERAL SERVICE 50 TO 4,999 KW SERVICE CLASSIFICATION | D30: NON WMP | E30: NON CLASS A | F30: General Service >= 50 kW | G30: General Service 50 to 4,999 kW | H30: 142257 | I30: 38557544 | J30: 992668 | K30: 371514074 | L30: 1134924 | M30: 410071618
A31: 2015 | B31: Brantford Power Inc. | C31: BRANTFORD POWER INC._RESIDENTIAL SERVICE CLASSIFICATION | D31: NON WMP | E31: NON CLASS A | F31: Residential | G31: Residential | H31: 0 | I31: 263367526 | J31: 0 | K31: 0 | L31: 0 | M31: 263367526
A32: 2015 | B32: Brantford Power Inc. | C32: BRANTFORD POWER INC._SENTINEL LIGHTING SERVICE CLASSIFICATION | D32: NON WMP | E32: NON CLASS A | F32: Sentinel Lighting Connections | G32: Sentinel Lighting | H32: 0 | I32: 366583 | J32: 0 | K32: 65008 | L32: 0 | M32: 431591
A33: 2015 | B33: Brantford Power Inc. | C33: BRANTFORD POWER INC._STREET LIGHTING SERVICE CLASSIFICATION | D33: NON WMP | E33: NON CLASS A | F33: Street Lighting Connections | G33: Street Lighting | H33: 0 | I33: 0 | J33: 22553 | K33: 7378259 | L33: 22553 | M33: 7378259
A34: 2015 | B34: Brantford Power Inc. | C34: BRANTFORD POWER INC._UNMETERED SCATTERED LOAD SERVICE CLASSIFICATION | D34: NON WMP | E34: NON CLASS A | F34: Unmetered Scattered Load Connections | G34: Unmetered Scattered Load | H34: 0 | I34: 1528194 | J34: 0 | K34: 0 | L34: 0 | M34: 1528194
A35: 2015 | B35: Burlington Hydro Inc. | C35: BURLINGTON HYDRO INC._GENERAL SERVICE LESS THAN 50 KW SERVICE CLASSIFICATION | D35: NON WMP | E35: NON CLASS A | F35: General Service < 50 kW | G35: General Service Less Than 50 kW | H35: 3764 | I35: 145928074 | J35: 570 | K35: 206430 | L35: 4334 | M35: 146134504
A36: 2015 | B36: Burlington Hydro Inc. | C36: BURLINGTON HYDRO INC._GENERAL SERVICE 50 TO 4,999 KW SERVICE CLASSIFICATION | D36: NON WMP | E36: NON CLASS A | F36: General Service >= 50 kW | G36: General Service 50 to 4,999 kW | H36: 351942 | I36: 120065671 | J36: 1599538 | K36: 600587455 | L36: 1951480 | M36: 720653126
A37: 2015 | B37: Burlington Hydro Inc. | C37: BURLINGTON HYDRO INC._RESIDENTIAL SERVICE CLASSIFICATION | D37: NON WMP | E37: NON CLASS A | F37: Residential | G37: Residential | H37: 0 | I37: 508640695 | J37: 0 | K37: 0 | L37: 0 | M37: 508640695
A38: 2015 | B38: Burlington Hydro Inc. | C38: BURLINGTON HYDRO INC._STREET LIGHTING SERVICE CLASSIFICATION | D38: NON WMP | E38: NON CLASS A | F38: Street Lighting Connections | G38: Street Lighting | H38: 131 | I38: 49391 | J38: 27503 | K38: 9859135 | L38: 27634 | M38: 9908526
A39: 2015 | B39: Burlington Hydro Inc. | C39: BURLINGTON HYDRO INC._UNMETERED SCATTERED LOAD SERVICE CLASSIFICATION | D39: NON WMP | E39: NON CLASS A | F39: Unmetered Scattered Load Connections | G39: Unmetered Scattered Load | H39: 0 | I39: 2918355 | J39: 0 | K39: 0 | L39: 0 | M39: 2918355
A40: 2015 | B40: Cambridge and North Dumfries Hydro Inc. | C40: CAMBRIDGE AND NORTH DUMFRIES HYDRO INC._EMBEDDED DISTRIBUTOR - HYDRO ONE SERVICE CLASSIFICATION | D40: NON WMP | E40: NON CLASS A | F40: Embedded Distributor(s) | G40: Embedded Distributor - Hydro One | H40: 0 | I40: 0 | J40: 28705 | K40: 0 | L40: 28705 | M40: 0
A41: 2015 | B41: Cambridge and North Dumfries Hydro Inc. | C41: CAMBRIDGE AND NORTH DUMFRIES HYDRO INC._EMBEDDED DISTRIBUTOR - WATERLOO NORTH SERVICE CLASSIFICATION | D41: NON WMP | E41: NON CLASS A | F41: Embedded Distributor(s) | G41: Embedded Distributor - Waterloo North | H41: 0 | I41: 0 | J41: 106790 | K41: 0 | L41: 106790 | M41: 0
A42: 2015 | B42: Cambridge and North Dumfries Hydro Inc. | C42: CAMBRIDGE AND NORTH DUMFRIES HYDRO INC._GENERAL SERVICE LESS THAN 50 KW SERVICE CLASSIFICATION | D42: NON WMP | E42: NON CLASS A | F42: General Service < 50 kW | G42: General Service Less Than 50 kW | H42: 0 | I42: 137307042 | J42: 0 | K42: 42947 | L42: 0 | M42: 137349989
A43: 2015 | B43: Cambridge and North Dumfries Hydro Inc. | C43: CAMBRIDGE AND NORTH DUMFRIES HYDRO INC._GENERAL SERVICE 1,000 TO 4,999 KW SERVICE CLASSIFICATION | D43: NON WMP | E43: NON CLASS A | F43: General Service >= 50 kW | G43: General Service 1,000 to 4,999 kW | H43: 0 | I43: 0 | J43: 565464 | K43: 204991197 | L43: 565464 | M43: 204991197
A44: 2015 | B44: Cambridge and North Dumfries Hydro Inc. | C44: CAMBRIDGE AND NORTH DUMFRIES HYDRO INC._GENERAL SERVICE 50 TO 999 KW SERVICE CLASSIFICATION | D44: NON WMP | E44: NON CLASS A | F44: General Service >= 50 kW | G44: General Service 50 to 999 kW | H44: 0 | I44: 144008702 | J44: 1306317 | K44: 209223259 | L44: 1306317 | M44: 353231961
A45: 2015 | B45: Cambridge and North Dumfries Hydro Inc. | C45: CAMBRIDGE AND NORTH DUMFRIES HYDRO INC._LARGE USE SERVICE CLASSIFICATION | D45: NON WMP | E45: NON CLASS A | F45: Large User | G45: Large Use | H45: 0 | I45: 0 | J45: 438547 | K45: 205265395 | L45: 438547 | M45: 205265395
A46: 2015 | B46: Cambridge and North Dumfries Hydro Inc. | C46: CAMBRIDGE AND NORTH DUMFRIES HYDRO INC._RESIDENTIAL SERVICE CLASSIFICATION | D46: NON WMP | E46: NON CLASS A | F46: Residential | G46: Residential | H46: 0 | I46: 374022248 | J46: 0 | K46: 0 | L46: 0 | M46: 374022248
A47: 2015 | B47: Cambridge and North Dumfries Hydro Inc. | C47: CAMBRIDGE AND NORTH DUMFRIES HYDRO INC._STREET LIGHTING SERVICE CLASSIFICATION | D47: NON WMP | E47: NON CLASS A | F47: Street Lighting Connections | G47: Street Lighting | H47: 0 | I47: 0 | J47: 27085 | K47: 2831594 | L47: 27085 | M47: 2831594
A48: 2015 | B48: Cambridge and North Dumfries Hydro Inc. | C48: CAMBRIDGE AND NORTH DUMFRIES HYDRO INC._UNMETERED SCATTERED LOAD SERVICE CLASSIFICATION | D48: NON WMP | E48: NON CLASS A | F48: Unmetered Scattered Load Connections | G48: Unmetered Scattered Load | H48: 0 | I48: 2009374 | J48: 0 | K48: 0 | L48: 0 | M48: 2009374
A49: 2015 | B49: Canadian Niagara Power Inc. | C49: CANADIAN NIAGARA POWER INC._GENERAL SERVICE LESS THAN 50 KW SERVICE CLASSIFICATION - EASTERN ONTARIO POWER SERVICE AREA SERVICE CLASSIFICATION | D49: NON WMP | E49: NON CLASS A | F49: General Service < 50 kW | G49: General Service Less Than 50 kW Service Classification - Eastern Ontario Power Service Area | H49: 0 | I49: 10938610 | J49: 0 | K49: 0 | L49: 0 | M49: 10938610
A50: 2015 | B50: Canadian Niagara Power Inc. | C50: CANADIAN NIAGARA POWER INC._GENERAL SERVICE LESS THAN 50 KW SERVICE CLASSIFICATION - FORT ERIE SERVICE AREA SERVICE CLASSIFICATION | D50: NON WMP | E50: NON CLASS A | F50: General Service < 50 kW | G50: General Service Less Than 50 kW Service Classification - Fort Erie Service Area | H50: 0 | I50: 27475852 | J50: 0 | K50: 0 | L50: 0 | M50: 27475852
A51: 2015 | B51: Canadian Niagara Power Inc. | C51: CANADIAN NIAGARA POWER INC._GENERAL SERVICE LESS THAN 50 KW SERVICE CLASSIFICATION - PORT COLBORNE SERVICE AREA SERVICE CLASSIFICATION | D51: NON WMP | E51: NON CLASS A | F51: General Service < 50 kW | G51: General Service Less Than 50 kW Service Classification - Port Colborne Service Area | H51: 0 | I51: 19633676 | J51: 0 | K51: 0 | L51: 0 | M51: 19633676
A52: 2015 | B52: Canadian Niagara Power Inc. | C52: CANADIAN NIAGARA POWER INC._GENERAL SERVICE 50 TO 4,999 KW SERVICE CLASSIFICATION - EASTERN ONTARIO POWER SERVICE AREA SERVICE CLASSIFICATION | D52: NON WMP | E52: NON CLASS A | F52: General Service >= 50 kW | G52: General Service 50 to 4,999 kW Service Classification - Eastern Ontario Power Service Area | H52: 5760 | I52: 2169364 | J52: 37991 | K52: 14017746 | L52: 43751 | M52: 16187110
A53: 2015 | B53: Canadian Niagara Power Inc. | C53: CANADIAN NIAGARA POWER INC._GENERAL SERVICE 50 TO 4,999 KW SERVICE CLASSIFICATION - FORT ERIE SERVICE AREA SERVICE CLASSIFICATION | D53: NON WMP | E53: NON CLASS A | F53: General Service >= 50 kW | G53: General Service 50 to 4,999 kW Service Classification - Fort Erie Service Area | H53: 37050 | I53: 11103797 | J53: 228020 | K53: 87366572 | L53: 265070 | M53: 98470369
A54: 2015 | B54: Canadian Niagara Power Inc. | C54: CANADIAN NIAGARA POWER INC._GENERAL SERVICE 50 TO 4,999 KW SERVICE CLASSIFICATION - PORT COLBORNE SERVICE AREA SERVICE CLASSIFICATION | D54: NON WMP | E54: NON CLASS A | F54: General Service >= 50 kW | G54: General Service 50 to 4,999 kW Service Classification - Port Colborne Service Area | H54: 23958 | I54: 7739819 | J54: 280668 | K54: 95100994 | L54: 304626 | M54: 102840813
A55: 2015 | B55: Canadian Niagara Power Inc. | C55: CANADIAN NIAGARA POWER INC._RESIDENTIAL SERVICE CLASSIFICATION - EASTERN ONTARIO POWER SERVICE AREA SERVICE CLASSIFICATION | D55: NON WMP | E55: NON CLASS A | F55: Residential | G55: Residential Service Classification - Eastern Ontario Power Service Area | H55: 0 | I55: 26795760 | J55: 0 | K55: 0 | L55: 0 | M55: 26795760
A56: 2015 | B56: Canadian Niagara Power Inc. | C56: CANADIAN NIAGARA POWER INC._RESIDENTIAL SERVICE CLASSIFICATION - FORT ERIE SERVICE AREA SERVICE CLASSIFICATION | D56: NON WMP | E56: NON CLASS A | F56: Residential | G56: Residential Service Classification - Fort Erie Service Area | H56: 0 | I56: 103768540 | J56: 0 | K56: 0 | L56: 0 | M56: 103768540
A57: 2015 | B57: Canadian Niagara Power Inc. | C57: CANADIAN NIAGARA POWER INC._RESIDENTIAL SERVICE CLASSIFICATION - PORT COLBORNE SERVICE AREA SERVICE CLASSIFICATION | D57: NON WMP | E57: NON CLASS A | F57: Residential | G57: Residential Service Classification - Port Colborne Service Area | H57: 0 | I57: 58148956 | J57: 0 | K57: 0 | L57: 0 | M57: 58148956
A58: 2015 | B58: Canadian Niagara Power Inc. | C58: CANADIAN NIAGARA POWER INC._SENTINEL LIGHTING SERVICE CLASSIFICATION- EASTERN ONTARIO POWER SERVICE AREA SERVICE CLASSIFICATION | D58: NON WMP | E58: NON CLASS A | F58: Sentinel Lighting Connections | G58: Sentinel Lighting Service Classification- Eastern Ontario Power Service Area | H58: 102 | I58: 33674 | J58: 0 | K58: 0 | L58: 102 | M58: 33674
A59: 2015 | B59: Canadian Niagara Power Inc. | C59: CANADIAN NIAGARA POWER INC._SENTINEL LIGHTING SERVICE CLASSIFICATION - FORT ERIE SERVICE AREA SERVICE CLASSIFICATION | D59: NON WMP | E59: NON CLASS A | F59: Sentinel Lighting Connections | G59: Sentinel Lighting Service Classification - Fort Erie Service Area | H59: 1980 | I59: 649772 | J59: 0 | K59: 0 | L59: 1980 | M59: 649772
A60: 2015 | B60: Canadian Niagara Power Inc. | C60: CANADIAN NIAGARA POWER INC._SENTINEL LIGHTING SERVICE CLASSIFICATION - PORT COLBORNE SERVICE AREA SERVICE CLASSIFICATION | D60: NON WMP | E60: NON CLASS A | F60: Sentinel Lighting Connections | G60: Sentinel Lighting Service Classification - Port Colborne Service Area | H60: 43 | I60: 13840 | J60: 0 | K60: 0 | L60: 43 | M60: 13840
A61: 2015 | B61: Canadian Niagara Power Inc. | C61: CANADIAN NIAGARA POWER INC._STREET LIGHTING SERVICE CLASSIFICATION - EASTERN ONTARIO POWER SERVICE AREA SERVICE CLASSIFICATION | D61: NON WMP | E61: NON CLASS A | F61: Street Lighting Connections | G61: Street Lighting Service Classification - Eastern Ontario Power Service Area | H61: 84 | I61: 27603 | J61: 1586 | K61: 521008 | L61: 1670 | M61: 548610
A62: 2015 | B62: Canadian Niagara Power Inc. | C62: CANADIAN NIAGARA POWER INC._STREET LIGHTING SERVICE CLASSIFICATION - FORT ERIE SERVICE AREA SERVICE CLASSIFICATION | D62: NON WMP | E62: NON CLASS A | F62: Street Lighting Connections | G62: Street Lighting Service Classification - Fort Erie Service Area | H62: 203 | I62: 48346 | J62: 6408 | K62: 2105278 | L62: 6611 | M62: 2153624
A63: 2015 | B63: Canadian Niagara Power Inc. | C63: CANADIAN NIAGARA POWER INC._STREET LIGHTING SERVICE CLASSIFICATION - PORT COLBORNE SERVICE AREA SERVICE CLASSIFICATION | D63: NON WMP | E63: NON CLASS A | F63: Street Lighting Connections | G63: Street Lighting Service Classification - Port Colborne Service Area | H63: 82 | I63: 17333 | J63: 4872 | K63: 1600439 | L63: 4953 | M63: 1617772
A64: 2015 | B64: Canadian Niagara Power Inc. | C64: CANADIAN NIAGARA POWER INC._UNMETERED SCATTERED LOAD SERVICE CLASSIFICATION - EASTERN ONTARIO POWER SERVICE AREA SERVICE CLASSIFICATION | D64: NON WMP | E64: NON CLASS A | F64: Unmetered Scattered Load Connections | G64: Unmetered Scattered Load Service Classification - Eastern Ontario Power Service Area | H64: 0 | I64: 158504 | J64: 0 | K64: 0 | L64: 0 | M64: 158504
A65: 2015 | B65: Canadian Niagara Power Inc. | C65: CANADIAN NIAGARA POWER INC._UNMETERED SCATTERED LOAD SERVICE CLASSIFICATION - FORT ERIE SERVICE AREA SERVICE CLASSIFICATION | D65: NON WMP | E65: NON CLASS A | F65: Unmetered Scattered Load Connections | G65: Unmetered Scattered Load Service Classification - Fort Erie Service Area | H65: 0 | I65: 780861 | J65: 0 | K65: 0 | L65: 0 | M65: 780861
A66: 2015 | B66: Canadian Niagara Power Inc. | C66: CANADIAN NIAGARA POWER INC._UNMETERED SCATTERED LOAD SERVICE CLASSIFICATION - PORT COLBORNE SERVICE AREA SERVICE CLASSIFICATION | D66: NON WMP | E66: NON CLASS A | F66: Unmetered Scattered Load Connections | G66: Unmetered Scattered Load Service Classification - Port Colborne Service Area | H66: 0 | I66: 557420 | J66: 0 | K66: 0 | L66: 0 | M66: 557420
A67: 2015 | B67: Centre Wellington Hydro Ltd. | C67: CENTRE WELLINGTON HYDRO LTD._GENERAL SERVICE LESS THAN 50 KW SERVICE CLASSIFICATION | D67: NON WMP | E67: NON CLASS A | F67: General Service < 50 kW | G67: General Service Less Than 50 kW | H67: 0 | I67: 16773058 | J67: 0 | K67: 12092 | L67: 0 | M67: 16785150
A68: 2015 | B68: Centre Wellington Hydro Ltd. | C68: =IF(ISERROR(FIND("WMP",G68))=TRUE, UPPER(B68)&"_"&UPPER(G68)&" "&"SERVICE CLASSIFICATION", UPPER(B68)&"_"&UPPER(LEFT(G68,FIND(" -",G68)-1))&" SERVICE CLASSIFICATION") -> CENTRE WELLINGTON HYDRO LTD._GENERAL SERVICE 3,000 TO 4,999 KW SERVICE CLASSIFICATION | D68: NON WMP | E68: NON CLASS A | F68: General Service >= 50 kW | G68: General Service 3,000 to 4,999 kW | H68: 0 | I68: 0 | J68: 43263 | K68: 18461823 | L68: 43263 | M68: 18461823
A69: 2015 | B69: Centre Wellington Hydro Ltd. | C69: CENTRE WELLINGTON HYDRO LTD._GENERAL SERVICE 50 TO 2,999 KW SERVICE CLASSIFICATION | D69: =IF(ISERROR(FIND("- WMP", G69))=TRUE, "NON WMP", "WMP") -> NON WMP | E69: =IF(ISERROR(FIND("- Class A", G69))=TRUE, "NON CLASS A", "CLASS A") -> NON CLASS A | F69: General Service >= 50 kW | G69: General Service 50 to 2,999 kW | H69: 3028 | I69: 823480 | J69: 124618 | K69: 47663607 | L69: 127646 | M69: 48487087
A70: 2015 | B70: Centre Wellington Hydro Ltd. | C70: CENTRE WELLINGTON HYDRO LTD._RESIDENTIAL SERVICE CLASSIFICATION | D70: NON WMP | E70: NON CLASS A | F70: Residential | G70: Residential | H70: 0 | I70: 43201471 | J70: 0 | K70: 0 | L70: 0 | M70: 43201471
A71: 2015 | B71: Centre Wellington Hydro Ltd. | C71: CENTRE WELLINGTON HYDRO LTD._SENTINEL LIGHTING SERVICE CLASSIFICATION | D71: NON WMP | E71: NON CLASS A | F71: Sentinel Lighting Connections | G71: Sentinel Lighting | H71: 73 | I71: 26356 | J71: 0 | K71: 0 | L71: 73 | M71: 26356
A72: 2015 | B72: Centre Wellington Hydro Ltd. | C72: CENTRE WELLINGTON HYDRO LTD._STREET LIGHTING SERVICE CLASSIFICATION | D72: NON WMP | E72: NON CLASS A | F72: Street Lighting Connections | G72: Street Lighting | H72: 0 | I72: 0 | J72: 3151 | K72: 1141797 | L72: 3151 | M72: 1141797
A73: 2015 | B73: Centre Wellington Hydro Ltd. | C73: CENTRE WELLINGTON HYDRO LTD._UNMETERED SCATTERED LOAD SERVICE CLASSIFICATION | D73: NON WMP | E73: NON CLASS A | F73: Unmetered Scattered Load Connections | G73: Unmetered Scattered Load | H73: 0 | I73: 548863 | J73: 0 | K73: 0 | L73: 0 | M73: 548863
A74: 2015 | B74: Chapleau Public Utilities Corporation | C74: CHAPLEAU PUBLIC UTILITIES CORPORATION_GENERAL SERVICE LESS THAN 50 KW SERVICE CLASSIFICATION | D74: NON WMP | E74: NON CLASS A | F74: General Service < 50 kW | G74: General Service Less Than 50 kW | H74: 0 | I74: 5129144 | J74: 0 | K74: 0 | L74: 0 | M74: 5129144
A75: 2015 | B75: Chapleau Public Utilities Corporation | C75: CHAPLEAU PUBLIC UTILITIES CORPORATION_GENERAL SERVICE 50 TO 4,999 KW SERVICE CLASSIFICATION | D75: NON WMP | E75: NON CLASS A | F75: General Service >= 50 kW | G75: General Service 50 to 4,999 kW | H75: 0 | I75: 0 | J75: 13400 | K75: 5039258 | L75: 13400 | M75: 5039258
A76: 2015 | B76: Chapleau Public Utilities Corporation | C76: CHAPLEAU PUBLIC UTILITIES CORPORATION_RESIDENTIAL SERVICE CLASSIFICATION | D76: NON WMP | E76: NON CLASS A | F76: Residential | G76: Residential | H76: 0 | I76: 15082645 | J76: 0 | K76: 0 | L76: 0 | M76: 15082645
A77: 2015 | B77: Chapleau Public Utilities Corporation | C77: CHAPLEAU PUBLIC UTILITIES CORPORATION_SENTINEL LIGHTING SERVICE CLASSIFICATION | D77: NON WMP | E77: NON CLASS A | F77: Sentinel Lighting Connections | G77: Sentinel Lighting | H77: 65 | I77: 26857 | J77: 0 | K77: 0 | L77: 65 | M77: 26857
A78: 2015 | B78: Chapleau Public Utilities Corporation | C78: CHAPLEAU PUBLIC UTILITIES CORPORATION_STREET LIGHTING SERVICE CLASSIFICATION | D78: NON WMP | E78: NON CLASS A | F78: Street Lighting Connections | G78: Street Lighting | H78: 768 | I78: 274528 | J78: 0 | K78: 0 | L78: 768 | M78: 274528
A79: 2015 | B79: Chapleau Public Utilities Corporation | C79: CHAPLEAU PUBLIC UTILITIES CORPORATION_UNMETERED SCATTERED LOAD SERVICE CLASSIFICATION | D79: NON WMP | E79: NON CLASS A | F79: Unmetered Scattered Load Connections | G79: Unmetered Scattered Load | H79: 0 | I79: 4068 | J79: 0 | K79: 0 | L79: 0 | M79: 4068
A80: 2015 | B80: Collus PowerStream Corp. | C80: COLLUS POWERSTREAM CORP._GENERAL SERVICE LESS THAN 50 KW SERVICE CLASSIFICATION | D80: NON WMP | E80: NON CLASS A | F80: General Service < 50 kW | G80: General Service Less Than 50 kW | H80: 1065 | I80: 39768900 | J80: 2675 | K80: 474377 | L80: 3741 | M80: 40243277
A81: 2015 | B81: Collus PowerStream Corp. | C81: COLLUS POWERSTREAM CORP._GENERAL SERVICE 50 TO 4,999 KW SERVICE CLASSIFICATION | D81: NON WMP | E81: NON CLASS A | F81: General Service >= 50 kW | G81: General Service 50 to 4,999 kW | H81: 28828 | I81: 9439007 | J81: 215749 | K81: 89767404 | L81: 244577 | M81: 99206411
A82: 2015 | B82: Collus PowerStream Corp. | C82: COLLUS POWERSTREAM CORP._RESIDENTIAL SERVICE CLASSIFICATION | D82: NON WMP | E82: NON CLASS A | F82: Residential | G82: Residential | H82: 0 | I82: 118543115 | J82: 0 | K82: 0 | L82: 0 | M82: 118543115
A83: 2015 | B83: Collus PowerStream Corp. | C83: COLLUS POWERSTREAM CORP._STREET LIGHTING SERVICE CLASSIFICATION | D83: NON WMP | E83: NON CLASS A | F83: Street Lighting Connections | G83: Street Lighting | H83: 0 | I83: 0 | J83: 5419 | K83: 1928299 | L83: 5419 | M83: 1928299
A84: 2015 | B84: Collus PowerStream Corp. | C84: COLLUS POWERSTREAM CORP._UNMETERED SCATTERED LOAD SERVICE CLASSIFICATION | D84: NON WMP | E84: NON CLASS A | F84: Unmetered Scattered Load Connections | G84: Unmetered Scattered Load | H84: 0 | I84: 405733 | J84: 0 | K84: 0 | L84: 0 | M84: 405733
A85: 2015 | B85: Cooperative Hydro Embrun Inc. | C85: COOPERATIVE HYDRO EMBRUN INC._GENERAL SERVICE LESS THAN 50 KW SERVICE CLASSIFICATION | D85: NON WMP | E85: NON CLASS A | F85: General Service < 50 kW | G85: General Service Less Than 50 kW | H85: 0 | I85: 4513098 | J85: 0 | K85: 0 | L85: 0 | M85: 4513098
A86: 2015 | B86: Cooperative Hydro Embrun Inc. | C86: COOPERATIVE HYDRO EMBRUN INC._GENERAL SERVICE 50 TO 4,999 KW SERVICE CLASSIFICATION | D86: NON WMP | E86: NON CLASS A | F86: General Service >= 50 kW | G86: General Service 50 to 4,999 kW | H86: 0 | I86: 0 | J86: 18735 | K86: 3159205 | L86: 18735 | M86: 3159205
A87: 2015 | B87: Cooperative Hydro Embrun Inc. | C87: COOPERATIVE HYDRO EMBRUN INC._RESIDENTIAL SERVICE CLASSIFICATION | D87: NON WMP | E87: NON CLASS A | F87: Residential | G87: Residential | H87: 0 | I87: 18722751 | J87: 0 | K87: 0 | L87: 0 | M87: 18722751
A88: 2015 | B88: Cooperative Hydro Embrun Inc. | C88: COOPERATIVE HYDRO EMBRUN INC._STREET LIGHTING SERVICE CLASSIFICATION | D88: NON WMP | E88: NON CLASS A | F88: Street Lighting Connections | G88: Street Lighting | H88: 0 | I88: 0 | J88: 1003 | K88: 0 | L88: 1003 | M88: 0
A89: 2015 | B89: Cooperative Hydro Embrun Inc. | C89: COOPERATIVE HYDRO EMBRUN INC._UNMETERED SCATTERED LOAD SERVICE CLASSIFICATION | D89: NON WMP | E89: NON CLASS A | F89: Unmetered Scattered Load Connections | G89: Unmetered Scattered Load | H89: 0 | I89: 76077 | J89: 0 | K89: 0 | L89: 0 | M89: 76077
A90: 2015 | B90: E.L.K. Energy Inc. | C90: E.L.K. ENERGY INC._EMBEDDED DISTRIBUTOR SERVICE CLASSIFICATION | D90: NON WMP | E90: NON CLASS A | F90: Embedded Distributor(s) | G90: Embedded Distributor | H90: 0 | I90: 0 | J90: 0 | K90: 0 | L90: 0 | M90: 0
A91: 2015 | B91: E.L.K. Energy Inc. | C91: E.L.K. ENERGY INC._GENERAL SERVICE LESS THAN 50 KW SERVICE CLASSIFICATION | D91: NON WMP | E91: NON CLASS A | F91: General Service < 50 kW | G91: General Service Less Than 50 kW | H91: 0 | I91: 16954054 | J91: 0 | K91: 13052207 | L91: 0 | M91: 30006261
A92: 2015 | B92: E.L.K. Energy Inc. | C92: E.L.K. ENERGY INC._GENERAL SERVICE 50 TO 4,999 KW SERVICE CLASSIFICATION | D92: NON WMP | E92: NON CLASS A | F92: General Service >= 50 kW | G92: General Service 50 to 4,999 kW | H92: 0 | I92: 109497614 | J92: 301435 | K92: 0 | L92: 301435 | M92: 109497614
A93: 2015 | B93: E.L.K. Energy Inc. | C93: E.L.K. ENERGY INC._RESIDENTIAL SERVICE CLASSIFICATION | D93: NON WMP | E93: NON CLASS A | F93: Residential | G93: Residential | H93: 0 | I93: 8407531 | J93: 0 | K93: 80723556 | L93: 0 | M93: 89131087
A94: 2015 | B94: E.L.K. Energy Inc. | C94: E.L.K. ENERGY INC._SENTINEL LIGHTING SERVICE CLASSIFICATION | D94: NON WMP | E94: NON CLASS A | F94: Sentinel Lighting Connections | G94: Sentinel Lighting | H94: 0 | I94: 180687 | J94: 0 | K94: 0 | L94: 0 | M94: 180687
A95: 2015 | B95: E.L.K. Energy Inc. | C95: E.L.K. ENERGY INC._STREET LIGHTING SERVICE CLASSIFICATION | D95: NON WMP | E95: NON CLASS A | F95: Street Lighting Connections | G95: Street Lighting | H95: 0 | I95: 2302093 | J95: 6462 | K95: 0 | L95: 6462 | M95: 2302093
A96: 2015 | B96: E.L.K. Energy Inc. | C96: E.L.K. ENERGY INC._UNMETERED SCATTERED LOAD SERVICE CLASSIFICATION | D96: NON WMP | E96: NON CLASS A | F96: Unmetered Scattered Load Connections | G96: Unmetered Scattered Load | H96: 0 | I96: 0 | J96: 0 | K96: 0 | L96: 0 | M96: 0
A97: 2015 | B97: Enersource Hydro Mississauga Inc. | C97: ENERSOURCE HYDRO MISSISSAUGA INC._GENERAL SERVICE LESS THAN 50 KW SERVICE CLASSIFICATION | D97: NON WMP | E97: NON CLASS A | F97: General Service < 50 kW | G97: General Service Less Than 50 kW | H97: 0 | I97: 539935559 | J97: 0 | K97: 0 | L97: 0 | M97: 539935559
A98: 2015 | B98: Enersource Hydro Mississauga Inc. | C98: =IF(ISERROR(FIND("WMP",G98))=TRUE, UPPER(B98)&"_"&UPPER(G98)&" "&"SERVICE CLASSIFICATION", UPPER(B98)&"_"&UPPER(LEFT(G98,FIND(" -",G98)-1))&" SERVICE CLASSIFICATION") -> ENERSOURCE HYDRO MISSISSAUGA INC._GENERAL SERVICE 50 TO 499 KW SERVICE CLASSIFICATION | D98: =IF(ISERROR(FIND("- WMP", G98))=TRUE, "NON WMP", "WMP") -> NON WMP | E98: =IF(ISERROR(FIND("- Class A", G98))=TRUE, "NON CLASS A", "CLASS A") -> NON CLASS A | F98: General Service >= 50 kW | G98: General Service 50 to 499 kW | H98: 985614 | I98: 351209986 | J98: 3894703 | K98: 1361925853 | L98: 4880317 | M98: 1713135839
A99: 2015 | B99: Enersource Hydro Mississauga Inc. | C99: ENERSOURCE HYDRO MISSISSAUGA INC._GENERAL SERVICE 500 TO 4,999 KW SERVICE CLASSIFICATION | D99: NON WMP | E99: NON CLASS A | F99: General Service >= 50 kW | G99: General Service 500 to 4,999 kW | H99: 388256 | I99: 182986474 | J99: 3365194 | K99: 1465860026 | L99: 3753450 | M99: 1648846500
A100: 2015 | B100: Enersource Hydro Mississauga Inc. | C100: ENERSOURCE HYDRO MISSISSAUGA INC._GENERAL SERVICE 50 TO 499 KW - INTERVAL METERED SERVICE CLASSIFICATION | D100: NON WMP | E100: NON CLASS A | F100: General Service >= 50 kW | G100: General Service 50 to 499 kW - Interval Metered | H100: 46749 | I100: 20923099 | J100: 352227 | K100: 141453926 | L100: 398976 | M100: 162377025
A101: 2015 | B101: Enersource Hydro Mississauga Inc. | C101: ENERSOURCE HYDRO MISSISSAUGA INC._GENERAL SERVICE 50 TO 499 KW - NON INTERVAL METERED SERVICE CLASSIFICATION | D101: NON WMP | E101: NON CLASS A | F101: General Service >= 50 kW | G101: General Service 50 to 499 kW - non Interval Metered | H101: 938865 | I101: 330286887 | J101: 3542476 | K101: 1220471927 | L101: 4481341 | M101: 1550758814
A102: 2015 | B102: Enersource Hydro Mississauga Inc. | C102: ENERSOURCE HYDRO MISSISSAUGA INC._GENERAL SERVICE 500 TO 4,999 KW - INTERVAL METERED SERVICE CLASSIFICATION | D102: NON WMP | E102: NON CLASS A | F102: General Service >= 50 kW | G102: General Service 500 to 4,999 kW - Interval Metered | H102: 148916 | I102: 70271735 | J102: 2437623 | K102: 1109901333 | L102: 2586539 | M102: 1180173068
A103: 2015 | B103: Enersource Hydro Mississauga Inc. | C103: ENERSOURCE HYDRO MISSISSAUGA INC._GENERAL SERVICE 500 TO 4,999 KW - NON INTERVAL METERED SERVICE CLASSIFICATION | D103: NON WMP | E103: NON CLASS A | F103: General Service >= 50 kW | G103: General Service 500 to 4,999 kW - non Interval Metered | H103: 239340 | I103: 112714739 | J103: 927571 | K103: 355958693 | L103: 1166911 | M103: 468673432
A104: 2015 | B104: Enersource Hydro Mississauga Inc. | C104: =IF(ISERROR(FIND("WMP",G104))=TRUE, UPPER(B104)&"_"&UPPER(G104)&" "&"SERVICE CLASSIFICATION", UPPER(B104)&"_"&UPPER(LEFT(G104,FIND(" -",G104)-1))&" SERVICE CLASSIFICATION") -> ENERSOURCE HYDRO MISSISSAUGA INC._LARGE USE SERVICE CLASSIFICATION | D104: =IF(ISERROR(FIND("- WMP", G104))=TRUE, "NON WMP", "WMP") -> NON WMP | E104: =IF(ISERROR(FIND("- Class A", G104))=TRUE, "NON CLASS A", "CLASS A") -> NON CLASS A | F104: Large User | G104: Large Use | H104: =SUM(H105:H106) -> 0 | I104: =SUM(I105:I106) -> 0 | J104: 1080704 | K104: 649082822 | L104: 1080704 | M104: 649082822
A105: 2015 | B105: Enersource Hydro Mississauga Inc. | C105: ENERSOURCE HYDRO MISSISSAUGA INC._LARGE USE - CLASS A CUSTOMERS SERVICE CLASSIFICATION | D105: NON WMP | E105: CLASS A | F105: Large User | G105: Large Use - Class A Customers | H105: 0 | I105: 0 | J105: 978977 | K105: 597851449 | L105: 978977 | M105: 597851449
A106: 2015 | B106: Enersource Hydro Mississauga Inc. | C106: ENERSOURCE HYDRO MISSISSAUGA INC._LARGE USE - CLASS B CUSTOMERS SERVICE CLASSIFICATION | D106: NON WMP | E106: NON CLASS A | F106: Large User | G106: Large Use - Class B Customers | H106: 0 | I106: 0 | J106: 101727 | K106: 51231373 | L106: 101727 | M106: 51231373
A107: 2015 | B107: Enersource Hydro Mississauga Inc. | C107: ENERSOURCE HYDRO MISSISSAUGA INC._RESIDENTIAL SERVICE CLASSIFICATION | D107: NON WMP | E107: NON CLASS A | F107: Residential | G107: Residential | H107: 0 | I107: 1377966168 | J107: 0 | K107: 0 | L107: 0 | M107: 1377966168
A108: 2015 | B108: Enersource Hydro Mississauga Inc. | C108: ENERSOURCE HYDRO MISSISSAUGA INC._STREET LIGHTING SERVICE CLASSIFICATION | D108: NON WMP | E108: NON CLASS A | F108: Street Lighting Connections | G108: Street Lighting | H108: 0 | I108: 0 | J108: 90307 | K108: 31923315 | L108: 90307 | M108: 31923315
A109: 2015 | B109: Enersource Hydro Mississauga Inc. | C109: ENERSOURCE HYDRO MISSISSAUGA INC._UNMETERED SCATTERED LOAD SERVICE CLASSIFICATION | D109: NON WMP | E109: NON CLASS A | F109: Unmetered Scattered Load Connections | G109: Unmetered Scattered Load | H109: 0 | I109: 10978678 | J109: 0 | K109: 0 | L109: 0 | M109: 10978678
A110: 2015 | B110: Entegrus Powerlines Inc. | C110: =IF(ISERROR(FIND("WMP",G110))=TRUE, UPPER(B110)&"_"&UPPER(G110), UPPER(B110)&"_"&UPPER(LEFT(G110,FIND(" -",G110)-1))&" SERVICE CLASSIFICATION") -> ENTEGRUS POWERLINES INC._GENERAL SERVICE LESS THAN 50 KW SERVICE CLASSIFICATION - CHATHAM-KENT HYDRO SERVICE AREA | D110: NON WMP | E110: NON CLASS A | F110: General Service < 50 kW | G110: General Service Less Than 50 kW Service Classification - Chatham-Kent Hydro Service Area | H110: 0 | I110: 74643124 | J110: 0 | K110: 0 | L110: 0 | M110: 74643124
A111: 2015 | B111: Entegrus Powerlines Inc. | C111: =IF(ISERROR(FIND("WMP",G111))=TRUE, UPPER(B111)&"_"&UPPER(G111), UPPER(B111)&"_"&UPPER(LEFT(G111,FIND(" -",G111)-1))&" SERVICE CLASSIFICATION") -> ENTEGRUS POWERLINES INC._GENERAL SERVICE LESS THAN 50 KW SERVICE CLASSIFICATION - DUTTON SERVICE AREA | D111: NON WMP | E111: NON CLASS A | F111: General Service < 50 kW | G111: General Service less than 50 kW Service Classification - Dutton Service Area | H111: 0 | I111: 3302411 | J111: 0 | K111: 0 | L111: 0 | M111: 3302411
A112: 2015 | B112: Entegrus Powerlines Inc. | C112: ENTEGRUS POWERLINES INC._GENERAL SERVICE LESS THAN 50 KW SERVICE CLASSIFICATION - NEWBURY SERVICE AREA | D112: NON WMP | E112: NON CLASS A | F112: General Service < 50 kW | G112: General Service Less Than 50 kW Service Classification - Newbury Service Area | H112: 0 | I112: 510242 | J112: 0 | K112: 0 | L112: 0 | M112: 510242
A113: 2015 | B113: Entegrus Powerlines Inc. | C113: ENTEGRUS POWERLINES INC._GENERAL SERVICE LESS THAN 50 KW SERVICE CLASSIFICATION - STRATHROY, MOUNT BRYDGES AND PARKHILL SERVICE AREA | D113: NON WMP | E113: NON CLASS A | F113: General Service < 50 kW | G113: General Service Less Than 50 kW Service Classification - Strathroy, Mount Brydges and Parkhill Service Area | H113: 0 | I113: 14144929 | J113: 0 | K113: 0 | L113: 0 | M113: 14144929
A114: 2015 | B114: Entegrus Powerlines Inc. | C114: ENTEGRUS POWERLINES INC._GENERAL SERVICE 50 TO 4,999 KW SERVICE CLASSIFICATION - NEWBURY SERVICE AREA | D114: NON WMP | E114: NON CLASS A | F114: General Service >= 50 kW | G114: General Service 50 to 4,999 kW Service Classification - Newbury Service Area | H114: 376 | I114: 118369 | J114: 1543 | K114: 442251 | L114: 1919 | M114: 560620
A115: 2015 | B115: Entegrus Powerlines Inc. | C115: ENTEGRUS POWERLINES INC._GENERAL SERVICE 50 TO 4,999 KW SERVICE CLASSIFICATION - STRATHROY, MOUNT BRYDGES AND PARKHILL SERVICE AREA | D115: NON WMP | E115: NON CLASS A | F115: General Service >= 50 kW | G115: General Service 50 to 4,999 kW Service Classification - Strathroy, Mount Brydges and Parkhill Service Area | H115: 16295 | I115: 7181370 | J115: 195905 | K115: 87528562 | L115: 212200 | M115: 94709932
A116: 2015 | B116: Entegrus Powerlines Inc. | C116: ENTEGRUS POWERLINES INC._GENERAL SERVICE 50 TO 999 KW SERVICE CLASSIFICATION - CHATHAM-KENT HYDRO SERVICE AREA | D116: NON WMP | E116: NON CLASS A | F116: General Service >= 50 kW | G116: General Service 50 to 999 kW Service Classification - Chatham-Kent Hydro Service Area | H116: 106186 | I116: 38188022 | J116: 441995 | K116: 155770846 | L116: 548181 | M116: 193958868
A117: 2015 | B117: Entegrus Powerlines Inc. | C117: ENTEGRUS POWERLINES INC._GENERAL SERVICE INTERMEDIATE 1,000 TO 4,999 KW SERVICE CLASSIFICATION - CHATHAM-KENT HYDRO SERVICE | D117: NON WMP | E117: NON CLASS A | F117: General Service >= 50 kW | G117: General Service Intermediate 1,000 to 4,999 kW Service Classification - Chatham-Kent Hydro Service | H117: 0 | I117: 0 | J117: 190739 | K117: 74437387 | L117: 190739 | M117: 74437387
A118: 2015 | B118: Entegrus Powerlines Inc. | C118: ENTEGRUS POWERLINES INC._INTERMEDIATE WITH SELF GENERATION SERVICE CLASSIFICATION - CHATHAM-KENT HYDRO SERVICE AREA | D118: NON WMP | E118: NON CLASS A | F118: General Service >= 50 kW | G118: Intermediate With Self Generation Service Classification - Chatham-Kent Hydro Service Area | H118: 0 | I118: 0 | J118: 81852 | K118: 33167215 | L118: 81852 | M118: 33167215
A119: 2015 | B119: Entegrus Powerlines Inc. | C119: ENTEGRUS POWERLINES INC._LARGE USE SERVICE CLASSIFICATION - STRATHROY, MOUNT BRYDGES AND PARKHILL SERVICE AREA | D119: NON WMP | E119: NON CLASS A | F119: Large User | G119: Large Use Service Classification - Strathroy, Mount Brydges and Parkhill Service Area | H119: 0 | I119: 0 | J119: 65619 | K119: 31573402 | L119: 65619 | M119: 31573402
A120: 2015 | B120: Entegrus Powerlines Inc. | C120: ENTEGRUS POWERLINES INC._RESIDENTIAL SERVICE CLASSIFICATION - CHATHAM-KENT HYDRO SERVICE AREA | D120: NON WMP | E120: NON CLASS A | F120: Residential | G120: Residential Service Classification - Chatham-Kent Hydro Service Area | H120: 0 | I120: 205978836 | J120: 0 | K120: 0 | L120: 0 | M120: 205978836
A121: 2015 | B121: Entegrus Powerlines Inc. | C121: ENTEGRUS POWERLINES INC._RESIDENTIAL SERVICE CLASSIFICATION - DUTTON SERVICE AREA | D121: NON WMP | E121: NON CLASS A | F121: Residential | G121: Residential Service Classification - Dutton Service Area | H121: 0 | I121: 4051630 | J121: 0 | K121: 0 | L121: 0 | M121: 4051630
A122: 2015 | B122: Entegrus Powerlines Inc. | C122: ENTEGRUS POWERLINES INC._RESIDENTIAL SERVICE CLASSIFICATION - NEWBURY SERVICE AREA | D122: NON WMP | E122: NON CLASS A | F122: Residential | G122: Residential Service Classification - Newbury Service Area | H122: 0 | I122: 1211942 | J122: 0 | K122: 0 | L122: 0 | M122: 1211942
A123: 2015 | B123: Entegrus Powerlines Inc. | C123: ENTEGRUS POWERLINES INC._RESIDENTIAL SERVICE CLASSIFICATION - STRATHROY, MOUNT BRYDGES AND PARKHILL SERVICE AREA | D123: NON WMP | E123: NON CLASS A | F123: Residential | G123: Residential Service Classification - Strathroy, Mount Brydges and Parkhill Service Area | H123: 0 | I123: 52080675 | J123: 0 | K123: 0 | L123: 0 | M123: 52080675
A124: 2015 | B124: Entegrus Powerlines Inc. | C124: ENTEGRUS POWERLINES INC._SENTINEL LIGHTING SERVICE CLASSIFICATION - CHATHAM-KENT HYDRO SERVICE AREA | D124: NON WMP | E124: NON CLASS A | F124: Sentinel Lighting Connections | G124: Sentinel Lighting Service Classification - Chatham-Kent Hydro Service Area | H124: 1022 | I124: 364563 | J124: 0 | K124: 0 | L124: 1022 | M124: 364563
A125: 2015 | B125: Entegrus Powerlines Inc. | C125: ENTEGRUS POWERLINES INC._SENTINEL LIGHTING SERVICE CLASSIFICATION - DUTTON SERVICE AREA | D125: NON WMP | E125: NON CLASS A | F125: Sentinel Lighting Connections | G125: Sentinel Lighting Service Classification - Dutton Service Area | H125: 2 | I125: 881 | J125: 0 | K125: 0 | L125: 2 | M125: 881
A126: 2015 | B126: Entegrus Powerlines Inc. | C126: ENTEGRUS POWERLINES INC._SENTINEL LIGHTING SERVICE CLASSIFICATION - STRATHROY, MOUNT BRYDGES AND PARKHILL SERVICE AREA | D126: NON WMP | E126: NON CLASS A | F126: Sentinel Lighting Connections | G126: Sentinel Lighting Service Classification - Strathroy, Mount Brydges and Parkhill Service Area | H126: 120 | I126: 43208 | J126: 0 | K126: 0 | L126: 120 | M126: 43208
A127: 2015 | B127: Entegrus Powerlines Inc. | C127: ENTEGRUS POWERLINES INC._STREET LIGHTING SERVICE CLASSIFICATION - CHATHAM-KENT HYDRO SERVICE AREA | D127: NON WMP | E127: NON CLASS A | F127: Street Lighting Connections | G127: Street Lighting Service Classification - Chatham-Kent Hydro Service Area | H127: 0 | I127: 0 | J127: 17520 | K127: 5912083 | L127: 17520 | M127: 5912083
A128: 2015 | B128: Entegrus Powerlines Inc. | C128: ENTEGRUS POWERLINES INC._STREET LIGHTING SERVICE CLASSIFICATION - DUTTON SERVICE AREA | D128: NON WMP | E128: NON CLASS A | F128: Street Lighting Connections | G128: Street Lighting Service Classification - Dutton Service Area | H128: 0 | I128: 0 | J128: 343 | K128: 116024 | L128: 343 | M128: 116024
A129: 2015 | B129: Entegrus Powerlines Inc. | C129: ENTEGRUS POWERLINES INC._STREET LIGHTING SERVICE CLASSIFICATION - NEWBURY SERVICE AREA | D129: NON WMP | E129: NON CLASS A | F129: Street Lighting Connections | G129: Street Lighting Service Classification - Newbury Service Area | H129: 0 | I129: 0 | J129: 163 | K129: 55093 | L129: 163 | M129: 55093
A130: 2015 | B130: Entegrus Powerlines Inc. | C130: ENTEGRUS POWERLINES INC._STREET LIGHTING SERVICE CLASSIFICATION - STRATHROY, MOUNT BRYDGES AND PARKHILL SERVICE AREA | D130: NON WMP | E130: NON CLASS A | F130: Street Lighting Connections | G130: Street Lighting Service Classification - Strathroy, Mount Brydges and Parkhill Service Area | H130: 0 | I130: 0 | J130: 3851 | K130: 1298313 | L130: 3851 | M130: 1298313
A131: 2015 | B131: Entegrus Powerlines Inc. | C131: ENTEGRUS POWERLINES INC._UNMETERED SCATTERED LOAD SERVICE CLASSIFICATION - CHATHAM-KENT HYDRO SERVICE AREA | D131: NON WMP | E131: NON CLASS A | F131: Unmetered Scattered Load Connections | G131: Unmetered Scattered Load Service Classification - Chatham-Kent Hydro Service Area | H131: 0 | I131: 918012 | J131: 0 | K131: 0 | L131: 0 | M131: 918012
A132: 2015 | B132: Entegrus Powerlines Inc. | C132: ENTEGRUS POWERLINES INC._UNMETERED SCATTERED LOAD SERVICE CLASSIFICATION - STRATHROY, MOUNT BRYDGES AND PARKHILL SERVICE AREA | D132: NON WMP | E132: NON CLASS A | F132: Unmetered Scattered Load Connections | G132: Unmetered Scattered Load Service Classification - Strathroy, Mount Brydges and Parkhill Service Area | H132: 0 | I132: 325760 | J132: 0 | K132: 0 | L132: 0 | M132: 325760
A133: 2015 | B133: EnWin Utilities Ltd. | C133: ENWIN UTILITIES LTD._GENERAL SERVICE LESS THAN 50 KW SERVICE CLASSIFICATION | D133: NON WMP | E133: NON CLASS A | F133: General Service < 50 kW | G133: General Service Less Than 50 kW | H133: 0 | I133: 181677966 | J133: 0 | K133: 0 | L133: 0 | M133: 181677966
A134: 2015 | B134: EnWin Utilities Ltd. | C134: ENWIN UTILITIES LTD._GENERAL SERVICE 3,000 TO 4,999 KW - FORMER TOU SERVICE CLASSIFICATION | D134: NON WMP | E134: NON CLASS A | F134: General Service >= 50 kW | G134: General Service 3,000 to 4,999 kW - former TOU | H134: 0 | I134: 0 | J134: 131072 | K134: 47404579 | L134: 131072 | M134: 47404579
A135: 2015 | B135: EnWin Utilities Ltd. | C135: =IF(ISERROR(FIND("WMP",G135))=TRUE, UPPER(B135)&"_"&UPPER(G135)&" "&"SERVICE CLASSIFICATION", UPPER(B135)&"_"&UPPER(LEFT(G135,FIND(" -",G135)-1))&" SERVICE CLASSIFICATION") -> ENWIN UTILITIES LTD._GENERAL SERVICE 50 TO 4,999 KW SERVICE CLASSIFICATION | D135: NON WMP | E135: NON CLASS A | F135: General Service >= 50 kW | G135: General Service 50 to 4,999 kW | H135: 528598 | I135: 208007588 | J135: 1533387 | K135: 610031908 | L135: 2061985 | M135: 818039496
A136: 2015 | B136: EnWin Utilities Ltd. | C136: ENWIN UTILITIES LTD._LARGE USE - 3TS SERVICE CLASSIFICATION | D136: =IF(ISERROR(FIND("- WMP", G136))=TRUE, "NON WMP", "WMP") -> NON WMP | E136: =IF(ISERROR(FIND("- Class A", G136))=TRUE, "NON CLASS A", "CLASS A") -> NON CLASS A | F136: Large User | G136: Large Use - 3TS | H136: 0 | I136: 0 | J136: 524555 | K136: 265598532 | L136: 524555 | M136: 265598532
A137: 2015 | B137: EnWin Utilities Ltd. | C137: ENWIN UTILITIES LTD._LARGE USE - FORD ANNEX SERVICE CLASSIFICATION | D137: NON WMP | E137: NON CLASS A | F137: Large User | G137: Large Use - Ford Annex | H137: 0 | I137: 0 | J137: 86734 | K137: 47203348 | L137: 86734 | M137: 47203348
A138: 2015 | B138: EnWin Utilities Ltd. | C138: ENWIN UTILITIES LTD._LARGE USE - REGULAR SERVICE CLASSIFICATION | D138: NON WMP | E138: NON CLASS A | F138: Large User | G138: Large Use - Regular | H138: 0 | I138: 0 | J138: 528916 | K138: 292820768 | L138: 528916 | M138: 292820768
A139: 2015 | B139: EnWin Utilities Ltd. | C139: ENWIN UTILITIES LTD._RESIDENTIAL SERVICE CLASSIFICATION | D139: NON WMP | E139: NON CLASS A | F139: Residential | G139: Residential | H139: 0 | I139: 566669481 | J139: 0 | K139: 0 | L139: 0 | M139: 566669481
A140: 2015 | B140: EnWin Utilities Ltd. | C140: ENWIN UTILITIES LTD._SENTINEL LIGHTING SERVICE CLASSIFICATION | D140: NON WMP | E140: NON CLASS A | F140: Sentinel Lighting Connections | G140: Sentinel Lighting | H140: 2404 | I140: 874009 | J140: 0 | K140: 0 | L140: 2404 | M140: 874009
A141: 2015 | B141: EnWin Utilities Ltd. | C141: ENWIN UTILITIES LTD._STREET LIGHTING SERVICE CLASSIFICATION | D141: NON WMP | E141: NON CLASS A | F141: Street Lighting Connections | G141: Street Lighting | H141: 25 | I141: 8703 | J141: 49387 | K141: 17293606 | L141: 49412 | M141: 17302308
A142: 2015 | B142: EnWin Utilities Ltd. | C142: ENWIN UTILITIES LTD._UNMETERED SCATTERED LOAD SERVICE CLASSIFICATION | D142: NON WMP | E142: NON CLASS A | F142: Unmetered Scattered Load Connections | G142: Unmetered Scattered Load | H142: 0 | I142: 241534 | J142: 0 | K142: 1685676 | L142: 0 | M142: 1927210
A143: 2015 | B143: Erie Thames Powerlines Corporation | C143: =IF(ISERROR(FIND("WMP",G143))=TRUE, UPPER(B143)&"_"&UPPER(G143), UPPER(B143)&"_"&UPPER(LEFT(G143,FIND(" -",G143)-1))&" SERVICE CLASSIFICATION") -> ERIE THAMES POWERLINES CORPORATION_EMBEDDED DISTRIBUTOR | D143: NON WMP | E143: NON CLASS A | F143: Embedded Distributor(s) | G143: Embedded Distributor | H143: 0 | I143: 0 | J143: 36126 | K143: 16830475 | L143: 36126 | M143: 16830475
A144: 2015 | B144: Erie Thames Powerlines Corporation | C144: =IF(ISERROR(FIND("WMP",G144))=TRUE, UPPER(B144)&"_"&UPPER(G144), UPPER(B144)&"_"&UPPER(LEFT(G144,FIND(" -",G144)-1))&" SERVICE CLASSIFICATION") -> ERIE THAMES POWERLINES CORPORATION_GENERAL SERVICE LESS THAN 50 KW | D144: NON WMP | E144: NON CLASS A | F144: General Service < 50 kW | G144: General Service Less Than 50 kW | H144: 0 | I144: 36421890 | J144: 0 | K144: 225900 | L144: 0 | M144: 36647790
A145: 2015 | B145: Erie Thames Powerlines Corporation | C145: ERIE THAMES POWERLINES CORPORATION_GENERAL SERVICE 1,000 TO 4,999 KW | D145: NON WMP | E145: NON CLASS A | F145: General Service >= 50 kW | G145: General Service 1,000 to 4,999 kW | H145: 0 | I145: 0 | J145: 136505 | K145: 67500551 | L145: 136505 | M145: 67500551
A146: 2015 | B146: Erie Thames Powerlines Corporation | C146: ERIE THAMES POWERLINES CORPORATION_GENERAL SERVICE 50 TO 999 KW | D146: NON WMP | E146: NON CLASS A | F146: General Service >= 50 kW | G146: General Service 50 to 999 kW | H146: 128724 | I146: 53016417 | J146: 116311 | K146: 25882930 | L146: 245035 | M146: 78899347
A147: 2015 | B147: Erie Thames Powerlines Corporation | C147: ERIE THAMES POWERLINES CORPORATION_LARGE USE | D147: NON WMP | E147: NON CLASS A | F147: Large User | G147: Large Use | H147: 0 | I147: 0 | J147: 179159 | K147: 98447967 | L147: 179159 | M147: 98447967
A148: 2015 | B148: Erie Thames Powerlines Corporation | C148: ERIE THAMES POWERLINES CORPORATION_RESIDENTIAL | D148: NON WMP | E148: NON CLASS A | F148: Residential | G148: Residential | H148: 0 | I148: 123714529 | J148: 0 | K148: 0 | L148: 0 | M148: 123714529
A149: 2015 | B149: Erie Thames Powerlines Corporation | C149: ERIE THAMES POWERLINES CORPORATION_SENTINEL LIGHTING | D149: NON WMP | E149: NON CLASS A | F149: Sentinel Lighting Connections | G149: Sentinel Lighting | H149: 0 | I149: 219346 | J149: 0 | K149: 0 | L149: 0 | M149: 219346
A150: 2015 | B150: Erie Thames Powerlines Corporation | C150: ERIE THAMES POWERLINES CORPORATION_STREET LIGHTING | D150: NON WMP | E150: NON CLASS A | F150: Street Lighting Connections | G150: Street Lighting | H150: 1788 | I150: 658469 | J150: 2258 | K150: 829796 | L150: 4046 | M150: 1488265
A151: 2015 | B151: Erie Thames Powerlines Corporation | C151: ERIE THAMES POWERLINES CORPORATION_UNMETERED SCATTERED LOAD | D151: NON WMP | E151: NON CLASS A | F151: Unmetered Scattered Load Connections | G151: Unmetered Scattered Load | H151: 0 | I151: 481572 | J151: 0 | K151: 0 | L151: 0 | M151: 481572
A152: 2015 | B152: Espanola Regional Hydro Distribution Corporation | C152: ESPANOLA REGIONAL HYDRO DISTRIBUTION CORPORATION_GENERAL SERVICE LESS THAN 50 KW SERVICE CLASSIFICATION | D152: NON WMP | E152: NON CLASS A | F152: General Service < 50 kW | G152: General Service Less Than 50 kW | H152: 10688 | I152: 9167019 | J152: 0 | K152: 0 | L152: 10688 | M152: 9167019
A153: 2015 | B153: Espanola Regional Hydro Distribution Corporation | C153: ESPANOLA REGIONAL HYDRO DISTRIBUTION CORPORATION_GENERAL SERVICE 50 TO 4,999 KW SERVICE CLASSIFICATION | D153: NON WMP | E153: NON CLASS A | F153: General Service >= 50 kW | G153: General Service 50 to 4,999 kW | H153: 2809 | I153: 1147520 | J153: 19884 | K153: 8827654 | L153: 22693 | M153: 9975174
A154: 2015 | B154: Espanola Regional Hydro Distribution Corporation | C154: ESPANOLA REGIONAL HYDRO DISTRIBUTION CORPORATION_RESIDENTIAL SERVICE CLASSIFICATION | D154: NON WMP | E154: NON CLASS A | F154: Residential | G154: Residential | H154: 0 | I154: 30955721 | J154: 0 | K154: 0 | L154: 0 | M154: 30955721
A155: 2015 | B155: Espanola Regional Hydro Distribution Corporation | C155: ESPANOLA REGIONAL HYDRO DISTRIBUTION CORPORATION_SENTINEL LIGHTING SERVICE CLASSIFICATION | D155: NON WMP | E155: NON CLASS A | F155: Sentinel Lighting Connections | G155: Sentinel Lighting | H155: 0 | I155: 25771 | J155: 0 | K155: 0 | L155: 0 | M155: 25771
A156: 2015 | B156: Espanola Regional Hydro Distribution Corporation | C156: ESPANOLA REGIONAL HYDRO DISTRIBUTION CORPORATION_STREET LIGHTING SERVICE CLASSIFICATION | D156: NON WMP | E156: NON CLASS A | F156: Street Lighting Connections | G156: Street Lighting | H156: 0 | I156: 0 | J156: 753 | K156: 304620 | L156: 753 | M156: 304620
A157: 2015 | B157: Espanola Regional Hydro Distribution Corporation | C157: ESPANOLA REGIONAL HYDRO DISTRIBUTION CORPORATION_UNMETERED SCATTERED LOAD SERVICE CLASSIFICATION | D157: NON WMP | E157: NON CLASS A | F157: Unmetered Scattered Load Connections | G157: Unmetered Scattered Load | H157: 0 | I157: 112872 | J157: 0 | K157: 0 | L157: 0 | M157: 112872
A158: 2015 | B158: Essex Powerlines Corporation | C158: ESSEX POWERLINES CORPORATION_GENERAL SERVICE LESS THAN 50 KW SERVICE CLASSIFICATION | D158: NON WMP | E158: NON CLASS A | F158: General Service < 50 kW | G158: General Service Less Than 50 kW | H158: 0 | I158: 48404968 | J158: 0 | K158: 1874789 | L158: 0 | M158: 50279757
A159: 2015 | B159: Essex Powerlines Corporation | C159: ESSEX POWERLINES CORPORATION_GENERAL SERVICE 3,000 TO 4,999 KW SERVICE CLASSIFICATION | D159: NON WMP | E159: NON CLASS A | F159: General Service >= 50 kW | G159: General Service 3,000 to 4,999 kW | H159: 0 | I159: 0 | J159: 8138 | K159: 562669 | L159: 8138 | M159: 562669
A160: 2015 | B160: Essex Powerlines Corporation | C160: ESSEX POWERLINES CORPORATION_GENERAL SERVICE 50 TO 2,999 KW SERVICE CLASSIFICATION | D160: NON WMP | E160: NON CLASS A | F160: General Service >= 50 kW | G160: General Service 50 to 2,999 kW | H160: 37728 | I160: 13051331 | J160: 341090 | K160: 117994781 | L160: 378818 | M160: 131046112
A161: 2015 | B161: Essex Powerlines Corporation | C161: ESSEX POWERLINES CORPORATION_RESIDENTIAL SERVICE CLASSIFICATION | D161: NON WMP | E161: NON CLASS A | F161: Residential | G161: Residential | H161: 0 | I161: 226283504 | J161: 0 | K161: 0 | L161: 0 | M161: 226283504
A162: 2015 | B162: Essex Powerlines Corporation | C162: ESSEX POWERLINES CORPORATION_SENTINEL LIGHTING SERVICE CLASSIFICATION | D162: NON WMP | E162: NON CLASS A | F162: Sentinel Lighting Connections | G162: Sentinel Lighting | H162: 849 | I162: 303997 | J162: 0 | K162: 0 | L162: 849 | M162: 303997
A163: 2015 | B163: Essex Powerlines Corporation | C163: ESSEX POWERLINES CORPORATION_STREET LIGHTING SERVICE CLASSIFICATION | D163: NON WMP | E163: NON CLASS A | F163: Street Lighting Connections | G163: Street Lighting | H163: 0 | I163: 0 | J163: 8264 | K163: 2729144 | L163: 8264 | M163: 2729144
A164: 2015 | B164: Essex Powerlines Corporation | C164: ESSEX POWERLINES CORPORATION_UNMETERED SCATTERED LOAD SERVICE CLASSIFICATION | D164: NON WMP | E164: NON CLASS A | F164: Unmetered Scattered Load Connections | G164: Unmetered Scattered Load | H164: 0 | I164: 1107107 | J164: 0 | K164: 0 | L164: 0 | M164: 1107107
A165: 2015 | B165: Festival Hydro Inc. | C165: FESTIVAL HYDRO INC._GENERAL SERVICE LESS THAN 50 KW SERVICE CLASSIFICATION | D165: NON WMP | E165: NON CLASS A | F165: General Service < 50 kW | G165: General Service Less Than 50 kW | H165: 0 | I165: 49229359 | J165: 0 | K165: 0 | L165: 0 | M165: 49229359
A166: 2015 | B166: Festival Hydro Inc. | C166: FESTIVAL HYDRO INC._GENERAL SERVICE 50 TO 4,999 KW SERVICE CLASSIFICATION | D166: NON WMP | E166: NON CLASS A | F166: General Service >= 50 kW | G166: General Service 50 to 4,999 kW | H166: 36733 | I166: 14307490 | J166: 750978 | K166: 292502502 | L166: 787711 | M166: 306809992
A167: 2015 | B167: Festival Hydro Inc. | C167: FESTIVAL HYDRO INC._LARGE USE SERVICE CLASSIFICATION | D167: NON WMP | E167: NON CLASS A | F167: Large User | G167: Large Use | H167: 0 | I167: 0 | J167: 27044 | K167: 17414058 | L167: 27044 | M167: 17414058
A168: 2015 | B168: Festival Hydro Inc. | C168: FESTIVAL HYDRO INC._RESIDENTIAL SERVICE CLASSIFICATION | D168: NON WMP | E168: NON CLASS A | F168: Residential | G168: Residential | H168: 0 | I168: 124347723 | J168: 0 | K168: 0 | L168: 0 | M168: 124347723
A169: 2015 | B169: Festival Hydro Inc. | C169: FESTIVAL HYDRO INC._RESIDENTIAL - HENSALL SERVICE CLASSIFICATION | D169: NON WMP | E169: NON CLASS A | F169: Residential | G169: Residential - Hensall | H169: 0 | I169: 3275059 | J169: 0 | K169: 0 | L169: 0 | M169: 3275059
A170: 2015 | B170: Festival Hydro Inc. | C170: FESTIVAL HYDRO INC._SENTINEL LIGHTING SERVICE CLASSIFICATION | D170: NON WMP | E170: NON CLASS A | F170: Sentinel Lighting Connections | G170: Sentinel Lighting | H170: 369 | I170: 132993 | J170: 0 | K170: 0 | L170: 369 | M170: 132993
A171: 2015 | B171: Festival Hydro Inc. | C171: FESTIVAL HYDRO INC._STREET LIGHTING SERVICE CLASSIFICATION | D171: NON WMP | E171: NON CLASS A | F171: Street Lighting Connections | G171: Street Lighting | H171: 1415 | I171: 557113 | J171: 735 | K171: 289320 | L171: 2150 | M171: 846433
A172: 2015 | B172: Festival Hydro Inc. | C172: FESTIVAL HYDRO INC._UNMETERED SCATTERED LOAD SERVICE CLASSIFICATION | D172: NON WMP | E172: NON CLASS A | F172: Unmetered Scattered Load Connections | G172: Unmetered Scattered Load | H172: 0 | I172: 199166 | J172: 0 | K172: 401620 | L172: 0 | M172: 600786
A173: 2015 | B173: Fort Frances Power Corporation | C173: FORT FRANCES POWER CORPORATION_GENERAL SERVICE LESS THAN 50 KW SERVICE CLASSIFICATION | D173: NON WMP | E173: NON CLASS A | F173: General Service < 50 kW | G173: General Service Less Than 50 kW | H173: 0 | I173: 13971473 | J173: 0 | K173: 0 | L173: 0 | M173: 13971473
A174: 2015 | B174: Fort Frances Power Corporation | C174: FORT FRANCES POWER CORPORATION_GENERAL SERVICE 50 TO 4,999 KW SERVICE CLASSIFICATION | D174: NON WMP | E174: NON CLASS A | F174: General Service >= 50 kW | G174: General Service 50 to 4,999 kW | H174: 0 | I174: 3407840 | J174: 56708 | K174: 20947706 | L174: 56708 | M174: 24355546
A175: 2015 | B175: Fort Frances Power Corporation | C175: FORT FRANCES POWER CORPORATION_RESIDENTIAL SERVICE CLASSIFICATION | D175: NON WMP | E175: NON CLASS A | F175: Residential | G175: Residential | H175: 0 | I175: 39289128 | J175: 0 | K175: 0 | L175: 0 | M175: 39289128
A176: 2015 | B176: Fort Frances Power Corporation | C176: FORT FRANCES POWER CORPORATION_STREET LIGHTING SERVICE CLASSIFICATION | D176: NON WMP | E176: NON CLASS A | F176: Street Lighting Connections | G176: Street Lighting | H176: 0 | I176: 0 | J176: 1058 | K176: 379146 | L176: 1058 | M176: 379146
A177: 2015 | B177: Fort Frances Power Corporation | C177: FORT FRANCES POWER CORPORATION_UNMETERED SCATTERED LOAD SERVICE CLASSIFICATION | D177: NON WMP | E177: NON CLASS A | F177: Unmetered Scattered Load Connections | G177: Unmetered Scattered Load | H177: 0 | I177: 62628 | J177: 0 | K177: 0 | L177: 0 | M177: 62628
A178: 2015 | B178: Greater Sudbury Hydro Inc. | C178: GREATER SUDBURY HYDRO INC._GENERAL SERVICE LESS THAN 50 KW SERVICE CLASSIFICATION | D178: NON WMP | E178: NON CLASS A | F178: General Service < 50 kW | G178: General Service Less Than 50 kW | H178: 0 | I178: 127236639 | J178: 0 | K178: 69940 | L178: 0 | M178: 127306579
A179: 2015 | B179: Greater Sudbury Hydro Inc. | C179: GREATER SUDBURY HYDRO INC._GENERAL SERVICE 50 TO 4,999 KW SERVICE CLASSIFICATION | D179: NON WMP | E179: NON CLASS A | F179: General Service >= 50 kW | G179: General Service 50 to 4,999 kW | H179: 163687 | I179: 57360785 | J179: 617956 | K179: 259045136 | L179: 781643 | M179: 316405920
A180: 2015 | B180: Greater Sudbury Hydro Inc. | C180: GREATER SUDBURY HYDRO INC._RESIDENTIAL SERVICE CLASSIFICATION | D180: NON WMP | E180: NON CLASS A | F180: Residential | G180: Residential | H180: 0 | I180: 376866330 | J180: 0 | K180: 0 | L180: 0 | M180: 376866330
A181: 2015 | B181: Greater Sudbury Hydro Inc. | C181: GREATER SUDBURY HYDRO INC._SENTINEL LIGHTING SERVICE CLASSIFICATION | D181: NON WMP | E181: NON CLASS A | F181: Sentinel Lighting Connections | G181: Sentinel Lighting | H181: 1195 | I181: 433774 | J181: 0 | K181: 0 | L181: 1195 | M181: 433774
A182: 2015 | B182: Greater Sudbury Hydro Inc. | C182: GREATER SUDBURY HYDRO INC._STREET LIGHTING SERVICE CLASSIFICATION | D182: NON WMP | E182: NON CLASS A | F182: Street Lighting Connections | G182: Street Lighting | H182: 21396 | I182: 0 | J182: 0 | K182: 7654363 | L182: 21396 | M182: 7654363
A183: 2015 | B183: Greater Sudbury Hydro Inc. | C183: GREATER SUDBURY HYDRO INC._UNMETERED SCATTERED LOAD SERVICE CLASSIFICATION | D183: NON WMP | E183: NON CLASS A | F183: Unmetered Scattered Load Connections | G183: Unmetered Scattered Load | H183: 0 | I183: 1324814 | J183: 0 | K183: 0 | L183: 0 | M183: 1324814
A184: 2015 | B184: Grimsby Power Incorporated | C184: GRIMSBY POWER INCORPORATED_GENERAL SERVICE LESS THAN 50 KW SERVICE CLASSIFICATION | D184: NON WMP | E184: NON CLASS A | F184: General Service < 50 kW | G184: General Service Less Than 50 kW | H184: 0 | I184: 15166280 | J184: 0 | K184: 0 | L184: 0 | M184: 15166280
A185: 2015 | B185: Grimsby Power Incorporated | C185: GRIMSBY POWER INCORPORATED_GENERAL SERVICE 50 TO 4,999 KW SERVICE CLASSIFICATION | D185: NON WMP | E185: NON CLASS A | F185: General Service >= 50 kW | G185: General Service 50 to 4,999 kW | H185: 15655 | I185: 5957439 | J185: 165008 | K185: 43100004 | L185: 180663 | M185: 49057443
A186: 2015 | B186: Grimsby Power Incorporated | C186: GRIMSBY POWER INCORPORATED_RESIDENTIAL SERVICE CLASSIFICATION | D186: NON WMP | E186: NON CLASS A | F186: Residential | G186: Residential | H186: 0 | I186: 87119156 | J186: 0 | K186: 0 | L186: 0 | M186: 87119156
A187: 2015 | B187: Grimsby Power Incorporated | C187: GRIMSBY POWER INCORPORATED_STREET LIGHTING SERVICE CLASSIFICATION | D187: NON WMP | E187: NON CLASS A | F187: Street Lighting Connections | G187: Street Lighting | H187: 0 | I187: 0 | J187: 3460 | K187: 5371 | L187: 3460 | M187: 5371
A188: 2015 | B188: Grimsby Power Incorporated | C188: GRIMSBY POWER INCORPORATED_UNMETERED SCATTERED LOAD SERVICE CLASSIFICATION | D188: NON WMP | E188: NON CLASS A | F188: Unmetered Scattered Load Connections | G188: Unmetered Scattered Load | H188: 0 | I188: 369555 | J188: 0 | K188: 0 | L188: 0 | M188: 369555
A189: 2015 | B189: Guelph Hydro Electric Systems Inc. | C189: GUELPH HYDRO ELECTRIC SYSTEMS INC._GENERAL SERVICE LESS THAN 50 KW SERVICE CLASSIFICATION | D189: NON WMP | E189: NON CLASS A | F189: General Service < 50 kW | G189: General Service Less Than 50 kW | H189: 0 | I189: 121619404 | J189: 0 | K189: 34 | L189: 0 | M189: 121619438
A190: 2015 | B190: Guelph Hydro Electric Systems Inc. | C190: GUELPH HYDRO ELECTRIC SYSTEMS INC._GENERAL SERVICE 1,000 TO 4,999 KW SERVICE CLASSIFICATION | D190: NON WMP | E190: NON CLASS A | F190: General Service >= 50 kW | G190: General Service 1,000 to 4,999 kW | H190: 0 | I190: 0 | J190: 913285 | K190: 470898464 | L190: 913285 | M190: 470898464
A191: 2015 | B191: Guelph Hydro Electric Systems Inc. | C191: GUELPH HYDRO ELECTRIC SYSTEMS INC._GENERAL SERVICES 50 TO 999 KW SERVICE CLASSIFICATION | D191: NON WMP | E191: NON CLASS A | F191: General Service >= 50 kW | G191: General Services 50 to 999 kW | H191: 55067 | I191: 23770614 | J191: 717663 | K191: 274913717 | L191: 772731 | M191: 298684332
A192: 2015 | B192: Guelph Hydro Electric Systems Inc. | C192: GUELPH HYDRO ELECTRIC SYSTEMS INC._LARGE USE SERVICE CLASSIFICATION | D192: NON WMP | E192: NON CLASS A | F192: Large User | G192: Large Use | H192: 0 | I192: 0 | J192: 396061 | K192: 217695335 | L192: 396061 | M192: 217695335
A193: 2015 | B193: Guelph Hydro Electric Systems Inc. | C193: GUELPH HYDRO ELECTRIC SYSTEMS INC._RESIDENTIAL SERVICE CLASSIFICATION | D193: NON WMP | E193: NON CLASS A | F193: Residential | G193: Residential | H193: 0 | I193: 346051698 | J193: 0 | K193: 0 | L193: 0 | M193: 346051698
A194: 2015 | B194: Guelph Hydro Electric Systems Inc. | C194: GUELPH HYDRO ELECTRIC SYSTEMS INC._SENTINEL LIGHTING SERVICE CLASSIFICATION | D194: NON WMP | E194: NON CLASS A | F194: Sentinel Lighting Connections | G194: Sentinel Lighting | H194: 55 | I194: 19889 | J194: 0 | K194: 0 | L194: 55 | M194: 19889
A195: 2015 | B195: Guelph Hydro Electric Systems Inc. | C195: GUELPH HYDRO ELECTRIC SYSTEMS INC._STREET LIGHTING SERVICE CLASSIFICATION | D195: NON WMP | E195: NON CLASS A | F195: Street Lighting Connections | G195: Street Lighting | H195: 0 | I195: 0 | J195: 27137 | K195: 9722262 | L195: 27137 | M195: 9722262
A196: 2015 | B196: Guelph Hydro Electric Systems Inc. | C196: GUELPH HYDRO ELECTRIC SYSTEMS INC._UNMETERED SCATTERED LOAD SERVICE CLASSIFICATION | D196: NON WMP | E196: NON CLASS A | F196: Unmetered Scattered Load Connections | G196: Unmetered Scattered Load | H196: 0 | I196: 1867673 | J196: 0 | K196: 0 | L196: 0 | M196: 1867673
A197: 2015 | B197: Haldimand County Hydro Inc. | C197: HALDIMAND COUNTY HYDRO INC._EMBEDDED DISTRIBUTOR - HYDRO ONE SERVICE CLASSIFICATION | D197: NON WMP | E197: NON CLASS A | F197: Embedded Distributor(s) | G197: Embedded Distributor - Hydro One | H197: 0 | I197: 0 | J197: 209155 | K197: 64767903 | L197: 209155 | M197: 64767903
A198: 2015 | B198: Haldimand County Hydro Inc. | C198: HALDIMAND COUNTY HYDRO INC._GENERAL SERVICE LESS THAN 50 KW SERVICE CLASSIFICATION | D198: NON WMP | E198: NON CLASS A | F198: General Service < 50 kW | G198: General Service Less Than 50 kW | H198: 0 | I198: 39379482 | J198: 0 | K198: 47403 | L198: 0 | M198: 39426885
A199: 2015 | B199: Haldimand County Hydro Inc. | C199: =IF(ISERROR(FIND("WMP",G199))=TRUE, UPPER(B199)&"_"&UPPER(G199)&" "&"SERVICE CLASSIFICATION", UPPER(B199)&"_"&UPPER(LEFT(G199,FIND(" -",G199)-1))&" SERVICE CLASSIFICATION") -> HALDIMAND COUNTY HYDRO INC._GENERAL SERVICE 50 TO 4,999 KW SERVICE CLASSIFICATION | D199: NON WMP | E199: NON CLASS A | F199: General Service >= 50 kW | G199: General Service 50 to 4,999 kW | H199: 97565 | I199: 9104104 | J199: 128321 | K199: 71021393 | L199: 225886 | M199: 80125497
A200: 2015 | B200: Haldimand County Hydro Inc. | C200: HALDIMAND COUNTY HYDRO INC._RESIDENTIAL SERVICE CLASSIFICATION | D200: =IF(ISERROR(FIND("- WMP", G200))=TRUE, "NON WMP", "WMP") -> NON WMP | E200: =IF(ISERROR(FIND("- Class A", G200))=TRUE, "NON CLASS A", "CLASS A") -> NON CLASS A | F200: Residential | G200: Residential | H200: 0 | I200: 155198001 | J200: 0 | K200: 0 | L200: 0 | M200: 155198001
A201: 2015 | B201: Haldimand County Hydro Inc. | C201: HALDIMAND COUNTY HYDRO INC._SENTINEL LIGHTING SERVICE CLASSIFICATION | D201: NON WMP | E201: NON CLASS A | F201: Sentinel Lighting Connections | G201: Sentinel Lighting | H201: 782 | I201: 281955 | J201: 4 | K201: 2166 | L201: 786 | M201: 284121
... 337 more rows

Sheet 2.1.5 TotalConsumptionData (hidden)
C1: BLUEWATER POWER DISTRIBUTION CORPORATION_LARGE USE SERVICE CLASSIFICATION
A2: 215_TotalConsumption_Detail
A3: Filing_Year | B3: Company_Name | C3: combined | D3: WMP? | E3: Class A? | F3: Rate_Class | G3: Rate_Class_Detail | H3: TotMeteredConsmptionkWh | I3: TotMeteredConsmptionkW
A4: 2015 | B4: Algoma Power Inc. | C4: =IF(ISERROR(FIND("WMP",G4))=TRUE, UPPER(B4)&"_"&UPPER(G4)&" "&"SERVICE CLASSIFICATION", UPPER(B4)&"_"&UPPER(LEFT(G4,FIND(" -",G4)-1))&" SERVICE CLASSIFICATION") -> ALGOMA POWER INC._RESIDENTIAL - R2 SERVICE CLASSIFICATION | D4: =IF(ISERROR(FIND("- WMP", G4))=TRUE, "NON WMP", "WMP") -> NON WMP | E4: =IF(ISERROR(FIND("- Class A", G4))=TRUE, "NON CLASS A", "CLASS A") -> NON CLASS A | F4: General Service >= 50 kW | G4: Residential - R2 | H4: 83470708 | I4: 196688
A5: 2015 | B5: Algoma Power Inc. | C5: ALGOMA POWER INC._RESIDENTIAL - R1 SERVICE CLASSIFICATION | D5: =IF(ISERROR(FIND("- WMP", G5))=TRUE, "NON WMP", "WMP") -> NON WMP | E5: =IF(ISERROR(FIND("- Class A", G5))=TRUE, "NON CLASS A", "CLASS A") -> NON CLASS A | F5: Residential | G5: Residential - R1 | H5: 112605957 | I5: 0
A6: 2015 | B6: Algoma Power Inc. | C6: ALGOMA POWER INC._SEASONAL CUSTOMERS SERVICE CLASSIFICATION | D6: NON WMP | E6: NON CLASS A | F6: Residential | G6: Seasonal Customers | H6: 7919568 | I6: 0
A7: 2015 | B7: Algoma Power Inc. | C7: ALGOMA POWER INC._STREET LIGHTING SERVICE CLASSIFICATION | D7: NON WMP | E7: NON CLASS A | F7: Street Lighting Connections | G7: Street Lighting | H7: 777269 | I7: 0
A8: 2015 | B8: Atikokan Hydro Inc. | C8: ATIKOKAN HYDRO INC._GENERAL SERVICE LESS THAN 50 KW SERVICE CLASSIFICATION | D8: NON WMP | E8: NON CLASS A | F8: General Service < 50 kW | G8: General Service Less Than 50 kW | H8: 5315998 | I8: 0
A9: 2015 | B9: Atikokan Hydro Inc. | C9: ATIKOKAN HYDRO INC._GENERAL SERVICE 50 TO 499 KW SERVICE CLASSIFICATION | D9: NON WMP | E9: NON CLASS A | F9: General Service >= 50 kW | G9: General Service 50 to 499 kW | H9: 7851921 | I9: 7230830
A10: 2015 | B10: Atikokan Hydro Inc. | C10: ATIKOKAN HYDRO INC._RESIDENTIAL SERVICE CLASSIFICATION | D10: NON WMP | E10: NON CLASS A | F10: Residential | G10: Residential | H10: 9743005 | I10: 0
A11: 2015 | B11: Atikokan Hydro Inc. | C11: ATIKOKAN HYDRO INC._STREET LIGHTING SERVICE CLASSIFICATION | D11: NON WMP | E11: NON CLASS A | F11: Street Lighting Connections | G11: Street Lighting | H11: 466562 | I11: 468017
A12: 2015 | B12: Bluewater Power Distribution Corporation | C12: BLUEWATER POWER DISTRIBUTION CORPORATION_GENERAL SERVICE LESS THAN 50 KW SERVICE CLASSIFICATION | D12: NON WMP | E12: NON CLASS A | F12: General Service < 50 kW | G12: General Service Less Than 50 kW | H12: 103923431 | I12: 0
A13: 2015 | B13: Bluewater Power Distribution Corporation | C13: BLUEWATER POWER DISTRIBUTION CORPORATION_GENERAL SERVICE 1,000 TO 4,999 KW SERVICE CLASSIFICATION | D13: NON WMP | E13: NON CLASS A | F13: General Service >= 50 kW | G13: General Service 1,000 to 4,999 kW | H13: 160282229 | I13: 359106
A14: 2015 | B14: Bluewater Power Distribution Corporation | C14: BLUEWATER POWER DISTRIBUTION CORPORATION_GENERAL SERVICE 50 TO 999 KW SERVICE CLASSIFICATION | D14: NON WMP | E14: NON CLASS A | F14: General Service >= 50 kW | G14: General Service 50 to 999 kW - non WMP | H14: 211120393 | I14: 597484
A15: 2015 | B15: Bluewater Power Distribution Corporation | C15: BLUEWATER POWER DISTRIBUTION CORPORATION_GENERAL SERVICE 50 TO 999 KW SERVICE CLASSIFICATION | D15: WMP | E15: NON CLASS A | F15: General Service >= 50 kW | G15: General Service 50 to 999 kW - WMP | H15: 5281274 | I15: 9724
A16: 2015 | B16: Bluewater Power Distribution Corporation | C16: BLUEWATER POWER DISTRIBUTION CORPORATION_LARGE USE SERVICE CLASSIFICATION | D16: NON WMP | E16: NON CLASS A | F16: Large User | G16: Large Use - non WMP | H16: 144864595 | I16: 210812
A17: 2015 | B17: Bluewater Power Distribution Corporation | C17: BLUEWATER POWER DISTRIBUTION CORPORATION_LARGE USE SERVICE CLASSIFICATION | D17: WMP | E17: NON CLASS A | F17: Large User | G17: Large Use - WMP | H17: 112909781 | I17: 193252
A18: 2015 | B18: Bluewater Power Distribution Corporation | C18: BLUEWATER POWER DISTRIBUTION CORPORATION_RESIDENTIAL SERVICE CLASSIFICATION | D18: NON WMP | E18: NON CLASS A | F18: Residential | G18: Residential | H18: 248491220 | I18: 0
A19: 2015 | B19: Bluewater Power Distribution Corporation | C19: BLUEWATER POWER DISTRIBUTION CORPORATION_SENTINEL LIGHTING SERVICE CLASSIFICATION | D19: NON WMP | E19: NON CLASS A | F19: Sentinel Lighting Connections | G19: Sentinel Lighting | H19: 536887 | I19: 1278
A20: 2015 | B20: Bluewater Power Distribution Corporation | C20: BLUEWATER POWER DISTRIBUTION CORPORATION_STREET LIGHTING SERVICE CLASSIFICATION | D20: NON WMP | E20: NON CLASS A | F20: Street Lighting Connections | G20: Street Lighting | H20: 8086583 | I20: 21697
A21: 2015 | B21: Bluewater Power Distribution Corporation | C21: BLUEWATER POWER DISTRIBUTION CORPORATION_UNMETERED SCATTERED LOAD SERVICE CLASSIFICATION | D21: NON WMP | E21: NON CLASS A | F21: Unmetered Scattered Load Connections | G21: Unmetered Scattered Load | H21: 2203828 | I21: 0
A22: 2015 | B22: Brant County Power Inc. | C22: BRANT COUNTY POWER INC._GENERAL SERVICE LESS THAN 50 KW SERVICE CLASSIFICATION | D22: NON WMP | E22: NON CLASS A | F22: General Service < 50 kW | G22: General Service Less Than 50 kW | H22: 37296462 | I22: 791
A23: 2015 | B23: Brant County Power Inc. | C23: BRANT COUNTY POWER INC._GENERAL SERVICE 50 TO 4,999 KW SERVICE CLASSIFICATION | D23: NON WMP | E23: NON CLASS A | F23: General Service >= 50 kW | G23: General Service 50 to 4,999 kW | H23: 165127616 | I23: 362451
A24: 2015 | B24: Brant County Power Inc. | C24: BRANT COUNTY POWER INC._RESIDENTIAL SERVICE CLASSIFICATION | D24: NON WMP | E24: NON CLASS A | F24: Residential | G24: Residential | H24: 81835503 | I24: 0
A25: 2015 | B25: Brant County Power Inc. | C25: BRANT COUNTY POWER INC._SENTINEL LIGHTING SERVICE CLASSIFICATION | D25: NON WMP | E25: NON CLASS A | F25: Sentinel Lighting Connections | G25: Sentinel Lighting | H25: 166956 | I25: 353
A26: 2015 | B26: Brant County Power Inc. | C26: BRANT COUNTY POWER INC._STREET LIGHTING SERVICE CLASSIFICATION | D26: NON WMP | E26: NON CLASS A | F26: Street Lighting Connections | G26: Street Lighting | H26: 1696635 | I26: 4770
A27: 2015 | B27: Brant County Power Inc. | C27: BRANT COUNTY POWER INC._UNMETERED SCATTERED LOAD SERVICE CLASSIFICATION | D27: NON WMP | E27: NON CLASS A | F27: Unmetered Scattered Load Connections | G27: Unmetered Scattered Load | H27: 442068 | I27: 0
A28: 2015 | B28: Brantford Power Inc. | C28: BRANTFORD POWER INC._EMBEDDED DISTRIBUTOR SERVICE CLASSIFICATION | D28: NON WMP | E28: NON CLASS A | F28: Embedded Distributor(s) | G28: Embedded Distributor | H28: 0 | I28: 0
A29: 2015 | B29: Brantford Power Inc. | C29: BRANTFORD POWER INC._GENERAL SERVICE LESS THAN 50 KW SERVICE CLASSIFICATION | D29: NON WMP | E29: NON CLASS A | F29: General Service < 50 kW | G29: General Service Less Than 50 kW | H29: 99356580 | I29: 0
A30: 2015 | B30: Brantford Power Inc. | C30: BRANTFORD POWER INC._GENERAL SERVICE 50 TO 4,999 KW SERVICE CLASSIFICATION | D30: NON WMP | E30: NON CLASS A | F30: General Service >= 50 kW | G30: General Service 50 to 4,999 kW | H30: 497985709 | I30: 1381393
A31: 2015 | B31: Brantford Power Inc. | C31: BRANTFORD POWER INC._RESIDENTIAL SERVICE CLASSIFICATION | D31: NON WMP | E31: NON CLASS A | F31: Residential | G31: Residential | H31: 282925750 | I31: 0
A32: 2015 | B32: Brantford Power Inc. | C32: BRANTFORD POWER INC._SENTINEL LIGHTING SERVICE CLASSIFICATION | D32: NON WMP | E32: NON CLASS A | F32: Sentinel Lighting Connections | G32: Sentinel Lighting | H32: 445147 | I32: 0
A33: 2015 | B33: Brantford Power Inc. | C33: BRANTFORD POWER INC._STREET LIGHTING SERVICE CLASSIFICATION | D33: NON WMP | E33: NON CLASS A | F33: Street Lighting Connections | G33: Street Lighting | H33: 7378259 | I33: 22553
A34: 2015 | B34: Brantford Power Inc. | C34: BRANTFORD POWER INC._UNMETERED SCATTERED LOAD SERVICE CLASSIFICATION | D34: NON WMP | E34: NON CLASS A | F34: Unmetered Scattered Load Connections | G34: Unmetered Scattered Load | H34: 1528194 | I34: 0
A35: 2015 | B35: Burlington Hydro Inc. | C35: BURLINGTON HYDRO INC._GENERAL SERVICE LESS THAN 50 KW SERVICE CLASSIFICATION | D35: NON WMP | E35: NON CLASS A | F35: General Service < 50 kW | G35: General Service Less Than 50 kW | H35: 171801204 | I35: 4873
A36: 2015 | B36: Burlington Hydro Inc. | C36: BURLINGTON HYDRO INC._GENERAL SERVICE 50 TO 4,999 KW SERVICE CLASSIFICATION | D36: NON WMP | E36: NON CLASS A | F36: General Service >= 50 kW | G36: General Service 50 to 4,999 kW | H36: 898691394 | I36: 2397592
A37: 2015 | B37: Burlington Hydro Inc. | C37: BURLINGTON HYDRO INC._RESIDENTIAL SERVICE CLASSIFICATION | D37: NON WMP | E37: NON CLASS A | F37: Residential | G37: Residential | H37: 528231336 | I37: 20
A38: 2015 | B38: Burlington Hydro Inc. | C38: BURLINGTON HYDRO INC._STREET LIGHTING SERVICE CLASSIFICATION | D38: NON WMP | E38: NON CLASS A | F38: Street Lighting Connections | G38: Street Lighting | H38: 9908526 | I38: 27634
A39: 2015 | B39: Burlington Hydro Inc. | C39: BURLINGTON HYDRO INC._UNMETERED SCATTERED LOAD SERVICE CLASSIFICATION | D39: NON WMP | E39: NON CLASS A | F39: Unmetered Scattered Load Connections | G39: Unmetered Scattered Load | H39: 2918355 | I39: 0
A40: 2015 | B40: Cambridge and North Dumfries Hydro Inc. | C40: CAMBRIDGE AND NORTH DUMFRIES HYDRO INC._EMBEDDED DISTRIBUTOR - HYDRO ONE SERVICE CLASSIFICATION | D40: NON WMP | E40: NON CLASS A | F40: Embedded Distributor(s) | G40: Embedded Distributor - Hydro One | H40: 0 | I40: 28705
A41: 2015 | B41: Cambridge and North Dumfries Hydro Inc. | C41: CAMBRIDGE AND NORTH DUMFRIES HYDRO INC._EMBEDDED DISTRIBUTOR - WATERLOO NORTH SERVICE CLASSIFICATION | D41: NON WMP | E41: NON CLASS A | F41: Embedded Distributor(s) | G41: Embedded Distributor - Waterloo North | H41: 0 | I41: 106790
A42: 2015 | B42: Cambridge and North Dumfries Hydro Inc. | C42: CAMBRIDGE AND NORTH DUMFRIES HYDRO INC._GENERAL SERVICE LESS THAN 50 KW SERVICE CLASSIFICATION | D42: NON WMP | E42: NON CLASS A | F42: General Service < 50 kW | G42: General Service Less Than 50 kW | H42: 160543971 | I42: 0
A43: 2015 | B43: Cambridge and North Dumfries Hydro Inc. | C43: CAMBRIDGE AND NORTH DUMFRIES HYDRO INC._GENERAL SERVICE 1,000 TO 4,999 KW SERVICE CLASSIFICATION | D43: NON WMP | E43: NON CLASS A | F43: General Service >= 50 kW | G43: General Service 1,000 to 4,999 kW | H43: 255618462 | I43: 565464
A44: 2015 | B44: Cambridge and North Dumfries Hydro Inc. | C44: CAMBRIDGE AND NORTH DUMFRIES HYDRO INC._GENERAL SERVICE 50 TO 999 KW SERVICE CLASSIFICATION | D44: NON WMP | E44: NON CLASS A | F44: General Service >= 50 kW | G44: General Service 50 to 999 kW | H44: 426495391 | I44: 1306317
A45: 2015 | B45: Cambridge and North Dumfries Hydro Inc. | C45: CAMBRIDGE AND NORTH DUMFRIES HYDRO INC._LARGE USE SERVICE CLASSIFICATION | D45: NON WMP | E45: NON CLASS A | F45: Large User | G45: Large Use | H45: 205265395 | I45: 438547
A46: 2015 | B46: Cambridge and North Dumfries Hydro Inc. | C46: CAMBRIDGE AND NORTH DUMFRIES HYDRO INC._RESIDENTIAL SERVICE CLASSIFICATION | D46: NON WMP | E46: NON CLASS A | F46: Residential | G46: Residential | H46: 395480270 | I46: 0
A47: 2015 | B47: Cambridge and North Dumfries Hydro Inc. | C47: CAMBRIDGE AND NORTH DUMFRIES HYDRO INC._STREET LIGHTING SERVICE CLASSIFICATION | D47: NON WMP | E47: NON CLASS A | F47: Street Lighting Connections | G47: Street Lighting | H47: 9696634 | I47: 27085
A48: 2015 | B48: Cambridge and North Dumfries Hydro Inc. | C48: CAMBRIDGE AND NORTH DUMFRIES HYDRO INC._UNMETERED SCATTERED LOAD SERVICE CLASSIFICATION | D48: NON WMP | E48: NON CLASS A | F48: Unmetered Scattered Load Connections | G48: Unmetered Scattered Load | H48: 2009374 | I48: 0
A49: 2015 | B49: Canadian Niagara Power Inc. | C49: =IF(ISERROR(FIND("WMP",G49))=TRUE, UPPER(B49)&"_"&UPPER(G49), UPPER(B49)&"_"&UPPER(LEFT(G49,FIND(" -",G49)-1))&" SERVICE CLASSIFICATION") -> CANADIAN NIAGARA POWER INC._GENERAL SERVICE LESS THAN 50 KW SERVICE CLASSIFICATION - EASTERN ONTARIO POWER SERVICE AREA | D49: NON WMP | E49: NON CLASS A | F49: General Service < 50 kW | G49: General Service Less Than 50 kW Service Classification - Eastern Ontario Power Service Area | H49: 12307839 | I49: 0
A50: 2015 | B50: Canadian Niagara Power Inc. | C50: =IF(ISERROR(FIND("WMP",G50))=TRUE, UPPER(B50)&"_"&UPPER(G50), UPPER(B50)&"_"&UPPER(LEFT(G50,FIND(" -",G50)-1))&" SERVICE CLASSIFICATION") -> CANADIAN NIAGARA POWER INC._GENERAL SERVICE LESS THAN 50 KW SERVICE CLASSIFICATION - FORT ERIE SERVICE AREA | D50: NON WMP | E50: NON CLASS A | F50: General Service < 50 kW | G50: General Service Less Than 50 kW Service Classification - Fort Erie Service Area | H50: 32703664 | I50: 0
A51: 2015 | B51: Canadian Niagara Power Inc. | C51: CANADIAN NIAGARA POWER INC._GENERAL SERVICE LESS THAN 50 KW SERVICE CLASSIFICATION - PORT COLBORNE SERVICE AREA | D51: NON WMP | E51: NON CLASS A | F51: General Service < 50 kW | G51: General Service Less Than 50 kW Service Classification - Port Colborne Service Area | H51: 24123513 | I51: 0
A52: 2015 | B52: Canadian Niagara Power Inc. | C52: CANADIAN NIAGARA POWER INC._GENERAL SERVICE 50 TO 4,999 KW SERVICE CLASSIFICATION - EASTERN ONTARIO POWER SERVICE AREA | D52: NON WMP | E52: NON CLASS A | F52: General Service >= 50 kW | G52: General Service 50 to 4,999 kW Service Classification - Eastern Ontario Power Service Area | H52: 16518390 | I52: 44989
A53: 2015 | B53: Canadian Niagara Power Inc. | C53: CANADIAN NIAGARA POWER INC._GENERAL SERVICE 50 TO 4,999 KW SERVICE CLASSIFICATION - FORT ERIE SERVICE AREA | D53: NON WMP | E53: NON CLASS A | F53: General Service >= 50 kW | G53: General Service 50 to 4,999 kW Service Classification - Fort Erie Service Area | H53: 102618770 | I53: 279552
A54: 2015 | B54: Canadian Niagara Power Inc. | C54: CANADIAN NIAGARA POWER INC._GENERAL SERVICE 50 TO 4,999 KW SERVICE CLASSIFICATION - PORT COLBORNE SERVICE AREA | D54: NON WMP | E54: NON CLASS A | F54: General Service >= 50 kW | G54: General Service 50 to 4,999 kW Service Classification - Port Colborne Service Area | H54: 113386236 | I54: 352778
A55: 2015 | B55: Canadian Niagara Power Inc. | C55: CANADIAN NIAGARA POWER INC._RESIDENTIAL SERVICE CLASSIFICATION - EASTERN ONTARIO POWER SERVICE AREA | D55: NON WMP | E55: NON CLASS A | F55: Residential | G55: Residential Service Classification - Eastern Ontario Power Service Area | H55: 28579742 | I55: 0
A56: 2015 | B56: Canadian Niagara Power Inc. | C56: CANADIAN NIAGARA POWER INC._RESIDENTIAL SERVICE CLASSIFICATION - FORT ERIE SERVICE AREA | D56: NON WMP | E56: NON CLASS A | F56: Residential | G56: Residential Service Classification - Fort Erie Service Area | H56: 111371333 | I56: 0
A57: 2015 | B57: Canadian Niagara Power Inc. | C57: CANADIAN NIAGARA POWER INC._RESIDENTIAL SERVICE CLASSIFICATION - PORT COLBORNE SERVICE AREA | D57: NON WMP | E57: NON CLASS A | F57: Residential | G57: Residential Service Classification - Port Colborne Service Area | H57: 62544703 | I57: 0
A58: 2015 | B58: Canadian Niagara Power Inc. | C58: CANADIAN NIAGARA POWER INC._SENTINEL LIGHTING SERVICE CLASSIFICATION - EASTERN ONTARIO POWER SERVICE AREA | D58: NON WMP | E58: NON CLASS A | F58: Sentinel Lighting Connections | G58: Sentinel Lighting Service Classification - Eastern Ontario Power Service Area | H58: 33674 | I58: 102
A59: 2015 | B59: Canadian Niagara Power Inc. | C59: CANADIAN NIAGARA POWER INC._SENTINEL LIGHTING SERVICE CLASSIFICATION - FORT ERIE SERVICE AREA | D59: NON WMP | E59: NON CLASS A | F59: Sentinel Lighting Connections | G59: Sentinel Lighting Service Classification - Fort Erie Service Area | H59: 649772 | I59: 1980
A60: 2015 | B60: Canadian Niagara Power Inc. | C60: CANADIAN NIAGARA POWER INC._SENTINEL LIGHTING SERVICE CLASSIFICATION - PORT COLBORNE SERVICE AREA | D60: NON WMP | E60: NON CLASS A | F60: Sentinel Lighting Connections | G60: Sentinel Lighting Service Classification - Port Colborne Service Area | H60: 13840 | I60: 43
A61: 2015 | B61: Canadian Niagara Power Inc. | C61: CANADIAN NIAGARA POWER INC._STREET LIGHTING SERVICE CLASSIFICATION - EASTERN ONTARIO POWER SERVICE AREA | D61: NON WMP | E61: NON CLASS A | F61: Street Lighting Connections | G61: Street Lighting Service Classification - Eastern Ontario Power Service Area | H61: 548610 | I61: 1670
A62: 2015 | B62: Canadian Niagara Power Inc. | C62: CANADIAN NIAGARA POWER INC._STREET LIGHTING SERVICE CLASSIFICATION - FORT ERIE SERVICE AREA | D62: NON WMP | E62: NON CLASS A | F62: Street Lighting Connections | G62: Street Lighting Service Classification - Fort Erie Service Area | H62: 2170391 | I62: 6662
A63: 2015 | B63: Canadian Niagara Power Inc. | C63: CANADIAN NIAGARA POWER INC._STREET LIGHTING SERVICE CLASSIFICATION - PORT COLBORNE SERVICE AREA | D63: NON WMP | E63: NON CLASS A | F63: Street Lighting Connections | G63: Street Lighting Service Classification - Port Colborne Service Area | H63: 1617772 | I63: 4953
A64: 2015 | B64: Canadian Niagara Power Inc. | C64: CANADIAN NIAGARA POWER INC._UNMETERED SCATTERED LOAD SERVICE CLASSIFICATION - EASTERN ONTARIO POWER SERVICE AREA | D64: NON WMP | E64: NON CLASS A | F64: Unmetered Scattered Load Connections | G64: Unmetered Scattered Load Service Classification - Eastern Ontario Power Service Area | H64: 158504 | I64: 0
A65: 2015 | B65: Canadian Niagara Power Inc. | C65: CANADIAN NIAGARA POWER INC._UNMETERED SCATTERED LOAD SERVICE CLASSIFICATION - FORT ERIE SERVICE AREA | D65: NON WMP | E65: NON CLASS A | F65: Unmetered Scattered Load Connections | G65: Unmetered Scattered Load Service Classification - Fort Erie Service Area | H65: 783108 | I65: 0
A66: 2015 | B66: Canadian Niagara Power Inc. | C66: CANADIAN NIAGARA POWER INC._UNMETERED SCATTERED LOAD SERVICE CLASSIFICATION - PORT COLBORNE SERVICE AREA | D66: NON WMP | E66: NON CLASS A | F66: Unmetered Scattered Load Connections | G66: Unmetered Scattered Load Service Classification - Port Colborne Service Area | H66: 561391 | I66: 0
A67: 2015 | B67: Centre Wellington Hydro Ltd. | C67: CENTRE WELLINGTON HYDRO LTD._GENERAL SERVICE LESS THAN 50 KW SERVICE CLASSIFICATION | D67: NON WMP | E67: NON CLASS A | F67: General Service < 50 kW | G67: General Service Less Than 50 kW | H67: 20579247 | I67: 0
A68: 2015 | B68: Centre Wellington Hydro Ltd. | C68: =IF(ISERROR(FIND("WMP",G68))=TRUE, UPPER(B68)&"_"&UPPER(G68)&" "&"SERVICE CLASSIFICATION", UPPER(B68)&"_"&UPPER(LEFT(G68,FIND(" -",G68)-1))&" SERVICE CLASSIFICATION") -> CENTRE WELLINGTON HYDRO LTD._GENERAL SERVICE 3,000 TO 4,999 KW SERVICE CLASSIFICATION | D68: NON WMP | E68: NON CLASS A | F68: General Service >= 50 kW | G68: General Service 3,000 to 4,999 kW | H68: 18461823 | I68: 43263
A69: 2015 | B69: Centre Wellington Hydro Ltd. | C69: CENTRE WELLINGTON HYDRO LTD._GENERAL SERVICE 50 TO 2,999 KW SERVICE CLASSIFICATION | D69: =IF(ISERROR(FIND("- WMP", G69))=TRUE, "NON WMP", "WMP") -> NON WMP | E69: =IF(ISERROR(FIND("- Class A", G69))=TRUE, "NON CLASS A", "CLASS A") -> NON CLASS A | F69: General Service >= 50 kW | G69: General Service 50 to 2,999 kW | H69: 58374224 | I69: 154260
A70: 2015 | B70: Centre Wellington Hydro Ltd. | C70: CENTRE WELLINGTON HYDRO LTD._RESIDENTIAL SERVICE CLASSIFICATION | D70: NON WMP | E70: NON CLASS A | F70: Residential | G70: Residential | H70: 46179255 | I70: 0
A71: 2015 | B71: Centre Wellington Hydro Ltd. | C71: CENTRE WELLINGTON HYDRO LTD._SENTINEL LIGHTING SERVICE CLASSIFICATION | D71: NON WMP | E71: NON CLASS A | F71: Sentinel Lighting Connections | G71: Sentinel Lighting | H71: 39274 | I71: 109
A72: 2015 | B72: Centre Wellington Hydro Ltd. | C72: CENTRE WELLINGTON HYDRO LTD._STREET LIGHTING SERVICE CLASSIFICATION | D72: NON WMP | E72: NON CLASS A | F72: Street Lighting Connections | G72: Street Lighting | H72: 1141797 | I72: 3151
A73: 2015 | B73: Centre Wellington Hydro Ltd. | C73: CENTRE WELLINGTON HYDRO LTD._UNMETERED SCATTERED LOAD SERVICE CLASSIFICATION | D73: NON WMP | E73: NON CLASS A | F73: Unmetered Scattered Load Connections | G73: Unmetered Scattered Load | H73: 563396 | I73: 0
A74: 2015 | B74: Chapleau Public Utilities Corporation | C74: CHAPLEAU PUBLIC UTILITIES CORPORATION_GENERAL SERVICE LESS THAN 50 KW SERVICE CLASSIFICATION | D74: NON WMP | E74: NON CLASS A | F74: General Service < 50 kW | G74: General Service Less Than 50 kW | H74: 5251375 | I74: 0
A75: 2015 | B75: Chapleau Public Utilities Corporation | C75: CHAPLEAU PUBLIC UTILITIES CORPORATION_GENERAL SERVICE 50 TO 4,999 KW SERVICE CLASSIFICATION | D75: NON WMP | E75: NON CLASS A | F75: General Service >= 50 kW | G75: General Service 50 to 4,999 kW | H75: 7157299 | I75: 18430
A76: 2015 | B76: Chapleau Public Utilities Corporation | C76: CHAPLEAU PUBLIC UTILITIES CORPORATION_RESIDENTIAL SERVICE CLASSIFICATION | D76: NON WMP | E76: NON CLASS A | F76: Residential | G76: Residential | H76: 15225943 | I76: 0
A77: 2015 | B77: Chapleau Public Utilities Corporation | C77: CHAPLEAU PUBLIC UTILITIES CORPORATION_SENTINEL LIGHTING SERVICE CLASSIFICATION | D77: NON WMP | E77: NON CLASS A | F77: Sentinel Lighting Connections | G77: Sentinel Lighting | H77: 26857 | I77: 65
A78: 2015 | B78: Chapleau Public Utilities Corporation | C78: CHAPLEAU PUBLIC UTILITIES CORPORATION_STREET LIGHTING SERVICE CLASSIFICATION | D78: NON WMP | E78: NON CLASS A | F78: Street Lighting Connections | G78: Street Lighting | H78: 274528 | I78: 768
A79: 2015 | B79: Chapleau Public Utilities Corporation | C79: CHAPLEAU PUBLIC UTILITIES CORPORATION_UNMETERED SCATTERED LOAD SERVICE CLASSIFICATION | D79: NON WMP | E79: NON CLASS A | F79: Unmetered Scattered Load Connections | G79: Unmetered Scattered Load | H79: 4068 | I79: 0
A80: 2015 | B80: Collus PowerStream Corp. | C80: COLLUS POWERSTREAM CORP._GENERAL SERVICE LESS THAN 50 KW SERVICE CLASSIFICATION | D80: NON WMP | E80: NON CLASS A | F80: General Service < 50 kW | G80: General Service Less Than 50 kW | H80: 48496763 | I80: 4637
A81: 2015 | B81: Collus PowerStream Corp. | C81: COLLUS POWERSTREAM CORP._GENERAL SERVICE 50 TO 4,999 KW SERVICE CLASSIFICATION | D81: NON WMP | E81: NON CLASS A | F81: General Service >= 50 kW | G81: General Service 50 to 4,999 kW | H81: 119833154 | I81: 296318
A82: 2015 | B82: Collus PowerStream Corp. | C82: COLLUS POWERSTREAM CORP._RESIDENTIAL SERVICE CLASSIFICATION | D82: NON WMP | E82: NON CLASS A | F82: Residential | G82: Residential | H82: 126841012 | I82: 0
A83: 2015 | B83: Collus PowerStream Corp. | C83: COLLUS POWERSTREAM CORP._STREET LIGHTING SERVICE CLASSIFICATION | D83: NON WMP | E83: NON CLASS A | F83: Street Lighting Connections | G83: Street Lighting | H83: 2180275 | I83: 6127
A84: 2015 | B84: Collus PowerStream Corp. | C84: COLLUS POWERSTREAM CORP._UNMETERED SCATTERED LOAD SERVICE CLASSIFICATION | D84: NON WMP | E84: NON CLASS A | F84: Unmetered Scattered Load Connections | G84: Unmetered Scattered Load | H84: 427729 | I84: 0
A85: 2015 | B85: Cooperative Hydro Embrun Inc. | C85: COOPERATIVE HYDRO EMBRUN INC._GENERAL SERVICE LESS THAN 50 KW SERVICE CLASSIFICATION | D85: NON WMP | E85: NON CLASS A | F85: General Service < 50 kW | G85: General Service Less Than 50 kW | H85: 4699450 | I85: 0
A86: 2015 | B86: Cooperative Hydro Embrun Inc. | C86: COOPERATIVE HYDRO EMBRUN INC._GENERAL SERVICE 50 TO 4,999 KW SERVICE CLASSIFICATION | D86: NON WMP | E86: NON CLASS A | F86: General Service >= 50 kW | G86: General Service 50 to 4,999 kW | H86: 4189855 | I86: 18735
A87: 2015 | B87: Cooperative Hydro Embrun Inc. | C87: COOPERATIVE HYDRO EMBRUN INC._RESIDENTIAL SERVICE CLASSIFICATION | D87: NON WMP | E87: NON CLASS A | F87: Residential | G87: Residential | H87: 19479913 | I87: 0
A88: 2015 | B88: Cooperative Hydro Embrun Inc. | C88: COOPERATIVE HYDRO EMBRUN INC._STREET LIGHTING SERVICE CLASSIFICATION | D88: NON WMP | E88: NON CLASS A | F88: Street Lighting Connections | G88: Street Lighting | H88: 359464 | I88: 1003
A89: 2015 | B89: Cooperative Hydro Embrun Inc. | C89: COOPERATIVE HYDRO EMBRUN INC._UNMETERED SCATTERED LOAD SERVICE CLASSIFICATION | D89: NON WMP | E89: NON CLASS A | F89: Unmetered Scattered Load Connections | G89: Unmetered Scattered Load | H89: 89075 | I89: 0
A90: 2015 | B90: E.L.K. Energy Inc. | C90: E.L.K. ENERGY INC._EMBEDDED DISTRIBUTOR SERVICE CLASSIFICATION | D90: NON WMP | E90: NON CLASS A | F90: Embedded Distributor(s) | G90: Embedded Distributor | H90: 0 | I90: 0
A91: 2015 | B91: E.L.K. Energy Inc. | C91: E.L.K. ENERGY INC._GENERAL SERVICE LESS THAN 50 KW SERVICE CLASSIFICATION | D91: NON WMP | E91: NON CLASS A | F91: General Service < 50 kW | G91: General Service Less Than 50 kW | H91: 30006261 | I91: 0
A92: 2015 | B92: E.L.K. Energy Inc. | C92: E.L.K. ENERGY INC._GENERAL SERVICE 50 TO 4,999 KW SERVICE CLASSIFICATION | D92: NON WMP | E92: NON CLASS A | F92: General Service >= 50 kW | G92: General Service 50 to 4,999 kW | H92: 109497614 | I92: 301435
A93: 2015 | B93: E.L.K. Energy Inc. | C93: E.L.K. ENERGY INC._RESIDENTIAL SERVICE CLASSIFICATION | D93: NON WMP | E93: NON CLASS A | F93: Residential | G93: Residential | H93: 89131088 | I93: 0
A94: 2015 | B94: E.L.K. Energy Inc. | C94: E.L.K. ENERGY INC._SENTINEL LIGHTING SERVICE CLASSIFICATION | D94: NON WMP | E94: NON CLASS A | F94: Sentinel Lighting Connections | G94: Sentinel Lighting | H94: 180687 | I94: 0
A95: 2015 | B95: E.L.K. Energy Inc. | C95: E.L.K. ENERGY INC._STREET LIGHTING SERVICE CLASSIFICATION | D95: NON WMP | E95: NON CLASS A | F95: Street Lighting Connections | G95: Street Lighting | H95: 2302093 | I95: 6462
A96: 2015 | B96: E.L.K. Energy Inc. | C96: E.L.K. ENERGY INC._UNMETERED SCATTERED LOAD SERVICE CLASSIFICATION | D96: NON WMP | E96: NON CLASS A | F96: Unmetered Scattered Load Connections | G96: Unmetered Scattered Load | H96: 0 | I96: 0
A97: 2015 | B97: Enersource Hydro Mississauga Inc. | C97: ENERSOURCE HYDRO MISSISSAUGA INC._GENERAL SERVICE LESS THAN 50 KW SERVICE CLASSIFICATION | D97: NON WMP | E97: NON CLASS A | F97: General Service < 50 kW | G97: General Service Less Than 50 kW | H97: 647112058 | I97: 0
A98: 2015 | B98: Enersource Hydro Mississauga Inc. | C98: =IF(ISERROR(FIND("WMP",G98))=TRUE, UPPER(B98)&"_"&UPPER(G98)&" "&"SERVICE CLASSIFICATION", UPPER(B98)&"_"&UPPER(LEFT(G98,FIND(" -",G98)-1))&" SERVICE CLASSIFICATION") -> ENERSOURCE HYDRO MISSISSAUGA INC._GENERAL SERVICE 50 TO 499 KW SERVICE CLASSIFICATION | D98: =IF(ISERROR(FIND("- WMP", G98))=TRUE, "NON WMP", "WMP") -> NON WMP | E98: =IF(ISERROR(FIND("- Class A", G98))=TRUE, "NON CLASS A", "CLASS A") -> NON CLASS A | F98: General Service >= 50 kW | G98: General Service 50 to 499 kW | H98: 2104160255 | I98: 6035821
A99: 2015 | B99: Enersource Hydro Mississauga Inc. | C99: =IF(ISERROR(FIND("WMP",G99))=TRUE, UPPER(B99)&"_"&UPPER(G99)&" "&"SERVICE CLASSIFICATION", UPPER(B99)&"_"&UPPER(LEFT(G99,FIND(" -",G99)-1))&" SERVICE CLASSIFICATION") -> ENERSOURCE HYDRO MISSISSAUGA INC._GENERAL SERVICE 500 TO 4,999 KW SERVICE CLASSIFICATION | D99: =IF(ISERROR(FIND("- WMP", G99))=TRUE, "NON WMP", "WMP") -> NON WMP | E99: =IF(ISERROR(FIND("- Class A", G99))=TRUE, "NON CLASS A", "CLASS A") -> NON CLASS A | F99: General Service >= 50 kW | G99: General Service 500 to 4,999 kW | H99: 2087036250 | I99: 4709432
A100: 2015 | B100: Enersource Hydro Mississauga Inc. | C100: =IF(ISERROR(FIND("WMP",G100))=TRUE, UPPER(B100)&"_"&UPPER(G100)&" "&"SERVICE CLASSIFICATION", UPPER(B100)&"_"&UPPER(LEFT(G100,FIND(" -",G100)-1))&" SERVICE CLASSIFICATION") -> ENERSOURCE HYDRO MISSISSAUGA INC._LARGE USE SERVICE CLASSIFICATION | D100: =IF(ISERROR(FIND("- WMP", G100))=TRUE, "NON WMP", "WMP") -> NON WMP | E100: =IF(ISERROR(FIND("- Class A", G100))=TRUE, "NON CLASS A", "CLASS A") -> NON CLASS A | F100: Large User | G100: Large Use | H100: =SUM(H101:H102) -> 1002165608 | I100: =SUM(I101:I102) -> 1741184
A101: 2015 | B101: Enersource Hydro Mississauga Inc. | C101: ENERSOURCE HYDRO MISSISSAUGA INC._LARGE USE - CLASS A CUSTOMERS SERVICE CLASSIFICATION | D101: NON WMP | E101: CLASS A | F101: Large User | G101: Large Use - Class A Customers | H101: 920433360 | I101: 1579941
A102: 2015 | B102: Enersource Hydro Mississauga Inc. | C102: ENERSOURCE HYDRO MISSISSAUGA INC._LARGE USE - CLASS B CUSTOMERS SERVICE CLASSIFICATION | D102: NON WMP | E102: NON CLASS A | F102: Large User | G102: Large Use - Class B Customers | H102: 81732248 | I102: 161243
A103: 2015 | B103: Enersource Hydro Mississauga Inc. | C103: ENERSOURCE HYDRO MISSISSAUGA INC._RESIDENTIAL SERVICE CLASSIFICATION | D103: NON WMP | E103: NON CLASS A | F103: Residential | G103: Residential | H103: 1469096847 | I103: 0
A104: 2015 | B104: Enersource Hydro Mississauga Inc. | C104: ENERSOURCE HYDRO MISSISSAUGA INC._STREET LIGHTING SERVICE CLASSIFICATION | D104: NON WMP | E104: NON CLASS A | F104: Street Lighting Connections | G104: Street Lighting | H104: 31923315 | I104: 90307
A105: 2015 | B105: Enersource Hydro Mississauga Inc. | C105: ENERSOURCE HYDRO MISSISSAUGA INC._UNMETERED SCATTERED LOAD SERVICE CLASSIFICATION | D105: NON WMP | E105: NON CLASS A | F105: Unmetered Scattered Load Connections | G105: Unmetered Scattered Load | H105: 11501822 | I105: 0
A106: 2015 | B106: Entegrus Powerlines Inc. | C106: =IF(ISERROR(FIND("WMP",G106))=TRUE, UPPER(B106)&"_"&UPPER(G106), UPPER(B106)&"_"&UPPER(LEFT(G106,FIND(" -",G106)-1))&" SERVICE CLASSIFICATION") -> ENTEGRUS POWERLINES INC._GENERAL SERVICE LESS THAN 50 KW SERVICE CLASSIFICATION - CHATHAM-KENT HYDRO SERVICE AREA | D106: NON WMP | E106: NON CLASS A | F106: General Service < 50 kW | G106: General Service Less Than 50 kW Service Classification - Chatham-Kent Hydro Service Area | H106: 88516284 | I106: 0
A107: 2015 | B107: Entegrus Powerlines Inc. | C107: =IF(ISERROR(FIND("WMP",G107))=TRUE, UPPER(B107)&"_"&UPPER(G107), UPPER(B107)&"_"&UPPER(LEFT(G107,FIND(" -",G107)-1))&" SERVICE CLASSIFICATION") -> ENTEGRUS POWERLINES INC._GENERAL SERVICE LESS THAN 50 KW SERVICE CLASSIFICATION - DUTTON SERVICE AREA | D107: NON WMP | E107: NON CLASS A | F107: General Service < 50 kW | G107: General Service less than 50 kW Service Classification - Dutton Service Area | H107: 3437363 | I107: 0
A108: 2015 | B108: Entegrus Powerlines Inc. | C108: ENTEGRUS POWERLINES INC._GENERAL SERVICE LESS THAN 50 KW SERVICE CLASSIFICATION - NEWBURY SERVICE AREA | D108: NON WMP | E108: NON CLASS A | F108: General Service < 50 kW | G108: General Service Less Than 50 kW Service Classification - Newbury Service Area | H108: 534747 | I108: 0
A109: 2015 | B109: Entegrus Powerlines Inc. | C109: ENTEGRUS POWERLINES INC._GENERAL SERVICE LESS THAN 50 KW SERVICE CLASSIFICATION - STRATHROY, MOUNT BRYDGES AND PARKHILL SERVICE AREA | D109: NON WMP | E109: NON CLASS A | F109: General Service < 50 kW | G109: General Service Less Than 50 kW Service Classification - Strathroy, Mount Brydges and Parkhill Service Area | H109: 17337883 | I109: 0
A110: 2015 | B110: Entegrus Powerlines Inc. | C110: ENTEGRUS POWERLINES INC._GENERAL SERVICE 50 TO 4,999 KW SERVICE CLASSIFICATION - NEWBURY SERVICE AREA | D110: NON WMP | E110: NON CLASS A | F110: General Service >= 50 kW | G110: General Service 50 to 4,999 kW Service Classification - Newbury Service Area | H110: 1478160 | I110: 3878
A111: 2015 | B111: Entegrus Powerlines Inc. | C111: ENTEGRUS POWERLINES INC._GENERAL SERVICE 50 TO 4,999 KW SERVICE CLASSIFICATION - STRATHROY, MOUNT BRYDGES AND PARKHILL SERVICE AREA | D111: NON WMP | E111: NON CLASS A | F111: General Service >= 50 kW | G111: General Service 50 to 4,999 kW Service Classification - Strathroy, Mount Brydges and Parkhill Service Area | H111: 106710585 | I111: 240319
A112: 2015 | B112: Entegrus Powerlines Inc. | C112: ENTEGRUS POWERLINES INC._GENERAL SERVICE 50 TO 999 KW SERVICE CLASSIFICATION - CHATHAM-KENT HYDRO SERVICE AREA | D112: NON WMP | E112: NON CLASS A | F112: General Service >= 50 kW | G112: General Service 50 to 999 kW Service Classification - Chatham-Kent Hydro Service Area | H112: 245152653 | I112: 694185
A113: 2015 | B113: Entegrus Powerlines Inc. | C113: ENTEGRUS POWERLINES INC._GENERAL SERVICE INTERMEDIATE 1,000 TO 4,999 KW SERVICE CLASSIFICATION - CHATHAM-KENT HYDRO SERVICE | D113: NON WMP | E113: NON CLASS A | F113: General Service >= 50 kW | G113: General Service Intermediate 1,000 to 4,999 kW Service Classification - Chatham-Kent Hydro Service | H113: 113731870 | I113: 273287
A114: 2015 | B114: Entegrus Powerlines Inc. | C114: ENTEGRUS POWERLINES INC._INTERMEDIATE WITH SELF GENERATION SERVICE CLASSIFICATION - CHATHAM-KENT HYDRO SERVICE AREA | D114: NON WMP | E114: NON CLASS A | F114: General Service >= 50 kW | G114: Intermediate With Self Generation Service Classification - Chatham-Kent Hydro Service Area | H114: 33167215 | I114: 81852
A115: 2015 | B115: Entegrus Powerlines Inc. | C115: ENTEGRUS POWERLINES INC._LARGE USE SERVICE CLASSIFICATION - STRATHROY, MOUNT BRYDGES AND PARKHILL SERVICE AREA | D115: NON WMP | E115: NON CLASS A | F115: Large User | G115: Large Use Service Classification - Strathroy, Mount Brydges and Parkhill Service Area | H115: 31573402 | I115: 65619
A116: 2015 | B116: Entegrus Powerlines Inc. | C116: ENTEGRUS POWERLINES INC._RESIDENTIAL SERVICE CLASSIFICATION - CHATHAM-KENT HYDRO SERVICE AREA | D116: NON WMP | E116: NON CLASS A | F116: Residential | G116: Residential Service Classification - Chatham-Kent Hydro Service Area | H116: 225602339 | I116: 0
A117: 2015 | B117: Entegrus Powerlines Inc. | C117: ENTEGRUS POWERLINES INC._RESIDENTIAL SERVICE CLASSIFICATION - DUTTON SERVICE AREA | D117: NON WMP | E117: NON CLASS A | F117: Residential | G117: Residential Service Classification - Dutton Service Area | H117: 4528709 | I117: 0
A118: 2015 | B118: Entegrus Powerlines Inc. | C118: ENTEGRUS POWERLINES INC._RESIDENTIAL SERVICE CLASSIFICATION - NEWBURY SERVICE AREA | D118: NON WMP | E118: NON CLASS A | F118: Residential | G118: Residential Service Classification - Newbury Service Area | H118: 1358770 | I118: 0
A119: 2015 | B119: Entegrus Powerlines Inc. | C119: ENTEGRUS POWERLINES INC._RESIDENTIAL SERVICE CLASSIFICATION - STRATHROY, MOUNT BRYDGES AND PARKHILL SERVICE AREA | D119: NON WMP | E119: NON CLASS A | F119: Residential | G119: Residential Service Classification - Strathroy, Mount Brydges and Parkhill Service Area | H119: 57965626 | I119: 0
A120: 2015 | B120: Entegrus Powerlines Inc. | C120: ENTEGRUS POWERLINES INC._SENTINEL LIGHTING SERVICE CLASSIFICATION - CHATHAM-KENT HYDRO SERVICE AREA | D120: NON WMP | E120: NON CLASS A | F120: Sentinel Lighting Connections | G120: Sentinel Lighting Service Classification - Chatham-Kent Hydro Service Area | H120: 364563 | I120: 1022
A121: 2015 | B121: Entegrus Powerlines Inc. | C121: ENTEGRUS POWERLINES INC._SENTINEL LIGHTING SERVICE CLASSIFICATION - DUTTON SERVICE AREA | D121: NON WMP | E121: NON CLASS A | F121: Sentinel Lighting Connections | G121: Sentinel Lighting Service Classification - Dutton Service Area | H121: 881 | I121: 2
A122: 2015 | B122: Entegrus Powerlines Inc. | C122: ENTEGRUS POWERLINES INC._SENTINEL LIGHTING SERVICE CLASSIFICATION - STRATHROY, MOUNT BRYDGES AND PARKHILL SERVICE AREA | D122: NON WMP | E122: NON CLASS A | F122: Sentinel Lighting Connections | G122: Sentinel Lighting Service Classification - Strathroy, Mount Brydges and Parkhill Service Area | H122: 43208 | I122: 120
A123: 2015 | B123: Entegrus Powerlines Inc. | C123: ENTEGRUS POWERLINES INC._STREET LIGHTING SERVICE CLASSIFICATION - CHATHAM-KENT HYDRO SERVICE AREA | D123: NON WMP | E123: NON CLASS A | F123: Street Lighting Connections | G123: Street Lighting Service Classification - Chatham-Kent Hydro Service Area | H123: 5912083 | I123: 17520
A124: 2015 | B124: Entegrus Powerlines Inc. | C124: ENTEGRUS POWERLINES INC._STREET LIGHTING SERVICE CLASSIFICATION - DUTTON SERVICE AREA | D124: NON WMP | E124: NON CLASS A | F124: Street Lighting Connections | G124: Street Lighting Service Classification - Dutton Service Area | H124: 116024 | I124: 343
A125: 2015 | B125: Entegrus Powerlines Inc. | C125: ENTEGRUS POWERLINES INC._STREET LIGHTING SERVICE CLASSIFICATION - NEWBURY SERVICE AREA | D125: NON WMP | E125: NON CLASS A | F125: Street Lighting Connections | G125: Street Lighting Service Classification - Newbury Service Area | H125: 55093 | I125: 163
A126: 2015 | B126: Entegrus Powerlines Inc. | C126: ENTEGRUS POWERLINES INC._STREET LIGHTING SERVICE CLASSIFICATION - STRATHROY, MOUNT BRYDGES AND PARKHILL SERVICE AREA | D126: NON WMP | E126: NON CLASS A | F126: Street Lighting Connections | G126: Street Lighting Service Classification - Strathroy, Mount Brydges and Parkhill Service Area | H126: 1450050 | I126: 4315
A127: 2015 | B127: Entegrus Powerlines Inc. | C127: ENTEGRUS POWERLINES INC._UNMETERED SCATTERED LOAD SERVICE CLASSIFICATION - CHATHAM-KENT HYDRO SERVICE AREA | D127: NON WMP | E127: NON CLASS A | F127: Unmetered Scattered Load Connections | G127: Unmetered Scattered Load Service Classification - Chatham-Kent Hydro Service Area | H127: 923684 | I127: 0
A128: 2015 | B128: Entegrus Powerlines Inc. | C128: ENTEGRUS POWERLINES INC._UNMETERED SCATTERED LOAD SERVICE CLASSIFICATION - STRATHROY, MOUNT BRYDGES AND PARKHILL SERVICE AREA | D128: NON WMP | E128: NON CLASS A | F128: Unmetered Scattered Load Connections | G128: Unmetered Scattered Load Service Classification - Strathroy, Mount Brydges and Parkhill Service Area | H128: 325760 | I128: 0
A129: 2015 | B129: EnWin Utilities Ltd. | C129: ENWIN UTILITIES LTD._GENERAL SERVICE LESS THAN 50 KW SERVICE CLASSIFICATION | D129: NON WMP | E129: NON CLASS A | F129: General Service < 50 kW | G129: General Service Less Than 50 kW | H129: 213455530 | I129: 0
A130: 2015 | B130: EnWin Utilities Ltd. | C130: ENWIN UTILITIES LTD._GENERAL SERVICE 3,000 TO 4,999 KW - FORMER TOU SERVICE CLASSIFICATION | D130: NON WMP | E130: NON CLASS A | F130: General Service >= 50 kW | G130: General Service 3,000 to 4,999 kW - former TOU | H130: 47404578 | I130: 131072
A131: 2015 | B131: EnWin Utilities Ltd. | C131: ENWIN UTILITIES LTD._GENERAL SERVICE 50 TO 4,999 KW SERVICE CLASSIFICATION | D131: NON WMP | E131: NON CLASS A | F131: General Service >= 50 kW | G131: General Service 50 to 4,999 kW | H131: 971498478 | I131: 2471543
A132: 2015 | B132: EnWin Utilities Ltd. | C132: ENWIN UTILITIES LTD._LARGE USE - 3TS SERVICE CLASSIFICATION | D132: NON WMP | E132: NON CLASS A | F132: Large User | G132: Large Use - 3TS | H132: 265598532 | I132: 524555
A133: 2015 | B133: EnWin Utilities Ltd. | C133: =IF(ISERROR(FIND("WMP",G133))=TRUE, UPPER(B133)&"_"&UPPER(G133)&" "&"SERVICE CLASSIFICATION", UPPER(B133)&"_"&UPPER(LEFT(G133,FIND(" -",G133)-1))&" SERVICE CLASSIFICATION") -> ENWIN UTILITIES LTD._LARGE USE - FORD ANNEX SERVICE CLASSIFICATION | D133: NON WMP | E133: NON CLASS A | F133: Large User | G133: Large Use - Ford Annex | H133: 47203347 | I133: 86734
A134: 2015 | B134: EnWin Utilities Ltd. | C134: ENWIN UTILITIES LTD._LARGE USE - REGULAR SERVICE CLASSIFICATION | D134: =IF(ISERROR(FIND("- WMP", G134))=TRUE, "NON WMP", "WMP") -> NON WMP | E134: =IF(ISERROR(FIND("- Class A", G134))=TRUE, "NON CLASS A", "CLASS A") -> NON CLASS A | F134: Large User | G134: Large Use - Regular | H134: 303300343 | I134: 557416
A135: 2015 | B135: EnWin Utilities Ltd. | C135: ENWIN UTILITIES LTD._RESIDENTIAL SERVICE CLASSIFICATION | D135: NON WMP | E135: NON CLASS A | F135: Residential | G135: Residential | H135: 602750974 | I135: 0
A136: 2015 | B136: EnWin Utilities Ltd. | C136: ENWIN UTILITIES LTD._SENTINEL LIGHTING SERVICE CLASSIFICATION | D136: NON WMP | E136: NON CLASS A | F136: Sentinel Lighting Connections | G136: Sentinel Lighting | H136: 926061 | I136: 2743
A137: 2015 | B137: EnWin Utilities Ltd. | C137: ENWIN UTILITIES LTD._STREET LIGHTING SERVICE CLASSIFICATION | D137: NON WMP | E137: NON CLASS A | F137: Street Lighting Connections | G137: Street Lighting | H137: 17302308 | I137: 49412
A138: 2015 | B138: EnWin Utilities Ltd. | C138: ENWIN UTILITIES LTD._UNMETERED SCATTERED LOAD SERVICE CLASSIFICATION | D138: NON WMP | E138: NON CLASS A | F138: Unmetered Scattered Load Connections | G138: Unmetered Scattered Load | H138: 2509999 | I138: 0
A139: 2015 | B139: Erie Thames Powerlines Corporation | C139: =IF(ISERROR(FIND("WMP",G139))=TRUE, UPPER(B139)&"_"&UPPER(G139), UPPER(B139)&"_"&UPPER(LEFT(G139,FIND(" -",G139)-1))&" SERVICE CLASSIFICATION") -> ERIE THAMES POWERLINES CORPORATION_EMBEDDED DISTRIBUTOR | D139: NON WMP | E139: NON CLASS A | F139: Embedded Distributor(s) | G139: Embedded Distributor | H139: 16830475 | I139: 36126
A140: 2015 | B140: Erie Thames Powerlines Corporation | C140: ERIE THAMES POWERLINES CORPORATION_GENERAL SERVICE LESS THAN 50 KW SERVICE CLASSIFICATION | D140: NON WMP | E140: NON CLASS A | F140: General Service < 50 kW | G140: General Service Less Than 50 kW | H140: 47965405 | I140: 0
A141: 2015 | B141: Erie Thames Powerlines Corporation | C141: ERIE THAMES POWERLINES CORPORATION_GENERAL SERVICE 1,000 TO 4,999 KW SERVICE CLASSIFICATION | D141: NON WMP | E141: NON CLASS A | F141: General Service >= 50 kW | G141: General Service 1,000 to 4,999 kW | H141: 67500551 | I141: 136505
A142: 2015 | B142: Erie Thames Powerlines Corporation | C142: ERIE THAMES POWERLINES CORPORATION_GENERAL SERVICE 50 TO 999 KW SERVICE CLASSIFICATION | D142: NON WMP | E142: NON CLASS A | F142: General Service >= 50 kW | G142: General Service 50 to 999 kW | H142: 119966368 | I142: 346535
A143: 2015 | B143: Erie Thames Powerlines Corporation | C143: ERIE THAMES POWERLINES CORPORATION_LARGE USE SERVICE CLASSIFICATION | D143: NON WMP | E143: NON CLASS A | F143: Large User | G143: Large Use | H143: 98447967 | I143: 179159
A144: 2015 | B144: Erie Thames Powerlines Corporation | C144: ERIE THAMES POWERLINES CORPORATION_RESIDENTIAL SERVICE CLASSIFICATION | D144: NON WMP | E144: NON CLASS A | F144: Residential | G144: Residential | H144: 137516625 | I144: 0
A145: 2015 | B145: Erie Thames Powerlines Corporation | C145: ERIE THAMES POWERLINES CORPORATION_SENTINEL LIGHTING SERVICE CLASSIFICATION | D145: NON WMP | E145: NON CLASS A | F145: Sentinel Lighting Connections | G145: Sentinel Lighting | H145: 254890 | I145: 0
A146: 2015 | B146: Erie Thames Powerlines Corporation | C146: ERIE THAMES POWERLINES CORPORATION_STREET LIGHTING SERVICE CLASSIFICATION | D146: NON WMP | E146: NON CLASS A | F146: Street Lighting Connections | G146: Street Lighting | H146: 2236000 | I146: 6074
A147: 2015 | B147: Erie Thames Powerlines Corporation | C147: ERIE THAMES POWERLINES CORPORATION_UNMETERED SCATTERED LOAD SERVICE CLASSIFICATION | D147: NON WMP | E147: NON CLASS A | F147: Unmetered Scattered Load Connections | G147: Unmetered Scattered Load | H147: 536717 | I147: 0
A148: 2015 | B148: Espanola Regional Hydro Distribution Corporation | C148: ESPANOLA REGIONAL HYDRO DISTRIBUTION CORPORATION_GENERAL SERVICE LESS THAN 50 KW SERVICE CLASSIFICATION | D148: NON WMP | E148: NON CLASS A | F148: General Service < 50 kW | G148: General Service Less Than 50 kW | H148: 10747812 | I148: 13765
A149: 2015 | B149: Espanola Regional Hydro Distribution Corporation | C149: ESPANOLA REGIONAL HYDRO DISTRIBUTION CORPORATION_GENERAL SERVICE 50 TO 4,999 KW SERVICE CLASSIFICATION | D149: NON WMP | E149: NON CLASS A | F149: General Service >= 50 kW | G149: General Service 50 to 4,999 kW | H149: 17091907 | I149: 40172
A150: 2015 | B150: Espanola Regional Hydro Distribution Corporation | C150: ESPANOLA REGIONAL HYDRO DISTRIBUTION CORPORATION_RESIDENTIAL SERVICE CLASSIFICATION | D150: NON WMP | E150: NON CLASS A | F150: Residential | G150: Residential | H150: 32890577 | I150: 0
A151: 2015 | B151: Espanola Regional Hydro Distribution Corporation | C151: ESPANOLA REGIONAL HYDRO DISTRIBUTION CORPORATION_SENTINEL LIGHTING SERVICE CLASSIFICATION | D151: NON WMP | E151: NON CLASS A | F151: Sentinel Lighting Connections | G151: Sentinel Lighting | H151: 25771 | I151: 0
A152: 2015 | B152: Espanola Regional Hydro Distribution Corporation | C152: ESPANOLA REGIONAL HYDRO DISTRIBUTION CORPORATION_STREET LIGHTING SERVICE CLASSIFICATION | D152: NON WMP | E152: NON CLASS A | F152: Street Lighting Connections | G152: Street Lighting | H152: 617088 | I152: 1617
A153: 2015 | B153: Espanola Regional Hydro Distribution Corporation | C153: ESPANOLA REGIONAL HYDRO DISTRIBUTION CORPORATION_UNMETERED SCATTERED LOAD SERVICE CLASSIFICATION | D153: NON WMP | E153: NON CLASS A | F153: Unmetered Scattered Load Connections | G153: Unmetered Scattered Load | H153: 123636 | I153: 0
A154: 2015 | B154: Essex Powerlines Corporation | C154: ESSEX POWERLINES CORPORATION_GENERAL SERVICE LESS THAN 50 KW SERVICE CLASSIFICATION | D154: NON WMP | E154: NON CLASS A | F154: General Service < 50 kW | G154: General Service Less Than 50 kW | H154: 64524896 | I154: 0
A155: 2015 | B155: Essex Powerlines Corporation | C155: ESSEX POWERLINES CORPORATION_GENERAL SERVICE 3,000 TO 4,999 KW SERVICE CLASSIFICATION | D155: NON WMP | E155: NON CLASS A | F155: General Service >= 50 kW | G155: General Service 3,000 to 4,999 kW | H155: 562669 | I155: 8138
A156: 2015 | B156: Essex Powerlines Corporation | C156: ESSEX POWERLINES CORPORATION_GENERAL SERVICE 50 TO 2,999 KW SERVICE CLASSIFICATION | D156: NON WMP | E156: NON CLASS A | F156: General Service >= 50 kW | G156: General Service 50 to 2,999 kW | H156: 163503182 | I156: 472642
A157: 2015 | B157: Essex Powerlines Corporation | C157: ESSEX POWERLINES CORPORATION_RESIDENTIAL SERVICE CLASSIFICATION | D157: NON WMP | E157: NON CLASS A | F157: Residential | G157: Residential | H157: 242521434 | I157: 0
A158: 2015 | B158: Essex Powerlines Corporation | C158: ESSEX POWERLINES CORPORATION_SENTINEL LIGHTING SERVICE CLASSIFICATION | D158: NON WMP | E158: NON CLASS A | F158: Sentinel Lighting Connections | G158: Sentinel Lighting | H158: 330614 | I158: 923
A159: 2015 | B159: Essex Powerlines Corporation | C159: ESSEX POWERLINES CORPORATION_STREET LIGHTING SERVICE CLASSIFICATION | D159: NON WMP | E159: NON CLASS A | F159: Street Lighting Connections | G159: Street Lighting | H159: 6289360 | I159: 19045
A160: 2015 | B160: Essex Powerlines Corporation | C160: ESSEX POWERLINES CORPORATION_UNMETERED SCATTERED LOAD SERVICE CLASSIFICATION | D160: NON WMP | E160: NON CLASS A | F160: Unmetered Scattered Load Connections | G160: Unmetered Scattered Load | H160: 1569183 | I160: 0
A161: 2015 | B161: Festival Hydro Inc. | C161: FESTIVAL HYDRO INC._GENERAL SERVICE LESS THAN 50 KW SERVICE CLASSIFICATION | D161: NON WMP | E161: NON CLASS A | F161: General Service < 50 kW | G161: General Service Less Than 50 kW | H161: 64490146 | I161: 0
A162: 2015 | B162: Festival Hydro Inc. | C162: FESTIVAL HYDRO INC._GENERAL SERVICE 50 TO 4,999 KW SERVICE CLASSIFICATION | D162: NON WMP | E162: NON CLASS A | F162: General Service >= 50 kW | G162: General Service 50 to 4,999 kW | H162: 364107049 | I162: 934817
A163: 2015 | B163: Festival Hydro Inc. | C163: FESTIVAL HYDRO INC._LARGE USE SERVICE CLASSIFICATION | D163: NON WMP | E163: NON CLASS A | F163: Large User | G163: Large Use | H163: 23431958 | I163: 36390
A164: 2015 | B164: Festival Hydro Inc. | C164: FESTIVAL HYDRO INC._RESIDENTIAL SERVICE CLASSIFICATION | D164: NON WMP | E164: NON CLASS A | F164: Residential | G164: Residential | H164: 137095665 | I164: 0
A165: 2015 | B165: Festival Hydro Inc. | C165: FESTIVAL HYDRO INC._RESIDENTIAL - HENSALL SERVICE CLASSIFICATION | D165: NON WMP | E165: NON CLASS A | F165: Residential | G165: Residential - Hensall | H165: 3669325 | I165: 0
A166: 2015 | B166: Festival Hydro Inc. | C166: FESTIVAL HYDRO INC._SENTINEL LIGHTING SERVICE CLASSIFICATION | D166: NON WMP | E166: NON CLASS A | F166: Sentinel Lighting Connections | G166: Sentinel Lighting | H166: 132993 | I166: 369
A167: 2015 | B167: Festival Hydro Inc. | C167: FESTIVAL HYDRO INC._STREET LIGHTING SERVICE CLASSIFICATION | D167: NON WMP | E167: NON CLASS A | F167: Street Lighting Connections | G167: Street Lighting | H167: 4375775 | I167: 11116
A168: 2015 | B168: Festival Hydro Inc. | C168: FESTIVAL HYDRO INC._UNMETERED SCATTERED LOAD SERVICE CLASSIFICATION | D168: NON WMP | E168: NON CLASS A | F168: Unmetered Scattered Load Connections | G168: Unmetered Scattered Load | H168: 663456 | I168: 0
A169: 2015 | B169: Fort Frances Power Corporation | C169: FORT FRANCES POWER CORPORATION_GENERAL SERVICE LESS THAN 50 KW SERVICE CLASSIFICATION | D169: NON WMP | E169: NON CLASS A | F169: General Service < 50 kW | G169: General Service Less Than 50 kW | H169: 14297211 | I169: 0
A170: 2015 | B170: Fort Frances Power Corporation | C170: FORT FRANCES POWER CORPORATION_GENERAL SERVICE 50 TO 4,999 KW SERVICE CLASSIFICATION | D170: NON WMP | E170: NON CLASS A | F170: General Service >= 50 kW | G170: General Service 50 to 4,999 kW | H170: 24355546 | I170: 56708
A171: 2015 | B171: Fort Frances Power Corporation | C171: FORT FRANCES POWER CORPORATION_RESIDENTIAL SERVICE CLASSIFICATION | D171: NON WMP | E171: NON CLASS A | F171: Residential | G171: Residential | H171: 39656512 | I171: 0
A172: 2015 | B172: Fort Frances Power Corporation | C172: FORT FRANCES POWER CORPORATION_STREET LIGHTING SERVICE CLASSIFICATION | D172: NON WMP | E172: NON CLASS A | F172: Street Lighting Connections | G172: Street Lighting | H172: 379146 | I172: 1058
A173: 2015 | B173: Fort Frances Power Corporation | C173: FORT FRANCES POWER CORPORATION_UNMETERED SCATTERED LOAD SERVICE CLASSIFICATION | D173: NON WMP | E173: NON CLASS A | F173: Unmetered Scattered Load Connections | G173: Unmetered Scattered Load | H173: 62628 | I173: 0
A174: 2015 | B174: Greater Sudbury Hydro Inc. | C174: GREATER SUDBURY HYDRO INC._GENERAL SERVICE LESS THAN 50 KW SERVICE CLASSIFICATION | D174: NON WMP | E174: NON CLASS A | F174: General Service < 50 kW | G174: General Service Less Than 50 kW | H174: 143418003 | I174: 0
A175: 2015 | B175: Greater Sudbury Hydro Inc. | C175: GREATER SUDBURY HYDRO INC._GENERAL SERVICE 50 TO 4,999 KW SERVICE CLASSIFICATION | D175: NON WMP | E175: NON CLASS A | F175: General Service >= 50 kW | G175: General Service 50 to 4,999 kW | H175: 373764503 | I175: 936619
A176: 2015 | B176: Greater Sudbury Hydro Inc. | C176: GREATER SUDBURY HYDRO INC._RESIDENTIAL SERVICE CLASSIFICATION | D176: NON WMP | E176: NON CLASS A | F176: Residential | G176: Residential | H176: 398920605 | I176: 0
A177: 2015 | B177: Greater Sudbury Hydro Inc. | C177: GREATER SUDBURY HYDRO INC._SENTINEL LIGHTING SERVICE CLASSIFICATION | D177: NON WMP | E177: NON CLASS A | F177: Sentinel Lighting Connections | G177: Sentinel Lighting | H177: 439620 | I177: 1211
A178: 2015 | B178: Greater Sudbury Hydro Inc. | C178: GREATER SUDBURY HYDRO INC._STREET LIGHTING SERVICE CLASSIFICATION | D178: NON WMP | E178: NON CLASS A | F178: Street Lighting Connections | G178: Street Lighting | H178: 7654362 | I178: 21396
A179: 2015 | B179: Greater Sudbury Hydro Inc. | C179: GREATER SUDBURY HYDRO INC._UNMETERED SCATTERED LOAD SERVICE CLASSIFICATION | D179: NON WMP | E179: NON CLASS A | F179: Unmetered Scattered Load Connections | G179: Unmetered Scattered Load | H179: 1325682 | I179: 0
A180: 2015 | B180: Grimsby Power Incorporated | C180: GRIMSBY POWER INCORPORATED_GENERAL SERVICE LESS THAN 50 KW SERVICE CLASSIFICATION | D180: NON WMP | E180: NON CLASS A | F180: General Service < 50 kW | G180: General Service Less Than 50 kW | H180: 18763724 | I180: 0
A181: 2015 | B181: Grimsby Power Incorporated | C181: GRIMSBY POWER INCORPORATED_GENERAL SERVICE 50 TO 4,999 KW SERVICE CLASSIFICATION | D181: NON WMP | E181: NON CLASS A | F181: General Service >= 50 kW | G181: General Service 50 to 4,999 kW | H181: 63872996 | I181: 224373
A182: 2015 | B182: Grimsby Power Incorporated | C182: GRIMSBY POWER INCORPORATED_RESIDENTIAL SERVICE CLASSIFICATION | D182: NON WMP | E182: NON CLASS A | F182: Residential | G182: Residential | H182: 91883324 | I182: 0
A183: 2015 | B183: Grimsby Power Incorporated | C183: GRIMSBY POWER INCORPORATED_STREET LIGHTING SERVICE CLASSIFICATION | D183: NON WMP | E183: NON CLASS A | F183: Street Lighting Connections | G183: Street Lighting | H183: 1305291 | I183: 6905
A184: 2015 | B184: Grimsby Power Incorporated | C184: GRIMSBY POWER INCORPORATED_UNMETERED SCATTERED LOAD SERVICE CLASSIFICATION | D184: NON WMP | E184: NON CLASS A | F184: Unmetered Scattered Load Connections | G184: Unmetered Scattered Load | H184: 370711 | I184: 0
A185: 2015 | B185: Guelph Hydro Electric Systems Inc. | C185: GUELPH HYDRO ELECTRIC SYSTEMS INC._GENERAL SERVICE LESS THAN 50 KW SERVICE CLASSIFICATION | D185: NON WMP | E185: NON CLASS A | F185: General Service < 50 kW | G185: General Service Less Than 50 kW | H185: 145738547 | I185: 0
A186: 2015 | B186: Guelph Hydro Electric Systems Inc. | C186: GUELPH HYDRO ELECTRIC SYSTEMS INC._GENERAL SERVICE 1,000 TO 4,999 KW SERVICE CLASSIFICATION | D186: NON WMP | E186: NON CLASS A | F186: General Service >= 50 kW | G186: General Service 1,000 to 4,999 kW | H186: 527029065 | I186: 1022991
A187: 2015 | B187: Guelph Hydro Electric Systems Inc. | C187: GUELPH HYDRO ELECTRIC SYSTEMS INC._GENERAL SERVICES 50 TO 999 KW SERVICE CLASSIFICATION | D187: NON WMP | E187: NON CLASS A | F187: General Service >= 50 kW | G187: General Services 50 to 999 kW | H187: 398106072 | I187: 1036898
A188: 2015 | B188: Guelph Hydro Electric Systems Inc. | C188: GUELPH HYDRO ELECTRIC SYSTEMS INC._LARGE USE SERVICE CLASSIFICATION | D188: NON WMP | E188: NON CLASS A | F188: Large User | G188: Large Use | H188: 280314770 | I188: 492109
A189: 2015 | B189: Guelph Hydro Electric Systems Inc. | C189: GUELPH HYDRO ELECTRIC SYSTEMS INC._RESIDENTIAL SERVICE CLASSIFICATION | D189: NON WMP | E189: NON CLASS A | F189: Residential | G189: Residential | H189: 368319726 | I189: 0
A190: 2015 | B190: Guelph Hydro Electric Systems Inc. | C190: GUELPH HYDRO ELECTRIC SYSTEMS INC._SENTINEL LIGHTING SERVICE CLASSIFICATION | D190: NON WMP | E190: NON CLASS A | F190: Sentinel Lighting Connections | G190: Sentinel Lighting | H190: 22111 | I190: 61
A191: 2015 | B191: Guelph Hydro Electric Systems Inc. | C191: GUELPH HYDRO ELECTRIC SYSTEMS INC._STREET LIGHTING SERVICE CLASSIFICATION | D191: NON WMP | E191: NON CLASS A | F191: Street Lighting Connections | G191: Street Lighting | H191: 9956023 | I191: 27790
A192: 2015 | B192: Guelph Hydro Electric Systems Inc. | C192: GUELPH HYDRO ELECTRIC SYSTEMS INC._UNMETERED SCATTERED LOAD SERVICE CLASSIFICATION | D192: NON WMP | E192: NON CLASS A | F192: Unmetered Scattered Load Connections | G192: Unmetered Scattered Load | H192: 1880318 | I192: 0
A193: 2015 | B193: Haldimand County Hydro Inc. | C193: HALDIMAND COUNTY HYDRO INC._EMBEDDED DISTRIBUTOR - HYDRO ONE SERVICE CLASSIFICATION | D193: NON WMP | E193: NON CLASS A | F193: Embedded Distributor(s) | G193: Embedded Distributor - Hydro One | H193: 64767903 | I193: 209155
A194: 2015 | B194: Haldimand County Hydro Inc. | C194: HALDIMAND COUNTY HYDRO INC._GENERAL SERVICE LESS THAN 50 KW SERVICE CLASSIFICATION | D194: NON WMP | E194: NON CLASS A | F194: General Service < 50 kW | G194: General Service Less Than 50 kW | H194: 55013561 | I194: 0
A195: 2015 | B195: Haldimand County Hydro Inc. | C195: HALDIMAND COUNTY HYDRO INC._GENERAL SERVICE 50 TO 4,999 KW SERVICE CLASSIFICATION | D195: NON WMP | E195: NON CLASS A | F195: General Service >= 50 kW | G195: General Service 50 to 4,999 kW | H195: 123567515 | I195: 334652
A196: 2015 | B196: Haldimand County Hydro Inc. | C196: HALDIMAND COUNTY HYDRO INC._RESIDENTIAL SERVICE CLASSIFICATION | D196: NON WMP | E196: NON CLASS A | F196: Residential | G196: Residential | H196: 170207650 | I196: 0
A197: 2015 | B197: Haldimand County Hydro Inc. | C197: =IF(ISERROR(FIND("WMP",G197))=TRUE, UPPER(B197)&"_"&UPPER(G197)&" "&"SERVICE CLASSIFICATION", UPPER(B197)&"_"&UPPER(LEFT(G197,FIND(" -",G197)-1))&" SERVICE CLASSIFICATION") -> HALDIMAND COUNTY HYDRO INC._SENTINEL LIGHTING SERVICE CLASSIFICATION | D197: NON WMP | E197: NON CLASS A | F197: Sentinel Lighting Connections | G197: Sentinel Lighting | H197: 336582 | I197: 931
A198: 2015 | B198: Haldimand County Hydro Inc. | C198: HALDIMAND COUNTY HYDRO INC._STREET LIGHTING SERVICE CLASSIFICATION | D198: =IF(ISERROR(FIND("- WMP", G198))=TRUE, "NON WMP", "WMP") -> NON WMP | E198: =IF(ISERROR(FIND("- Class A", G198))=TRUE, "NON CLASS A", "CLASS A") -> NON CLASS A | F198: Street Lighting Connections | G198: Street Lighting | H198: 2352777 | I198: 6561
A199: 2015 | B199: Haldimand County Hydro Inc. | C199: HALDIMAND COUNTY HYDRO INC._UNMETERED SCATTERED LOAD SERVICE CLASSIFICATION | D199: NON WMP | E199: NON CLASS A | F199: Unmetered Scattered Load Connections | G199: Unmetered Scattered Load | H199: 375730 | I199: 0
A200: 2015 | B200: Halton Hills Hydro Inc. | C200: HALTON HILLS HYDRO INC._GENERAL SERVICE LESS THAN 50 KW SERVICE CLASSIFICATION | D200: NON WMP | E200: NON CLASS A | F200: General Service < 50 kW | G200: General Service Less Than 50 kW | H200: 51514855 | I200: 0
... 333 more rows

Sheet 212_Total_Connection_RollUp (hidden)
A2: 212_Total_Connection_RollUp
A3: Time run: 7/13/2015 4:29:43 PM
A4: 2014
A5: DISTRIBUTOR | B5: Rate_Class | D5: Total_Customer_Connections
A6: Algoma Power Inc. | B6: Residential - R1 | C6: =UPPER(A6)&"_"&UPPER(B6)&" "&"SERVICE CLASSIFICATION" -> ALGOMA POWER INC._RESIDENTIAL - R1 SERVICE CLASSIFICATION | D6: 11588
A7: Algoma Power Inc. | B7: General Service less than 50 kW | C7: =UPPER(A7)&"_"&UPPER(B7)&" "&"SERVICE CLASSIFICATION" -> ALGOMA POWER INC._GENERAL SERVICE LESS THAN 50 KW SERVICE CLASSIFICATION | D7: 0
A8: Algoma Power Inc. | B8: Residential - R2 | C8: ALGOMA POWER INC._RESIDENTIAL - R2 SERVICE CLASSIFICATION | D8: 39
A9: Algoma Power Inc. | B9: Large User | C9: ALGOMA POWER INC._LARGE USER SERVICE CLASSIFICATION | D9: 0
A10: Algoma Power Inc. | B10: Sub Transmission Customers | C10: ALGOMA POWER INC._SUB TRANSMISSION CUSTOMERS SERVICE CLASSIFICATION | D10: 0
A11: Algoma Power Inc. | B11: Embedded Distributor(s) | C11: ALGOMA POWER INC._EMBEDDED DISTRIBUTOR(S) SERVICE CLASSIFICATION | D11: 0
A12: Algoma Power Inc. | B12: Street Lighting Connections | C12: ALGOMA POWER INC._STREET LIGHTING CONNECTIONS SERVICE CLASSIFICATION | D12: 1019
A13: Algoma Power Inc. | B13: Sentinel Lighting Connections | C13: ALGOMA POWER INC._SENTINEL LIGHTING CONNECTIONS SERVICE CLASSIFICATION | D13: 0
A14: Algoma Power Inc. | B14: Unmetered Scattered Load Connections | C14: ALGOMA POWER INC._UNMETERED SCATTERED LOAD CONNECTIONS SERVICE CLASSIFICATION | D14: 0
A15: Atikokan Hydro Inc. | B15: Residential | C15: ATIKOKAN HYDRO INC._RESIDENTIAL SERVICE CLASSIFICATION | D15: 1408
A16: Atikokan Hydro Inc. | B16: General Service less than 50 kW | C16: ATIKOKAN HYDRO INC._GENERAL SERVICE LESS THAN 50 KW SERVICE CLASSIFICATION | D16: 238
A17: Atikokan Hydro Inc. | B17: General Service >= 50 kW | C17: ATIKOKAN HYDRO INC._GENERAL SERVICE >= 50 KW SERVICE CLASSIFICATION | D17: 19
A18: Atikokan Hydro Inc. | B18: Large User | C18: ATIKOKAN HYDRO INC._LARGE USER SERVICE CLASSIFICATION | D18: 0
A19: Atikokan Hydro Inc. | B19: Sub Transmission Customers | C19: ATIKOKAN HYDRO INC._SUB TRANSMISSION CUSTOMERS SERVICE CLASSIFICATION | D19: 0
A20: Atikokan Hydro Inc. | B20: Embedded Distributor(s) | C20: ATIKOKAN HYDRO INC._EMBEDDED DISTRIBUTOR(S) SERVICE CLASSIFICATION | D20: 0
A21: Atikokan Hydro Inc. | B21: Street Lighting Connections | C21: ATIKOKAN HYDRO INC._STREET LIGHTING CONNECTIONS SERVICE CLASSIFICATION | D21: 630
A22: Atikokan Hydro Inc. | B22: Sentinel Lighting Connections | C22: ATIKOKAN HYDRO INC._SENTINEL LIGHTING CONNECTIONS SERVICE CLASSIFICATION | D22: 0
A23: Atikokan Hydro Inc. | B23: Unmetered Scattered Load Connections | C23: ATIKOKAN HYDRO INC._UNMETERED SCATTERED LOAD CONNECTIONS SERVICE CLASSIFICATION | D23: 0
A24: Bluewater Power Distribution Corporation | B24: Residential | C24: BLUEWATER POWER DISTRIBUTION CORPORATION_RESIDENTIAL SERVICE CLASSIFICATION | D24: 32232
A25: Bluewater Power Distribution Corporation | B25: General Service less than 50 kW | C25: BLUEWATER POWER DISTRIBUTION CORPORATION_GENERAL SERVICE LESS THAN 50 KW SERVICE CLASSIFICATION | D25: 3490
A26: Bluewater Power Distribution Corporation | B26: General Service >= 50 kW | C26: BLUEWATER POWER DISTRIBUTION CORPORATION_GENERAL SERVICE >= 50 KW SERVICE CLASSIFICATION | D26: 401
A27: Bluewater Power Distribution Corporation | B27: Large User | C27: BLUEWATER POWER DISTRIBUTION CORPORATION_LARGE USER SERVICE CLASSIFICATION | D27: 3
A28: Bluewater Power Distribution Corporation | B28: Sub Transmission Customers | C28: BLUEWATER POWER DISTRIBUTION CORPORATION_SUB TRANSMISSION CUSTOMERS SERVICE CLASSIFICATION | D28: 0
A29: Bluewater Power Distribution Corporation | B29: Embedded Distributor(s) | C29: BLUEWATER POWER DISTRIBUTION CORPORATION_EMBEDDED DISTRIBUTOR(S) SERVICE CLASSIFICATION | D29: 0
A30: Bluewater Power Distribution Corporation | B30: Street Lighting Connections | C30: BLUEWATER POWER DISTRIBUTION CORPORATION_STREET LIGHTING CONNECTIONS SERVICE CLASSIFICATION | D30: 10025
A31: Bluewater Power Distribution Corporation | B31: Sentinel Lighting Connections | C31: BLUEWATER POWER DISTRIBUTION CORPORATION_SENTINEL LIGHTING CONNECTIONS SERVICE CLASSIFICATION | D31: 414
A32: Bluewater Power Distribution Corporation | B32: Unmetered Scattered Load Connections | C32: BLUEWATER POWER DISTRIBUTION CORPORATION_UNMETERED SCATTERED LOAD CONNECTIONS SERVICE CLASSIFICATION | D32: 263
A33: Brant County Power Inc. | B33: Residential | C33: BRANT COUNTY POWER INC._RESIDENTIAL SERVICE CLASSIFICATION | D33: 8581
A34: Brant County Power Inc. | B34: General Service less than 50 kW | C34: BRANT COUNTY POWER INC._GENERAL SERVICE LESS THAN 50 KW SERVICE CLASSIFICATION | D34: 1280
A35: Brant County Power Inc. | B35: General Service >= 50 kW | C35: BRANT COUNTY POWER INC._GENERAL SERVICE >= 50 KW SERVICE CLASSIFICATION | D35: 129
A36: Brant County Power Inc. | B36: Large User | C36: BRANT COUNTY POWER INC._LARGE USER SERVICE CLASSIFICATION | D36: 0
A37: Brant County Power Inc. | B37: Sub Transmission Customers | C37: BRANT COUNTY POWER INC._SUB TRANSMISSION CUSTOMERS SERVICE CLASSIFICATION | D37: 0
A38: Brant County Power Inc. | B38: Embedded Distributor(s) | C38: BRANT COUNTY POWER INC._EMBEDDED DISTRIBUTOR(S) SERVICE CLASSIFICATION | D38: 0
A39: Brant County Power Inc. | B39: Street Lighting Connections | C39: BRANT COUNTY POWER INC._STREET LIGHTING CONNECTIONS SERVICE CLASSIFICATION | D39: 2640
A40: Brant County Power Inc. | B40: Sentinel Lighting Connections | C40: BRANT COUNTY POWER INC._SENTINEL LIGHTING CONNECTIONS SERVICE CLASSIFICATION | D40: 166
A41: Brant County Power Inc. | B41: Unmetered Scattered Load Connections | C41: BRANT COUNTY POWER INC._UNMETERED SCATTERED LOAD CONNECTIONS SERVICE CLASSIFICATION | D41: 49
A42: Brantford Power Inc. | B42: Residential | C42: BRANTFORD POWER INC._RESIDENTIAL SERVICE CLASSIFICATION | D42: 35638
A43: Brantford Power Inc. | B43: General Service less than 50 kW | C43: BRANTFORD POWER INC._GENERAL SERVICE LESS THAN 50 KW SERVICE CLASSIFICATION | D43: 2782
A44: Brantford Power Inc. | B44: General Service >= 50 kW | C44: BRANTFORD POWER INC._GENERAL SERVICE >= 50 KW SERVICE CLASSIFICATION | D44: 440
A45: Brantford Power Inc. | B45: Large User | C45: BRANTFORD POWER INC._LARGE USER SERVICE CLASSIFICATION | D45: 0
A46: Brantford Power Inc. | B46: Sub Transmission Customers | C46: BRANTFORD POWER INC._SUB TRANSMISSION CUSTOMERS SERVICE CLASSIFICATION | D46: 0
A47: Brantford Power Inc. | B47: Embedded Distributor(s) | C47: BRANTFORD POWER INC._EMBEDDED DISTRIBUTOR(S) SERVICE CLASSIFICATION | D47: 1
A48: Brantford Power Inc. | B48: Street Lighting Connections | C48: BRANTFORD POWER INC._STREET LIGHTING CONNECTIONS SERVICE CLASSIFICATION | D48: 10080
A49: Brantford Power Inc. | B49: Sentinel Lighting Connections | C49: BRANTFORD POWER INC._SENTINEL LIGHTING CONNECTIONS SERVICE CLASSIFICATION | D49: 651
A50: Brantford Power Inc. | B50: Unmetered Scattered Load Connections | C50: BRANTFORD POWER INC._UNMETERED SCATTERED LOAD CONNECTIONS SERVICE CLASSIFICATION | D50: 469
A51: Burlington Hydro Inc. | B51: Residential | C51: BURLINGTON HYDRO INC._RESIDENTIAL SERVICE CLASSIFICATION | D51: 60214
A52: Burlington Hydro Inc. | B52: General Service less than 50 kW | C52: BURLINGTON HYDRO INC._GENERAL SERVICE LESS THAN 50 KW SERVICE CLASSIFICATION | D52: 5228
A53: Burlington Hydro Inc. | B53: General Service >= 50 kW | C53: BURLINGTON HYDRO INC._GENERAL SERVICE >= 50 KW SERVICE CLASSIFICATION | D53: 988
A54: Burlington Hydro Inc. | B54: Large User | C54: BURLINGTON HYDRO INC._LARGE USER SERVICE CLASSIFICATION | D54: 0
A55: Burlington Hydro Inc. | B55: Sub Transmission Customers | C55: BURLINGTON HYDRO INC._SUB TRANSMISSION CUSTOMERS SERVICE CLASSIFICATION | D55: 0
A56: Burlington Hydro Inc. | B56: Embedded Distributor(s) | C56: BURLINGTON HYDRO INC._EMBEDDED DISTRIBUTOR(S) SERVICE CLASSIFICATION | D56: 0
A57: Burlington Hydro Inc. | B57: Street Lighting Connections | C57: BURLINGTON HYDRO INC._STREET LIGHTING CONNECTIONS SERVICE CLASSIFICATION | D57: 15225
A58: Burlington Hydro Inc. | B58: Sentinel Lighting Connections | C58: BURLINGTON HYDRO INC._SENTINEL LIGHTING CONNECTIONS SERVICE CLASSIFICATION | D58: 0
A59: Burlington Hydro Inc. | B59: Unmetered Scattered Load Connections | C59: BURLINGTON HYDRO INC._UNMETERED SCATTERED LOAD CONNECTIONS SERVICE CLASSIFICATION | D59: 571
A60: Cambridge and North Dumfries Hydro Inc. | B60: Residential | C60: CAMBRIDGE AND NORTH DUMFRIES HYDRO INC._RESIDENTIAL SERVICE CLASSIFICATION | D60: 47286
A61: Cambridge and North Dumfries Hydro Inc. | B61: General Service less than 50 kW | C61: CAMBRIDGE AND NORTH DUMFRIES HYDRO INC._GENERAL SERVICE LESS THAN 50 KW SERVICE CLASSIFICATION | D61: 4838
A62: Cambridge and North Dumfries Hydro Inc. | B62: General Service >= 50 kW | C62: CAMBRIDGE AND NORTH DUMFRIES HYDRO INC._GENERAL SERVICE >= 50 KW SERVICE CLASSIFICATION | D62: 713
A63: Cambridge and North Dumfries Hydro Inc. | B63: Large User | C63: CAMBRIDGE AND NORTH DUMFRIES HYDRO INC._LARGE USER SERVICE CLASSIFICATION | D63: 2
A64: Cambridge and North Dumfries Hydro Inc. | B64: Sub Transmission Customers | C64: CAMBRIDGE AND NORTH DUMFRIES HYDRO INC._SUB TRANSMISSION CUSTOMERS SERVICE CLASSIFICATION | D64: 0
A65: Cambridge and North Dumfries Hydro Inc. | B65: Embedded Distributor(s) | C65: CAMBRIDGE AND NORTH DUMFRIES HYDRO INC._EMBEDDED DISTRIBUTOR(S) SERVICE CLASSIFICATION | D65: 2
A66: Cambridge and North Dumfries Hydro Inc. | B66: Street Lighting Connections | C66: CAMBRIDGE AND NORTH DUMFRIES HYDRO INC._STREET LIGHTING CONNECTIONS SERVICE CLASSIFICATION | D66: 12952
A67: Cambridge and North Dumfries Hydro Inc. | B67: Sentinel Lighting Connections | C67: CAMBRIDGE AND NORTH DUMFRIES HYDRO INC._SENTINEL LIGHTING CONNECTIONS SERVICE CLASSIFICATION | D67: 0
A68: Cambridge and North Dumfries Hydro Inc. | B68: Unmetered Scattered Load Connections | C68: CAMBRIDGE AND NORTH DUMFRIES HYDRO INC._UNMETERED SCATTERED LOAD CONNECTIONS SERVICE CLASSIFICATION | D68: 481
A69: Canadian Niagara Power Inc. | B69: Residential | C69: CANADIAN NIAGARA POWER INC._RESIDENTIAL SERVICE CLASSIFICATION | D69: 25908
A70: Canadian Niagara Power Inc. | B70: General Service less than 50 kW | C70: CANADIAN NIAGARA POWER INC._GENERAL SERVICE LESS THAN 50 KW SERVICE CLASSIFICATION | D70: 2493
A71: Canadian Niagara Power Inc. | B71: General Service >= 50 kW | C71: =UPPER(A71)&"_"&UPPER(B71)&" "&"SERVICE CLASSIFICATION" -> CANADIAN NIAGARA POWER INC._GENERAL SERVICE >= 50 KW SERVICE CLASSIFICATION | D71: 226
A72: Canadian Niagara Power Inc. | B72: Large User | C72: CANADIAN NIAGARA POWER INC._LARGE USER SERVICE CLASSIFICATION | D72: 0
A73: Canadian Niagara Power Inc. | B73: Sub Transmission Customers | C73: CANADIAN NIAGARA POWER INC._SUB TRANSMISSION CUSTOMERS SERVICE CLASSIFICATION | D73: 0
A74: Canadian Niagara Power Inc. | B74: Embedded Distributor(s) | C74: CANADIAN NIAGARA POWER INC._EMBEDDED DISTRIBUTOR(S) SERVICE CLASSIFICATION | D74: 0
A75: Canadian Niagara Power Inc. | B75: Street Lighting Connections | C75: CANADIAN NIAGARA POWER INC._STREET LIGHTING CONNECTIONS SERVICE CLASSIFICATION | D75: 5712
A76: Canadian Niagara Power Inc. | B76: Sentinel Lighting Connections | C76: CANADIAN NIAGARA POWER INC._SENTINEL LIGHTING CONNECTIONS SERVICE CLASSIFICATION | D76: 766
A77: Canadian Niagara Power Inc. | B77: Unmetered Scattered Load Connections | C77: CANADIAN NIAGARA POWER INC._UNMETERED SCATTERED LOAD CONNECTIONS SERVICE CLASSIFICATION | D77: 37
A78: Centre Wellington Hydro Ltd. | B78: Residential | C78: CENTRE WELLINGTON HYDRO LTD._RESIDENTIAL SERVICE CLASSIFICATION | D78: 5953
A79: Centre Wellington Hydro Ltd. | B79: General Service less than 50 kW | C79: CENTRE WELLINGTON HYDRO LTD._GENERAL SERVICE LESS THAN 50 KW SERVICE CLASSIFICATION | D79: 719
A80: Centre Wellington Hydro Ltd. | B80: General Service >= 50 kW | C80: CENTRE WELLINGTON HYDRO LTD._GENERAL SERVICE >= 50 KW SERVICE CLASSIFICATION | D80: 58
A81: Centre Wellington Hydro Ltd. | B81: Large User | C81: CENTRE WELLINGTON HYDRO LTD._LARGE USER SERVICE CLASSIFICATION | D81: 0
A82: Centre Wellington Hydro Ltd. | B82: Sub Transmission Customers | C82: CENTRE WELLINGTON HYDRO LTD._SUB TRANSMISSION CUSTOMERS SERVICE CLASSIFICATION | D82: 0
A83: Centre Wellington Hydro Ltd. | B83: Embedded Distributor(s) | C83: CENTRE WELLINGTON HYDRO LTD._EMBEDDED DISTRIBUTOR(S) SERVICE CLASSIFICATION | D83: 0
A84: Centre Wellington Hydro Ltd. | B84: Street Lighting Connections | C84: CENTRE WELLINGTON HYDRO LTD._STREET LIGHTING CONNECTIONS SERVICE CLASSIFICATION | D84: 1708
A85: Centre Wellington Hydro Ltd. | B85: Sentinel Lighting Connections | C85: CENTRE WELLINGTON HYDRO LTD._SENTINEL LIGHTING CONNECTIONS SERVICE CLASSIFICATION | D85: 31
A86: Centre Wellington Hydro Ltd. | B86: Unmetered Scattered Load Connections | C86: CENTRE WELLINGTON HYDRO LTD._UNMETERED SCATTERED LOAD CONNECTIONS SERVICE CLASSIFICATION | D86: 13
A87: Chapleau Public Utilities Corporation | B87: Residential | C87: CHAPLEAU PUBLIC UTILITIES CORPORATION_RESIDENTIAL SERVICE CLASSIFICATION | D87: 1070
A88: Chapleau Public Utilities Corporation | B88: General Service less than 50 kW | C88: CHAPLEAU PUBLIC UTILITIES CORPORATION_GENERAL SERVICE LESS THAN 50 KW SERVICE CLASSIFICATION | D88: 154
A89: Chapleau Public Utilities Corporation | B89: General Service >= 50 kW | C89: CHAPLEAU PUBLIC UTILITIES CORPORATION_GENERAL SERVICE >= 50 KW SERVICE CLASSIFICATION | D89: 13
A90: Chapleau Public Utilities Corporation | B90: Large User | C90: CHAPLEAU PUBLIC UTILITIES CORPORATION_LARGE USER SERVICE CLASSIFICATION | D90: 0
A91: Chapleau Public Utilities Corporation | B91: Sub Transmission Customers | C91: CHAPLEAU PUBLIC UTILITIES CORPORATION_SUB TRANSMISSION CUSTOMERS SERVICE CLASSIFICATION | D91: 0
A92: Chapleau Public Utilities Corporation | B92: Embedded Distributor(s) | C92: CHAPLEAU PUBLIC UTILITIES CORPORATION_EMBEDDED DISTRIBUTOR(S) SERVICE CLASSIFICATION | D92: 0
A93: Chapleau Public Utilities Corporation | B93: Street Lighting Connections | C93: CHAPLEAU PUBLIC UTILITIES CORPORATION_STREET LIGHTING CONNECTIONS SERVICE CLASSIFICATION | D93: 328
A94: Chapleau Public Utilities Corporation | B94: Sentinel Lighting Connections | C94: CHAPLEAU PUBLIC UTILITIES CORPORATION_SENTINEL LIGHTING CONNECTIONS SERVICE CLASSIFICATION | D94: 23
A95: Chapleau Public Utilities Corporation | B95: Unmetered Scattered Load Connections | C95: CHAPLEAU PUBLIC UTILITIES CORPORATION_UNMETERED SCATTERED LOAD CONNECTIONS SERVICE CLASSIFICATION | D95: 4
A96: Collus PowerStream Corp. | B96: Residential | C96: COLLUS POWERSTREAM CORP._RESIDENTIAL SERVICE CLASSIFICATION | D96: 14636
A97: Collus PowerStream Corp. | B97: General Service less than 50 kW | C97: COLLUS POWERSTREAM CORP._GENERAL SERVICE LESS THAN 50 KW SERVICE CLASSIFICATION | D97: 1711
A98: Collus PowerStream Corp. | B98: General Service >= 50 kW | C98: COLLUS POWERSTREAM CORP._GENERAL SERVICE >= 50 KW SERVICE CLASSIFICATION | D98: 124
A99: Collus PowerStream Corp. | B99: Large User | C99: COLLUS POWERSTREAM CORP._LARGE USER SERVICE CLASSIFICATION | D99: 0
A100: Collus PowerStream Corp. | B100: Sub Transmission Customers | C100: COLLUS POWERSTREAM CORP._SUB TRANSMISSION CUSTOMERS SERVICE CLASSIFICATION | D100: 0
A101: Collus PowerStream Corp. | B101: Embedded Distributor(s) | C101: COLLUS POWERSTREAM CORP._EMBEDDED DISTRIBUTOR(S) SERVICE CLASSIFICATION | D101: 0
A102: Collus PowerStream Corp. | B102: Street Lighting Connections | C102: COLLUS POWERSTREAM CORP._STREET LIGHTING CONNECTIONS SERVICE CLASSIFICATION | D102: 3018
A103: Collus PowerStream Corp. | B103: Sentinel Lighting Connections | C103: COLLUS POWERSTREAM CORP._SENTINEL LIGHTING CONNECTIONS SERVICE CLASSIFICATION | D103: 0
A104: Collus PowerStream Corp. | B104: Unmetered Scattered Load Connections | C104: COLLUS POWERSTREAM CORP._UNMETERED SCATTERED LOAD CONNECTIONS SERVICE CLASSIFICATION | D104: 30
A105: Cooperative Hydro Embrun Inc. | B105: Residential | C105: COOPERATIVE HYDRO EMBRUN INC._RESIDENTIAL SERVICE CLASSIFICATION | D105: 1843
A106: Cooperative Hydro Embrun Inc. | B106: General Service less than 50 kW | C106: COOPERATIVE HYDRO EMBRUN INC._GENERAL SERVICE LESS THAN 50 KW SERVICE CLASSIFICATION | D106: 180
A107: Cooperative Hydro Embrun Inc. | B107: General Service >= 50 kW | C107: COOPERATIVE HYDRO EMBRUN INC._GENERAL SERVICE >= 50 KW SERVICE CLASSIFICATION | D107: 11
A108: Cooperative Hydro Embrun Inc. | B108: Large User | C108: COOPERATIVE HYDRO EMBRUN INC._LARGE USER SERVICE CLASSIFICATION | D108: 0
A109: Cooperative Hydro Embrun Inc. | B109: Sub Transmission Customers | C109: COOPERATIVE HYDRO EMBRUN INC._SUB TRANSMISSION CUSTOMERS SERVICE CLASSIFICATION | D109: 0
A110: Cooperative Hydro Embrun Inc. | B110: Embedded Distributor(s) | C110: COOPERATIVE HYDRO EMBRUN INC._EMBEDDED DISTRIBUTOR(S) SERVICE CLASSIFICATION | D110: 0
A111: Cooperative Hydro Embrun Inc. | B111: Street Lighting Connections | C111: COOPERATIVE HYDRO EMBRUN INC._STREET LIGHTING CONNECTIONS SERVICE CLASSIFICATION | D111: 407
A112: Cooperative Hydro Embrun Inc. | B112: Sentinel Lighting Connections | C112: COOPERATIVE HYDRO EMBRUN INC._SENTINEL LIGHTING CONNECTIONS SERVICE CLASSIFICATION | D112: 0
A113: Cooperative Hydro Embrun Inc. | B113: Unmetered Scattered Load Connections | C113: COOPERATIVE HYDRO EMBRUN INC._UNMETERED SCATTERED LOAD CONNECTIONS SERVICE CLASSIFICATION | D113: 18
A114: E.L.K. Energy Inc. | B114: Residential | C114: E.L.K. ENERGY INC._RESIDENTIAL SERVICE CLASSIFICATION | D114: 10834
A115: E.L.K. Energy Inc. | B115: General Service less than 50 kW | C115: E.L.K. ENERGY INC._GENERAL SERVICE LESS THAN 50 KW SERVICE CLASSIFICATION | D115: 1373
A116: E.L.K. Energy Inc. | B116: General Service >= 50 kW | C116: E.L.K. ENERGY INC._GENERAL SERVICE >= 50 KW SERVICE CLASSIFICATION | D116: 179
A117: E.L.K. Energy Inc. | B117: Large User | C117: E.L.K. ENERGY INC._LARGE USER SERVICE CLASSIFICATION | D117: 0
A118: E.L.K. Energy Inc. | B118: Sub Transmission Customers | C118: E.L.K. ENERGY INC._SUB TRANSMISSION CUSTOMERS SERVICE CLASSIFICATION | D118: 0
A119: E.L.K. Energy Inc. | B119: Embedded Distributor(s) | C119: E.L.K. ENERGY INC._EMBEDDED DISTRIBUTOR(S) SERVICE CLASSIFICATION | D119: 0
A120: E.L.K. Energy Inc. | B120: Street Lighting Connections | C120: E.L.K. ENERGY INC._STREET LIGHTING CONNECTIONS SERVICE CLASSIFICATION | D120: 4007
A121: E.L.K. Energy Inc. | B121: Sentinel Lighting Connections | C121: E.L.K. ENERGY INC._SENTINEL LIGHTING CONNECTIONS SERVICE CLASSIFICATION | D121: 36
A122: E.L.K. Energy Inc. | B122: Unmetered Scattered Load Connections | C122: E.L.K. ENERGY INC._UNMETERED SCATTERED LOAD CONNECTIONS SERVICE CLASSIFICATION | D122: 0
A123: Enersource Hydro Mississauga Inc. | B123: Residential | C123: ENERSOURCE HYDRO MISSISSAUGA INC._RESIDENTIAL SERVICE CLASSIFICATION | D123: 179407
A124: Enersource Hydro Mississauga Inc. | B124: General Service less than 50 kW | C124: ENERSOURCE HYDRO MISSISSAUGA INC._GENERAL SERVICE LESS THAN 50 KW SERVICE CLASSIFICATION | D124: 17872
A125: Enersource Hydro Mississauga Inc. | B125: General Service >= 50 kW | C125: ENERSOURCE HYDRO MISSISSAUGA INC._GENERAL SERVICE >= 50 KW SERVICE CLASSIFICATION | D125: 4331
A126: Enersource Hydro Mississauga Inc. | B126: Large User | C126: ENERSOURCE HYDRO MISSISSAUGA INC._LARGE USER SERVICE CLASSIFICATION | D126: 9
A127: Enersource Hydro Mississauga Inc. | B127: Sub Transmission Customers | C127: ENERSOURCE HYDRO MISSISSAUGA INC._SUB TRANSMISSION CUSTOMERS SERVICE CLASSIFICATION | D127: 0
A128: Enersource Hydro Mississauga Inc. | B128: Embedded Distributor(s) | C128: ENERSOURCE HYDRO MISSISSAUGA INC._EMBEDDED DISTRIBUTOR(S) SERVICE CLASSIFICATION | D128: 0
A129: Enersource Hydro Mississauga Inc. | B129: Street Lighting Connections | C129: ENERSOURCE HYDRO MISSISSAUGA INC._STREET LIGHTING CONNECTIONS SERVICE CLASSIFICATION | D129: 49829
A130: Enersource Hydro Mississauga Inc. | B130: Sentinel Lighting Connections | C130: ENERSOURCE HYDRO MISSISSAUGA INC._SENTINEL LIGHTING CONNECTIONS SERVICE CLASSIFICATION | D130: 0
A131: Enersource Hydro Mississauga Inc. | B131: Unmetered Scattered Load Connections | C131: ENERSOURCE HYDRO MISSISSAUGA INC._UNMETERED SCATTERED LOAD CONNECTIONS SERVICE CLASSIFICATION | D131: 2964
A132: Entegrus Powerlines Inc. | B132: Residential | C132: ENTEGRUS POWERLINES INC._RESIDENTIAL SERVICE CLASSIFICATION | D132: 36135
A133: Entegrus Powerlines Inc. | B133: General Service less than 50 kW | C133: ENTEGRUS POWERLINES INC._GENERAL SERVICE LESS THAN 50 KW SERVICE CLASSIFICATION | D133: 3902
A134: Entegrus Powerlines Inc. | B134: General Service >= 50 kW | C134: ENTEGRUS POWERLINES INC._GENERAL SERVICE >= 50 KW SERVICE CLASSIFICATION | D134: 471
A135: Entegrus Powerlines Inc. | B135: Large User | C135: =UPPER(A135)&"_"&UPPER(B135)&" "&"SERVICE CLASSIFICATION" -> ENTEGRUS POWERLINES INC._LARGE USER SERVICE CLASSIFICATION | D135: 1
A136: Entegrus Powerlines Inc. | B136: Sub Transmission Customers | C136: ENTEGRUS POWERLINES INC._SUB TRANSMISSION CUSTOMERS SERVICE CLASSIFICATION | D136: 0
A137: Entegrus Powerlines Inc. | B137: Embedded Distributor(s) | C137: ENTEGRUS POWERLINES INC._EMBEDDED DISTRIBUTOR(S) SERVICE CLASSIFICATION | D137: 0
A138: Entegrus Powerlines Inc. | B138: Street Lighting Connections | C138: ENTEGRUS POWERLINES INC._STREET LIGHTING CONNECTIONS SERVICE CLASSIFICATION | D138: 13266
A139: Entegrus Powerlines Inc. | B139: Sentinel Lighting Connections | C139: ENTEGRUS POWERLINES INC._SENTINEL LIGHTING CONNECTIONS SERVICE CLASSIFICATION | D139: 481
A140: Entegrus Powerlines Inc. | B140: Unmetered Scattered Load Connections | C140: ENTEGRUS POWERLINES INC._UNMETERED SCATTERED LOAD CONNECTIONS SERVICE CLASSIFICATION | D140: 251
A141: EnWin Utilities Ltd. | B141: Residential | C141: ENWIN UTILITIES LTD._RESIDENTIAL SERVICE CLASSIFICATION | D141: 78206
A142: EnWin Utilities Ltd. | B142: General Service less than 50 kW | C142: ENWIN UTILITIES LTD._GENERAL SERVICE LESS THAN 50 KW SERVICE CLASSIFICATION | D142: 7321
A143: EnWin Utilities Ltd. | B143: General Service >= 50 kW | C143: ENWIN UTILITIES LTD._GENERAL SERVICE >= 50 KW SERVICE CLASSIFICATION | D143: 1222
A144: EnWin Utilities Ltd. | B144: Large User | C144: ENWIN UTILITIES LTD._LARGE USER SERVICE CLASSIFICATION | D144: 9
A145: EnWin Utilities Ltd. | B145: Sub Transmission Customers | C145: ENWIN UTILITIES LTD._SUB TRANSMISSION CUSTOMERS SERVICE CLASSIFICATION | D145: 0
A146: EnWin Utilities Ltd. | B146: Embedded Distributor(s) | C146: ENWIN UTILITIES LTD._EMBEDDED DISTRIBUTOR(S) SERVICE CLASSIFICATION | D146: 0
A147: EnWin Utilities Ltd. | B147: Street Lighting Connections | C147: ENWIN UTILITIES LTD._STREET LIGHTING CONNECTIONS SERVICE CLASSIFICATION | D147: 23499
A148: EnWin Utilities Ltd. | B148: Sentinel Lighting Connections | C148: ENWIN UTILITIES LTD._SENTINEL LIGHTING CONNECTIONS SERVICE CLASSIFICATION | D148: 621
A149: EnWin Utilities Ltd. | B149: Unmetered Scattered Load Connections | C149: ENWIN UTILITIES LTD._UNMETERED SCATTERED LOAD CONNECTIONS SERVICE CLASSIFICATION | D149: 780
A150: Erie Thames Powerlines Corporation | B150: Residential | C150: ERIE THAMES POWERLINES CORPORATION_RESIDENTIAL SERVICE CLASSIFICATION | D150: 16339
A151: Erie Thames Powerlines Corporation | B151: General Service less than 50 kW | C151: ERIE THAMES POWERLINES CORPORATION_GENERAL SERVICE LESS THAN 50 KW SERVICE CLASSIFICATION | D151: 1797
A152: Erie Thames Powerlines Corporation | B152: General Service >= 50 kW | C152: ERIE THAMES POWERLINES CORPORATION_GENERAL SERVICE >= 50 KW SERVICE CLASSIFICATION | D152: 150
A153: Erie Thames Powerlines Corporation | B153: Large User | C153: ERIE THAMES POWERLINES CORPORATION_LARGE USER SERVICE CLASSIFICATION | D153: 1
